Workbook

Sheet Intro
G1: Electricity Distribution Network Service Providers
G2: Post Tax Revenue Model
K3: Version: 02
K4: Date: 19 June 2009
B7: Introduction
C12: This model illustrates the basic elements of the AER's building block calculation and associated price and revenue constraints for distribution businesses.
C14: The model is intended to produce X factors that are applicable to revenue caps, price caps and revenue yield forms of control.
C16: Building block revenues and cash flows are modelled in nominal terms unless specified otherwise.
C18: Before using the PTRM, Excel’s iteration mode of calculation needs to be selected.
C19: To do so, select Options from the Tools menu in Excel, then select the Calculation tab.
C20: Make sure that Manual (rather than Automatic) is selected and tick the iteration box.
C22: To run the 'Fix_Te' macro manually, select Macro from the Tools menu, and then select Macros. Highlight 'Fix_Te' and click on Run.
C26: INSTRUCTIONS FOR USE
C28: 1. Fill out cells in "input" sheet. These cells are highlighted blue.
C29: Input data required include:
D30: by asset class-
E31: opening asset life
E32: remaining life
E33: useful life
E34: remaining tax life
E35: standard tax life
E36: forecast capex
E37: forecast disposals
E38: forecast customer contributions
D39: forecast total opex
D40: WACC parameters
D41: actual prices per each tariff component
D42: forecast quantities per each tariff component
C44: Input expenditure data should be valued in real terms of the year indicated, as at the end of that year.
C46: 2. Select X factors and P-0 on the "X factor" sheet
C47: Clause 6.2.6 requires that the form of control applicable to "standard direct control" services be of a CPI-X form.
C48: This sheet provides for the calculation of X factors under three basic forms of control, namely a weighted average price cap, revenue cap and revenue yield.
C49: These may be amended to suit the particular form of control applicable to the DNSP
C51: The value of X may differ for each year of the period but must be set such that the NPV of revenues is equal to the NPV of the total building block revenue requirement for the period.
C52: The X factor sheet provides input values for each X but contains macro buttons which can be used to goal seek a value of P0 for each form of control to equate the NPVs of forecast and required revenues
C57: AMENDMENT RECORD
C59: version no. | D59: date of issue | F59: details of amendments
C60: version 01 | D60: 2008-06-26 | F60: -
C62: version 02 | D62: 2009-06-19 | F62: 1. totals in row 37 of the "Input" sheet changed to sum rows 7 to 36
F63: 2. depreciation on capex calculated in rows 169 to 178 and 182 to 191 of the "Assets" sheet changed to refer to correct capex inputs for each year
F64: 3. tax depreciation totals in row 479 of the "Assets" sheet changed to include tax depreciation calculated for all asset classes

Sheet Input
E2: Input Variables | G2: Input cells are in blue
E5: ="Opening Regulated Asset Base for "&Q7&" ($m Nominal)" -> Opening Regulated Asset Base for 2014-15 ($m Nominal)
G6: Asset Class Name | J6: Opening Asset Value | K6: Assets Under Construction | L6: Remaining Life | M6: Standard Life | N6: Opening Tax Value | O6: Tax Remaining Life | P6: Tax Standard Life | Q6: Base Financial Year
E7: Asset Class 1 | G7: Type 5 and 6 meters | J7: 115.1053412 | L7: 19.74835555 | M7: 15 | N7: 108.3536988 | O7: 16.19244055 | P7: 25 | Q7: 2014-15
E8: Asset Class 2 | G8: Equity raising costs | L8: 40.72687606 | M8: 44.72687606 | O8: 40.72687606 | P8: 5
E9: Asset Class 3
E10: Asset Class 4
E11: Asset Class 5
E12: Asset Class 6
E13: Asset Class 7
E14: Asset Class 8
E15: Asset Class 9
E16: Asset Class 10
E17: Total | J17: =SUM(J7:J16)+K17 -> 115.1053412 | K17: =SUM(K7:K16) -> 0 | N17: =SUM(N7:N16) -> 108.3536988
E19: ="Forecast Capital Expenditure – As Incurred ($m Real "&CONCATENATE(LEFT(Q7, 4)-1 &"-" &IF(Q7>"2009-10",,"0") &RIGHT(Q7,2)-1)&")" -> Forecast Capital Expenditure – As Incurred ($m Real 2013-14)
E20: Year | F20: 2013-14 | G20: =Q7 -> 2014-15 | H20: =CONCATENATE(LEFT(G20, 4)+1 &"-" &IF(G20>"2007-08",,"0") &RIGHT(G20,2)+1) -> 2015-16 | I20: =CONCATENATE(LEFT(H20, 4)+1 &"-" &IF(H20>"2007-08",,"0") &RIGHT(H20,2)+1) -> 2016-17 | J20: 2017-18 | K20: 2018-19 | L20: 2019-20 | M20: 2020-21 | N20: 2021-22 | O20: 2022-23 | P20: 2023-24
E21: =Asset1 -> Type 5 and 6 meters | G21: 10.45968829 | H21: 7.536422194 | I21: 7.909559108 | J21: 11.00461061 | K21: 10.9666123
E22: =Asset2 -> Equity raising costs
E23: =Asset3 -> 0
E24: =Asset4 -> 0
E25: =Asset5 -> 0
E26: =Asset6 -> 0
E27: =Asset7 -> 0
E28: =Asset8 -> 0
E29: =Asset9 -> 0
E30: =Asset10 -> 0
E31: Total | G31: =SUM(G21:G30) -> 10.45968829 | H31: 7.536422194 | I31: 7.909559108 | J31: 11.00461061 | K31: 10.9666123 | L31: 0 | M31: 0 | N31: 0 | O31: 0 | P31: 0
Q32: =SUM(G31:P31) -> 47.8768925
E33: ="Forecast Asset Disposal – as incurred ($m Real "&CONCATENATE(LEFT(Q7, 4)-1 &"-" &IF(Q7>"2009-10",,"0") &RIGHT(Q7,2)-1)&")" -> Forecast Asset Disposal – as incurred ($m Real 2013-14)
E34: Year | G34: =G20 -> 2014-15 | H34: 2015-16 | I34: 2016-17 | J34: 2017-18 | K34: 2018-19 | L34: 2019-20 | M34: 2020-21 | N34: 2021-22 | O34: 2022-23 | P34: 2023-24
E35: =Asset1 -> Type 5 and 6 meters
E36: =Asset2 -> Equity raising costs
E37: =Asset3 -> 0
E38: =Asset4 -> 0
E39: =Asset5 -> 0
E40: =Asset6 -> 0
E41: =Asset7 -> 0
E42: =Asset8 -> 0
E43: =Asset9 -> 0
E44: =Asset10 -> 0
E45: Total | G45: =SUM(G35:G44) -> 0 | H45: 0 | I45: 0 | J45: 0 | K45: 0 | L45: 0 | M45: 0 | N45: 0 | O45: 0 | P45: 0
Q46: =SUM(G45:P45) -> 0
E47: ="Forecast Customer Contributions – As Incurred ($m Real "&CONCATENATE(LEFT(Q7, 4)-1 &"-" &IF(Q7>"2009-10",,"0") &RIGHT(Q7,2)-1)&")" -> Forecast Customer Contributions – As Incurred ($m Real 2013-14)
E48: Year | G48: =G34 -> 2014-15 | H48: 2015-16 | I48: 2016-17 | J48: 2017-18 | K48: 2018-19 | L48: 2019-20 | M48: 2020-21 | N48: 2021-22 | O48: 2022-23 | P48: 2023-24
E49: =Asset1 -> Type 5 and 6 meters | H49: 3.335869165 | I49: 7.065951907 | J49: 3.612714548 | K49: 3.537596573
E50: =Asset2 -> Equity raising costs
E51: =Asset3 -> 0
E52: =Asset4 -> 0
E53: =Asset5 -> 0
E54: =Asset6 -> 0
E55: =Asset7 -> 0
E56: =Asset8 -> 0
E57: =Asset9 -> 0
E58: =Asset10 -> 0
E59: Total | G59: =SUM(G49:G58) -> 0 | H59: 3.335869165 | I59: 7.065951907 | J59: 3.612714548 | K59: 3.537596573 | L59: 0 | M59: 0 | N59: 0 | O59: 0 | P59: 0
G60: =G63/A1taxremlife -> 0.6459611978 | Q60: =SUM(G59:P59) -> 17.55213219
E61: ="Forecast Net Capital Expenditure – As Incurred ($m Real "&CONCATENATE(LEFT(Q7, 4)-1 &"-" &IF(Q7>"2009-10",,"0") &RIGHT(Q7,2)-1)&")" -> Forecast Net Capital Expenditure – As Incurred ($m Real 2013-14)
E62: Year | G62: =G20 -> 2014-15 | H62: 2015-16 | I62: 2016-17 | J62: 2017-18 | K62: 2018-19 | L62: 2019-20 | M62: 2020-21 | N62: 2021-22 | O62: 2022-23 | P62: 2023-24
E63: =Asset1 -> Type 5 and 6 meters | G63: =G21-G35-G49 -> 10.45968829 | H63: 4.200553029 | I63: 0.8436072007 | J63: 7.391896062 | K63: 7.429015722 | L63: 0 | M63: 0 | N63: 0 | O63: 0 | P63: 0
E64: =Asset2 -> Equity raising costs | G64: =G22-G36-G50 -> 0 | H64: 0 | I64: 0 | J64: 0 | K64: 0 | L64: 0 | M64: 0 | N64: 0 | O64: 0 | P64: 0
E65: =Asset3 -> 0 | G65: =G23-G37-G51 -> 0 | H65: 0 | I65: 0 | J65: 0 | K65: 0 | L65: 0 | M65: 0 | N65: 0 | O65: 0 | P65: 0
E66: =Asset4 -> 0 | G66: =G24-G38-G52 -> 0 | H66: 0 | I66: 0 | J66: 0 | K66: 0 | L66: 0 | M66: 0 | N66: 0 | O66: 0 | P66: 0
E67: =Asset5 -> 0 | G67: =G25-G39-G53 -> 0 | H67: 0 | I67: 0 | J67: 0 | K67: 0 | L67: 0 | M67: 0 | N67: 0 | O67: 0 | P67: 0
E68: =Asset6 -> 0 | G68: =G26-G40-G54 -> 0 | H68: 0 | I68: 0 | J68: 0 | K68: 0 | L68: 0 | M68: 0 | N68: 0 | O68: 0 | P68: 0
E69: =E27 -> 0 | G69: =G27-G41-G55 -> 0 | H69: 0 | I69: 0 | J69: 0 | K69: 0 | L69: 0 | M69: 0 | N69: 0 | O69: 0 | P69: 0
E70: =Asset8 -> 0 | G70: =G28-G42-G56 -> 0 | H70: 0 | I70: 0 | J70: 0 | K70: 0 | L70: 0 | M70: 0 | N70: 0 | O70: 0 | P70: 0
E71: =Asset9 -> 0 | G71: =G29-G43-G57 -> 0 | H71: 0 | I71: 0 | J71: 0 | K71: 0 | L71: 0 | M71: 0 | N71: 0 | O71: 0 | P71: 0
E72: =Asset10 -> 0 | G72: =G30-G44-G58 -> 0 | H72: 0 | I72: 0 | J72: 0 | K72: 0 | L72: 0 | M72: 0 | N72: 0 | O72: 0 | P72: 0
E73: Total | G73: =SUM(G63:G72) -> 10.45968829 | H73: 4.200553029 | I73: 0.8436072007 | J73: 7.391896062 | K73: 7.429015722 | L73: 0 | M73: 0 | N73: 0 | O73: 0 | P73: 0
Q74: =SUM(G73:P73) -> 30.32476031
E75: ="Forecast Operating and Maintenance Expenditure ($m Real "&CONCATENATE(LEFT(Q7, 4)-1 &"-" &IF(Q7>"2009-10",,"0") &RIGHT(Q7,2)-1)&")" -> Forecast Operating and Maintenance Expenditure ($m Real 2013-14)
E76: Year | G76: =G20 -> 2014-15 | H76: 2015-16 | I76: 2016-17 | J76: 2017-18 | K76: 2018-19 | L76: 2019-20 | M76: 2020-21 | N76: 2021-22 | O76: 2022-23 | P76: 2023-24
E77: Controllable opex | G77: 23.11456847 | H77: 23.29176783 | I77: 23.45347823 | J77: 23.62337611 | K77: 23.81514075
E79: Debt raising costs | G79: =(Dr*Dv*Assets!F161)/Assets!G7 -> 0.0586195006 | H79: =(Dr*Dv*Assets!G161)/Assets!H7 -> 0.06109735042 | I79: =(Dr*Dv*Assets!H161)/Assets!I7 -> 0.05995310205 | J79: =(Dr*Dv*Assets!I161)/Assets!J7 -> 0.05691514173 | K79: =(Dr*Dv*Assets!J161)/Assets!K7 -> 0.0572574751
E80: Carry over amounts
L81: =IF(L77=0,0,(Dr*Dv*Assets!K161)/Assets!L7) -> 0 | M81: =IF(M77=0,0,(Dr*Dv*Assets!L161)/Assets!M7) -> 0 | N81: =IF(N77=0,0,(Dr*Dv*Assets!M161)/Assets!N7) -> 0 | O81: =IF(O77=0,0,(Dr*Dv*Assets!N161)/Assets!O7) -> 0 | P81: =IF(P77=0,0,(Dr*Dv*Assets!O161)/Assets!P7) -> 0
E82: Total | G82: =SUM(G77:G81) -> 23.17318797 | H82: 23.35286518 | I82: 23.51343133 | J82: 23.68029125 | K82: 23.87239822 | L82: 0 | M82: 0 | N82: 0 | O82: 0 | P82: 0
G83: =G79*1000000 -> 58619.5006 | H83: =H79*1000000 -> 61097.35042 | I83: 59953.10205 | J83: 56915.14173 | K83: 57257.4751 | Q83: =SUM(G82:P82) -> 117.592174
E84: Cost of Capital
G85: Value
E86: Nominal Risk Free Rate Rf | G86: 0.0355
E87: Inflation Rate f | G87: 0.025
E88: Debt Risk Premium DRP | G88: 0.0296
E89: Market Risk Premium MRP | G89: 0.065
E90: Utilisation of Imputation (Franking) Credits g | G90: 0.4
E91: Proportion of Debt Funding D/V | G91: 0.6
E92: Equity Beta βe | G92: 0.7
E93: Debt Raising Cost Benchmark Dr | F93: Dr | G93: 0.00087
E95: ="Price/ revenue constraint for "&CONCATENATE(LEFT(Q7, 4)-1 &"-" &IF(Q7>"2009-10",,"0") &RIGHT(Q7,2)-1)& " ($m Nominal)" -> Price/ revenue constraint for 2013-14 ($m Nominal)
G96: Value
E97: Maximum Allowed Revenue
E98: Revenue yield (c/kWh)

Sheet WACC
B2: Cost of Capital Parameters
F6: Input Data & Calculated Inputs | G6: Basic Building Block Model
B7: Nominal Risk Free Rate | D7: Rf | F7: =Rf -> 0.0355
B8: Real Risk Free Rate | D8: Rrf | F8: =(1+F7)/(1+F9)-1 -> 0.01024390244
B9: Inflation Rate | D9: f | F9: =f -> 0.025
B10: Cost of Debt Margin | D10: DRP | F10: =Drp -> 0.0296
B11: Nominal Pre-tax Cost of Debt | D11: Rd | F11: =F7+F10 -> 0.0651
B12: Real Pre-tax Cost of Debt | D12: Rrd | F12: =(1+F11)/(1+F9)-1 -> 0.03912195122
B13: Market Risk Premium | D13: MRP | F13: =Mrp -> 0.065
B14: Corporate Tax Rate | D14: T | F14: 0.3
B15: Effective Tax Rate for Equity (From Relevant Cash flows) | D15: Te | F15: 0.247398073 | G15: 0.247398073
B16: Effective Tax Rate for Debt (Effective Debt Shield) | D16: Td | F16: =Td -> 0.3 | G16: 0.3
B17: Utilisation of Imputation (Franking) Credits | D17: g | F17: =g -> 0.4
B18: Proportion of Equity Funding | D18: E/V | F18: =1-F19 -> 0.4
B19: Proportion of Debt Funding | D19: D/V | F19: =Dv -> 0.6
B20: Equity Beta | D20: βe | F20: =Be -> 0.7
B22: WACC Analysis
F24: Formula Approximation
B25: Post-tax Nominal Return on Equity(pre-imp) | F25: =F7+F20*(F13) -> 0.081 | G25: 0.1011
B26: Post-tax Real Return on Equity(pre-imp) | F26: =(1+F25)/(1+F9)-1 -> 0.05463414634 | G26: 0.07424390244
B27: Nominal Vanilla WACC | F27: =F18*F25+F19*F11 -> 0.07146 | G27: 0.08832
B28: Real Vanilla WACC | F28: =F18*F26+F19*F12 -> 0.04532682927 | G28: 0.06177560976
B29: Post-tax Nominal WACC | F29: =F25*((1-F15)/(1-F15*(1-F17)))*F18+F11*F19*(1-F16) -> 0.05597682236 | G29: 0.08517304124
B30: Post-tax Real WACC | F30: =(1+F29)/(1+F9)-1 -> 0.03022129011 | G30: 0.05870540609
B31: Pre-tax Nominal WACC | F31: =F25*(1/(1-F15*(1-F17)))*F18+F11*F19 -> 0.07710776646 | G31: 0.09763219786
B32: Pre-tax Real WACC | F32: =(1+F31)/(1+F9)-1 -> 0.05083684533 | G32: 0.07086068084
B33: Nominal Tax Allowance | F33: =F31-F27 -> 0.005647766463 | G33: =G31-$F$27 -> 0.02617219786
B34: Real Tax Allowance | F34: =F32-F28 -> 0.005510016061 | G34: =G32-$F$28 -> 0.02553385157
F37: Numbers in White cells are calculated on this sheet from input parameters.
F38: Numbers in Orange cells are transferred from relevant sheets

Sheet Assets
B2: Asset Roll Forward
F3: 0 | G3: =F3+1 -> 1 | H3: 2 | I3: 3 | J3: 4 | K3: 5 | L3: 6 | M3: 7 | N3: 8 | O3: 9 | P3: 10
B4: Year | F4: =Input!F20 -> 2013-14 | G4: =Input!G20 -> 2014-15 | H4: =Input!H20 -> 2015-16 | I4: =Input!I20 -> 2016-17 | J4: =Input!J20 -> 2017-18 | K4: =Input!K20 -> 2018-19 | L4: =Input!L20 -> 2019-20 | M4: =Input!M20 -> 2020-21 | N4: =Input!N20 -> 2021-22 | O4: =Input!O20 -> 2022-23 | P4: =Input!P20 -> 2023-24
B6: Inflation Assumption (CPI % increase) | D6: =f -> 0.025 | G6: =$D$6 -> 0.025 | H6: =$D$6 -> 0.025 | I6: 0.025 | J6: 0.025 | K6: 0.025 | L6: 0.025 | M6: 0.025 | N6: 0.025 | O6: 0.025 | P6: 0.025
B7: Cumulative Inflation Index (CPI end period) | F7: 1 | G7: =F7*(1+G6) -> 1.025 | H7: =G7*(1+H6) -> 1.050625 | I7: =H7*(1+I6) -> 1.076890625 | J7: =I7*(1+J6) -> 1.103812891 | K7: 1.131408213 | L7: 1.159693418 | M7: 1.188685754 | N7: 1.218402898 | O7: 1.24886297 | P7: =O7*(1+P6) -> 1.280084544
B9: Closing Regulated Asset Base | F9: =RAB -> 115.1053412
B10: Real Capex | G10: =SUM(G11:G20) -> 10.69411355 | H10: 4.294696915 | I10: 0.8625143446 | J10: 7.557565158 | K10: 7.595516754 | L10: 0 | M10: 0 | N10: 0 | O10: 0 | P10: 0
C11: =Asset1 -> Type 5 and 6 meters | G11: =Input!G63*(1+rvanilla)^0.5 -> 10.69411355 | H11: =Input!H63*(1+rvanilla)^0.5 -> 4.294696915 | I11: =Input!I63*(1+rvanilla)^0.5 -> 0.8625143446 | J11: =Input!J63*(1+rvanilla)^0.5 -> 7.557565158 | K11: =Input!K63*(1+rvanilla)^0.5 -> 7.595516754 | L11: =Input!L63*(1+rvanilla)^0.5 -> 0 | M11: =Input!M63*(1+rvanilla)^0.5 -> 0 | N11: =Input!N63*(1+rvanilla)^0.5 -> 0 | O11: =Input!O63*(1+rvanilla)^0.5 -> 0 | P11: =Input!P63*(1+rvanilla)^0.5 -> 0
C12: =Asset2 -> Equity raising costs | G12: =Input!G64*(1+rvanilla)^0.5 -> 0 | H12: =Input!H64*(1+rvanilla)^0.5 -> 0 | I12: =Input!I64*(1+rvanilla)^0.5 -> 0 | J12: =Input!J64*(1+rvanilla)^0.5 -> 0 | K12: =Input!K64*(1+rvanilla)^0.5 -> 0 | L12: =Input!L64*(1+rvanilla)^0.5 -> 0 | M12: =Input!M64*(1+rvanilla)^0.5 -> 0 | N12: =Input!N64*(1+rvanilla)^0.5 -> 0 | O12: =Input!O64*(1+rvanilla)^0.5 -> 0 | P12: =Input!P64*(1+rvanilla)^0.5 -> 0
C13: =Asset3 -> 0 | G13: =Input!G65*(1+rvanilla)^0.5 -> 0 | H13: =Input!H65*(1+rvanilla)^0.5 -> 0 | I13: =Input!I65*(1+rvanilla)^0.5 -> 0 | J13: =Input!J65*(1+rvanilla)^0.5 -> 0 | K13: =Input!K65*(1+rvanilla)^0.5 -> 0 | L13: =Input!L65*(1+rvanilla)^0.5 -> 0 | M13: =Input!M65*(1+rvanilla)^0.5 -> 0 | N13: =Input!N65*(1+rvanilla)^0.5 -> 0 | O13: =Input!O65*(1+rvanilla)^0.5 -> 0 | P13: =Input!P65*(1+rvanilla)^0.5 -> 0
C14: =Asset4 -> 0 | G14: =Input!G66*(1+rvanilla)^0.5 -> 0 | H14: =Input!H66*(1+rvanilla)^0.5 -> 0 | I14: =Input!I66*(1+rvanilla)^0.5 -> 0 | J14: =Input!J66*(1+rvanilla)^0.5 -> 0 | K14: =Input!K66*(1+rvanilla)^0.5 -> 0 | L14: =Input!L66*(1+rvanilla)^0.5 -> 0 | M14: =Input!M66*(1+rvanilla)^0.5 -> 0 | N14: =Input!N66*(1+rvanilla)^0.5 -> 0 | O14: =Input!O66*(1+rvanilla)^0.5 -> 0 | P14: =Input!P66*(1+rvanilla)^0.5 -> 0
C15: =Asset5 -> 0 | G15: =Input!G67*(1+rvanilla)^0.5 -> 0 | H15: =Input!H67*(1+rvanilla)^0.5 -> 0 | I15: =Input!I67*(1+rvanilla)^0.5 -> 0 | J15: =Input!J67*(1+rvanilla)^0.5 -> 0 | K15: =Input!K67*(1+rvanilla)^0.5 -> 0 | L15: =Input!L67*(1+rvanilla)^0.5 -> 0 | M15: =Input!M67*(1+rvanilla)^0.5 -> 0 | N15: =Input!N67*(1+rvanilla)^0.5 -> 0 | O15: =Input!O67*(1+rvanilla)^0.5 -> 0 | P15: =Input!P67*(1+rvanilla)^0.5 -> 0
C16: =Asset6 -> 0 | G16: =Input!G68*(1+rvanilla)^0.5 -> 0 | H16: =Input!H68*(1+rvanilla)^0.5 -> 0 | I16: =Input!I68*(1+rvanilla)^0.5 -> 0 | J16: =Input!J68*(1+rvanilla)^0.5 -> 0 | K16: =Input!K68*(1+rvanilla)^0.5 -> 0 | L16: =Input!L68*(1+rvanilla)^0.5 -> 0 | M16: =Input!M68*(1+rvanilla)^0.5 -> 0 | N16: =Input!N68*(1+rvanilla)^0.5 -> 0 | O16: =Input!O68*(1+rvanilla)^0.5 -> 0 | P16: =Input!P68*(1+rvanilla)^0.5 -> 0
C17: =Asset7 -> 0 | G17: =Input!G69*(1+rvanilla)^0.5 -> 0 | H17: =Input!H69*(1+rvanilla)^0.5 -> 0 | I17: =Input!I69*(1+rvanilla)^0.5 -> 0 | J17: =Input!J69*(1+rvanilla)^0.5 -> 0 | K17: =Input!K69*(1+rvanilla)^0.5 -> 0 | L17: =Input!L69*(1+rvanilla)^0.5 -> 0 | M17: =Input!M69*(1+rvanilla)^0.5 -> 0 | N17: =Input!N69*(1+rvanilla)^0.5 -> 0 | O17: =Input!O69*(1+rvanilla)^0.5 -> 0 | P17: =Input!P69*(1+rvanilla)^0.5 -> 0
C18: =Asset8 -> 0 | G18: =Input!G70*(1+rvanilla)^0.5 -> 0 | H18: =Input!H70*(1+rvanilla)^0.5 -> 0 | I18: =Input!I70*(1+rvanilla)^0.5 -> 0 | J18: =Input!J70*(1+rvanilla)^0.5 -> 0 | K18: =Input!K70*(1+rvanilla)^0.5 -> 0 | L18: =Input!L70*(1+rvanilla)^0.5 -> 0 | M18: =Input!M70*(1+rvanilla)^0.5 -> 0 | N18: =Input!N70*(1+rvanilla)^0.5 -> 0 | O18: =Input!O70*(1+rvanilla)^0.5 -> 0 | P18: =Input!P70*(1+rvanilla)^0.5 -> 0
C19: =Asset9 -> 0 | G19: =Input!G71*(1+rvanilla)^0.5 -> 0 | H19: =Input!H71*(1+rvanilla)^0.5 -> 0 | I19: =Input!I71*(1+rvanilla)^0.5 -> 0 | J19: =Input!J71*(1+rvanilla)^0.5 -> 0 | K19: =Input!K71*(1+rvanilla)^0.5 -> 0 | L19: =Input!L71*(1+rvanilla)^0.5 -> 0 | M19: =Input!M71*(1+rvanilla)^0.5 -> 0 | N19: =Input!N71*(1+rvanilla)^0.5 -> 0 | O19: =Input!O71*(1+rvanilla)^0.5 -> 0 | P19: =Input!P71*(1+rvanilla)^0.5 -> 0
C20: =Asset10 -> 0 | G20: =Input!G72*(1+rvanilla)^0.5 -> 0 | H20: =Input!H72*(1+rvanilla)^0.5 -> 0 | I20: =Input!I72*(1+rvanilla)^0.5 -> 0 | J20: =Input!J72*(1+rvanilla)^0.5 -> 0 | K20: =Input!K72*(1+rvanilla)^0.5 -> 0 | L20: =Input!L72*(1+rvanilla)^0.5 -> 0 | M20: =Input!M72*(1+rvanilla)^0.5 -> 0 | N20: =Input!N72*(1+rvanilla)^0.5 -> 0 | O20: =Input!O72*(1+rvanilla)^0.5 -> 0 | P20: =Input!P72*(1+rvanilla)^0.5 -> 0
B21: Nominal Capex | G21: =SUM(G22:G31) -> 10.96146639 | H21: 4.512115946 | I21: 0.9288336116 | J21: 8.342137843 | K21: 8.593630036 | L21: 0 | M21: 0 | N21: 0 | O21: 0 | P21: 0
C22: =Asset1 -> Type 5 and 6 meters | G22: =G11*G$7 -> 10.96146639 | H22: 4.512115946 | I22: 0.9288336116 | J22: 8.342137843 | K22: 8.593630036 | L22: 0 | M22: 0 | N22: 0 | O22: 0 | P22: 0
C23: =Asset2 -> Equity raising costs | G23: =G12*G$7 -> 0 | H23: 0 | I23: 0 | J23: 0 | K23: 0 | L23: 0 | M23: 0 | N23: 0 | O23: 0 | P23: 0
C24: =Asset3 -> 0 | G24: =G13*G$7 -> 0 | H24: 0 | I24: 0 | J24: 0 | K24: 0 | L24: 0 | M24: 0 | N24: 0 | O24: 0 | P24: 0
C25: =Asset4 -> 0 | G25: =G14*G$7 -> 0 | H25: 0 | I25: 0 | J25: 0 | K25: 0 | L25: 0 | M25: 0 | N25: 0 | O25: 0 | P25: 0
C26: =Asset5 -> 0 | G26: =G15*G$7 -> 0 | H26: 0 | I26: 0 | J26: 0 | K26: 0 | L26: 0 | M26: 0 | N26: 0 | O26: 0 | P26: 0
C27: =Asset6 -> 0 | G27: =G16*G$7 -> 0 | H27: 0 | I27: 0 | J27: 0 | K27: 0 | L27: 0 | M27: 0 | N27: 0 | O27: 0 | P27: 0
C28: =Asset7 -> 0 | G28: =G17*G$7 -> 0 | H28: 0 | I28: 0 | J28: 0 | K28: 0 | L28: 0 | M28: 0 | N28: 0 | O28: 0 | P28: 0
C29: =Asset8 -> 0 | G29: =G18*G$7 -> 0 | H29: 0 | I29: 0 | J29: 0 | K29: 0 | L29: 0 | M29: 0 | N29: 0 | O29: 0 | P29: 0
C30: =Asset9 -> 0 | G30: =G19*G$7 -> 0 | H30: 0 | I30: 0 | J30: 0 | K30: 0 | L30: 0 | M30: 0 | N30: 0 | O30: 0 | P30: 0
C31: =Asset10 -> 0 | G31: =G20*G$7 -> 0 | H31: 0 | I31: 0 | J31: 0 | K31: 0 | L31: 0 | M31: 0 | N31: 0 | O31: 0 | P31: 0
B33: Real Asset Values
B35: Real Straight-line Depreciation | G35: =G48+G61+G74+G87+G100+G113+G126+G139+G152 -> 5.828603853 | H35: =H48+H61+H74+H87+H100+H113+H126+H139+H152 -> 6.541544756 | I35: 6.827857884 | J35: 6.88535884 | K35: 7.389196517 | L35: 7.895564301 | M35: 7.895564301 | N35: 7.895564301 | O35: 7.895564301 | P35: 7.895564301
B36: =C48 -> Type 5 and 6 meters | D36: Initial Asset Base | G36: =IF(G$3>A1remlife,A1value-SUM($F36:F36),IF(A1remlife="N/A","n/a",A1value/A1remlife)) -> 5.828603853 | H36: =IF(H$3>A1remlife,A1value-SUM($F36:G36),IF(A1remlife="N/A","n/a",A1value/A1remlife)) -> 5.828603853 | I36: =IF(I$3>A1remlife,A1value-SUM($F36:H36),IF(A1remlife="N/A","n/a",A1value/A1remlife)) -> 5.828603853 | J36: =IF(J$3>A1remlife,A1value-SUM($F36:I36),IF(A1remlife="N/A","n/a",A1value/A1remlife)) -> 5.828603853 | K36: =IF(K$3>A1remlife,A1value-SUM($F36:J36),IF(A1remlife="N/A","n/a",A1value/A1remlife)) -> 5.828603853 | L36: =IF(L$3>A1remlife,A1value-SUM($F36:K36),IF(A1remlife="N/A","n/a",A1value/A1remlife)) -> 5.828603853 | M36: =IF(M$3>A1remlife,A1value-SUM($F36:L36),IF(A1remlife="N/A","n/a",A1value/A1remlife)) -> 5.828603853 | N36: =IF(N$3>A1remlife,A1value-SUM($F36:M36),IF(A1remlife="N/A","n/a",A1value/A1remlife)) -> 5.828603853 | O36: =IF(O$3>A1remlife,A1value-SUM($F36:N36),IF(A1remlife="N/A","n/a",A1value/A1remlife)) -> 5.828603853 | P36: =IF(P$3>A1remlife,A1value-SUM($F36:O36),IF(A1remlife="N/A","n/a",A1value/A1remlife)) -> 5.828603853
D37: Capex | E37: 0
E38: 1 | H38: =IF(A1stdlife="n/a","n/a",IF(H$3>(A1stdlife+$E38),(Input!$G$63*(1+rvanilla)^0.5)-SUM($G38:G38),(Input!$G$63*(1+rvanilla)^0.5)/A1stdlife)) -> 0.7129409031 | I38: =IF(A1stdlife="n/a","n/a",IF(I$3>(A1stdlife+$E38),(Input!$G$63*(1+rvanilla)^0.5)-SUM($G38:H38),(Input!$G$63*(1+rvanilla)^0.5)/A1stdlife)) -> 0.7129409031 | J38: =IF(A1stdlife="n/a","n/a",IF(J$3>(A1stdlife+$E38),(Input!$G$63*(1+rvanilla)^0.5)-SUM($G38:I38),(Input!$G$63*(1+rvanilla)^0.5)/A1stdlife)) -> 0.7129409031 | K38: =IF(A1stdlife="n/a","n/a",IF(K$3>(A1stdlife+$E38),(Input!$G$63*(1+rvanilla)^0.5)-SUM($G38:J38),(Input!$G$63*(1+rvanilla)^0.5)/A1stdlife)) -> 0.7129409031 | L38: =IF(A1stdlife="n/a","n/a",IF(L$3>(A1stdlife+$E38),(Input!$G$63*(1+rvanilla)^0.5)-SUM($G38:K38),(Input!$G$63*(1+rvanilla)^0.5)/A1stdlife)) -> 0.7129409031 | M38: =IF(A1stdlife="n/a","n/a",IF(M$3>(A1stdlife+$E38),(Input!$G$63*(1+rvanilla)^0.5)-SUM($G38:L38),(Input!$G$63*(1+rvanilla)^0.5)/A1stdlife)) -> 0.7129409031 | N38: =IF(A1stdlife="n/a","n/a",IF(N$3>(A1stdlife+$E38),(Input!$G$63*(1+rvanilla)^0.5)-SUM($G38:M38),(Input!$G$63*(1+rvanilla)^0.5)/A1stdlife)) -> 0.7129409031 | O38: =IF(A1stdlife="n/a","n/a",IF(O$3>(A1stdlife+$E38),(Input!$G$63*(1+rvanilla)^0.5)-SUM($G38:N38),(Input!$G$63*(1+rvanilla)^0.5)/A1stdlife)) -> 0.7129409031 | P38: =IF(A1stdlife="n/a","n/a",IF(P$3>(A1stdlife+$E38),(Input!$G$63*(1+rvanilla)^0.5)-SUM($G38:O38),(Input!$G$63*(1+rvanilla)^0.5)/A1stdlife)) -> 0.7129409031
E39: 2 | I39: =IF(A1stdlife="n/a","n/a",IF(I$3>(A1stdlife+$E39),(Input!$H$63*(1+rvanilla)^0.5)-SUM($H39:H39),(Input!$H$63*(1+rvanilla)^0.5)/A1stdlife)) -> 0.2863131277 | J39: =IF(A1stdlife="n/a","n/a",IF(J$3>(A1stdlife+$E39),(Input!$H$63*(1+rvanilla)^0.5)-SUM($H39:I39),(Input!$H$63*(1+rvanilla)^0.5)/A1stdlife)) -> 0.2863131277 | K39: =IF(A1stdlife="n/a","n/a",IF(K$3>(A1stdlife+$E39),(Input!$H$63*(1+rvanilla)^0.5)-SUM($H39:J39),(Input!$H$63*(1+rvanilla)^0.5)/A1stdlife)) -> 0.2863131277 | L39: =IF(A1stdlife="n/a","n/a",IF(L$3>(A1stdlife+$E39),(Input!$H$63*(1+rvanilla)^0.5)-SUM($H39:K39),(Input!$H$63*(1+rvanilla)^0.5)/A1stdlife)) -> 0.2863131277 | M39: =IF(A1stdlife="n/a","n/a",IF(M$3>(A1stdlife+$E39),(Input!$H$63*(1+rvanilla)^0.5)-SUM($H39:L39),(Input!$H$63*(1+rvanilla)^0.5)/A1stdlife)) -> 0.2863131277 | N39: =IF(A1stdlife="n/a","n/a",IF(N$3>(A1stdlife+$E39),(Input!$H$63*(1+rvanilla)^0.5)-SUM($H39:M39),(Input!$H$63*(1+rvanilla)^0.5)/A1stdlife)) -> 0.2863131277 | O39: =IF(A1stdlife="n/a","n/a",IF(O$3>(A1stdlife+$E39),(Input!$H$63*(1+rvanilla)^0.5)-SUM($H39:N39),(Input!$H$63*(1+rvanilla)^0.5)/A1stdlife)) -> 0.2863131277 | P39: =IF(A1stdlife="n/a","n/a",IF(P$3>(A1stdlife+$E39),(Input!$H$63*(1+rvanilla)^0.5)-SUM($H39:O39),(Input!$H$63*(1+rvanilla)^0.5)/A1stdlife)) -> 0.2863131277
E40: 3 | J40: =IF(A1stdlife="n/a","n/a",IF(J$3>(A1stdlife+$E40),(Input!$I$63*(1+rvanilla)^0.5)-SUM($I40:I40),(Input!$I$63*(1+rvanilla)^0.5)/A1stdlife)) -> 0.05750095631 | K40: =IF(A1stdlife="n/a","n/a",IF(K$3>(A1stdlife+$E40),(Input!$I$63*(1+rvanilla)^0.5)-SUM($I40:J40),(Input!$I$63*(1+rvanilla)^0.5)/A1stdlife)) -> 0.05750095631 | L40: =IF(A1stdlife="n/a","n/a",IF(L$3>(A1stdlife+$E40),(Input!$I$63*(1+rvanilla)^0.5)-SUM($I40:K40),(Input!$I$63*(1+rvanilla)^0.5)/A1stdlife)) -> 0.05750095631 | M40: =IF(A1stdlife="n/a","n/a",IF(M$3>(A1stdlife+$E40),(Input!$I$63*(1+rvanilla)^0.5)-SUM($I40:L40),(Input!$I$63*(1+rvanilla)^0.5)/A1stdlife)) -> 0.05750095631 | N40: =IF(A1stdlife="n/a","n/a",IF(N$3>(A1stdlife+$E40),(Input!$I$63*(1+rvanilla)^0.5)-SUM($I40:M40),(Input!$I$63*(1+rvanilla)^0.5)/A1stdlife)) -> 0.05750095631 | O40: =IF(A1stdlife="n/a","n/a",IF(O$3>(A1stdlife+$E40),(Input!$I$63*(1+rvanilla)^0.5)-SUM($I40:N40),(Input!$I$63*(1+rvanilla)^0.5)/A1stdlife)) -> 0.05750095631 | P40: =IF(A1stdlife="n/a","n/a",IF(P$3>(A1stdlife+$E40),(Input!$I$63*(1+rvanilla)^0.5)-SUM($I40:O40),(Input!$I$63*(1+rvanilla)^0.5)/A1stdlife)) -> 0.05750095631
E41: 4 | K41: =IF(A1stdlife="n/a","n/a",IF(K$3>(A1stdlife+$E41),(Input!$J$63*(1+rvanilla)^0.5)-SUM($J41:J41),(Input!$J$63*(1+rvanilla)^0.5)/A1stdlife)) -> 0.5038376772 | L41: =IF(A1stdlife="n/a","n/a",IF(L$3>(A1stdlife+$E41),(Input!$J$63*(1+rvanilla)^0.5)-SUM($J41:K41),(Input!$J$63*(1+rvanilla)^0.5)/A1stdlife)) -> 0.5038376772 | M41: =IF(A1stdlife="n/a","n/a",IF(M$3>(A1stdlife+$E41),(Input!$J$63*(1+rvanilla)^0.5)-SUM($J41:L41),(Input!$J$63*(1+rvanilla)^0.5)/A1stdlife)) -> 0.5038376772 | N41: =IF(A1stdlife="n/a","n/a",IF(N$3>(A1stdlife+$E41),(Input!$J$63*(1+rvanilla)^0.5)-SUM($J41:M41),(Input!$J$63*(1+rvanilla)^0.5)/A1stdlife)) -> 0.5038376772 | O41: =IF(A1stdlife="n/a","n/a",IF(O$3>(A1stdlife+$E41),(Input!$J$63*(1+rvanilla)^0.5)-SUM($J41:N41),(Input!$J$63*(1+rvanilla)^0.5)/A1stdlife)) -> 0.5038376772 | P41: =IF(A1stdlife="n/a","n/a",IF(P$3>(A1stdlife+$E41),(Input!$J$63*(1+rvanilla)^0.5)-SUM($J41:O41),(Input!$J$63*(1+rvanilla)^0.5)/A1stdlife)) -> 0.5038376772
E42: 5 | L42: =IF(A1stdlife="n/a","n/a",IF(L$3>(A1stdlife+$E42),(Input!$K$63*(1+rvanilla)^0.5)-SUM($K42:K42),(Input!$K$63*(1+rvanilla)^0.5)/A1stdlife)) -> 0.5063677836 | M42: =IF(A1stdlife="n/a","n/a",IF(M$3>(A1stdlife+$E42),(Input!$K$63*(1+rvanilla)^0.5)-SUM($K42:L42),(Input!$K$63*(1+rvanilla)^0.5)/A1stdlife)) -> 0.5063677836 | N42: =IF(A1stdlife="n/a","n/a",IF(N$3>(A1stdlife+$E42),(Input!$K$63*(1+rvanilla)^0.5)-SUM($K42:M42),(Input!$K$63*(1+rvanilla)^0.5)/A1stdlife)) -> 0.5063677836 | O42: =IF(A1stdlife="n/a","n/a",IF(O$3>(A1stdlife+$E42),(Input!$K$63*(1+rvanilla)^0.5)-SUM($K42:N42),(Input!$K$63*(1+rvanilla)^0.5)/A1stdlife)) -> 0.5063677836 | P42: =IF(A1stdlife="n/a","n/a",IF(P$3>(A1stdlife+$E42),(Input!$K$63*(1+rvanilla)^0.5)-SUM($K42:O42),(Input!$K$63*(1+rvanilla)^0.5)/A1stdlife)) -> 0.5063677836
E43: 6 | M43: =IF(A1stdlife="n/a","n/a",IF(M$3>(A1stdlife+$E43),(Input!$L$63*(1+rvanilla)^0.5)-SUM($L43:L43),(Input!$L$63*(1+rvanilla)^0.5)/A1stdlife)) -> 0 | N43: =IF(A1stdlife="n/a","n/a",IF(N$3>(A1stdlife+$E43),(Input!$L$63*(1+rvanilla)^0.5)-SUM($L43:M43),(Input!$L$63*(1+rvanilla)^0.5)/A1stdlife)) -> 0 | O43: =IF(A1stdlife="n/a","n/a",IF(O$3>(A1stdlife+$E43),(Input!$L$63*(1+rvanilla)^0.5)-SUM($L43:N43),(Input!$L$63*(1+rvanilla)^0.5)/A1stdlife)) -> 0 | P43: =IF(A1stdlife="n/a","n/a",IF(P$3>(A1stdlife+$E43),(Input!$L$63*(1+rvanilla)^0.5)-SUM($L43:O43),(Input!$L$63*(1+rvanilla)^0.5)/A1stdlife)) -> 0
E44: 7 | N44: =IF(A1stdlife="n/a","n/a",IF(N$3>(A1stdlife+$E44),(Input!$M$63*(1+rvanilla)^0.5)-SUM($M44:M44),(Input!$M$63*(1+rvanilla)^0.5)/A1stdlife)) -> 0 | O44: =IF(A1stdlife="n/a","n/a",IF(O$3>(A1stdlife+$E44),(Input!$M$63*(1+rvanilla)^0.5)-SUM($M44:N44),(Input!$M$63*(1+rvanilla)^0.5)/A1stdlife)) -> 0 | P44: =IF(A1stdlife="n/a","n/a",IF(P$3>(A1stdlife+$E44),(Input!$M$63*(1+rvanilla)^0.5)-SUM($M44:O44),(Input!$M$63*(1+rvanilla)^0.5)/A1stdlife)) -> 0
E45: 8 | O45: =IF(A1stdlife="n/a","n/a",IF(O$3>(A1stdlife+$E45),(Input!$N$63*(1+rvanilla)^0.5)-SUM($N45:N45),(Input!$N$63*(1+rvanilla)^0.5)/A1stdlife)) -> 0 | P45: =IF(A1stdlife="n/a","n/a",IF(P$3>(A1stdlife+$E45),(Input!$N$63*(1+rvanilla)^0.5)-SUM($N45:O45),(Input!$N$63*(1+rvanilla)^0.5)/A1stdlife)) -> 0
E46: 9 | P46: =IF(A1stdlife="n/a","n/a",IF(P$3>(A1stdlife+$E46),(Input!$O$63*(1+rvanilla)^0.5)-SUM($O46:O46),(Input!$O$63*(1+rvanilla)^0.5)/A1stdlife)) -> 0
E47: 10
C48: =Asset1 -> Type 5 and 6 meters | G48: =SUM(G36:G47) -> 5.828603853 | H48: =SUM(H36:H47) -> 6.541544756 | I48: =SUM(I36:I47) -> 6.827857884 | J48: 6.88535884 | K48: 7.389196517 | L48: 7.895564301 | M48: 7.895564301 | N48: 7.895564301 | O48: 7.895564301 | P48: 7.895564301
B49: =C61 -> Equity raising costs | D49: Initial Asset Base | G49: =IF(G$3>A2remlife,A2value-SUM($F49:F49),IF(A2remlife="N/A","n/a",A2value/A2remlife)) -> 0 | H49: =IF(H$3>A2remlife,A2value-SUM($F49:G49),IF(A2remlife="N/A","n/a",A2value/A2remlife)) -> 0 | I49: =IF(I$3>A2remlife,A2value-SUM($F49:H49),IF(A2remlife="N/A","n/a",A2value/A2remlife)) -> 0 | J49: =IF(J$3>A2remlife,A2value-SUM($F49:I49),IF(A2remlife="N/A","n/a",A2value/A2remlife)) -> 0 | K49: =IF(K$3>A2remlife,A2value-SUM($F49:J49),IF(A2remlife="N/A","n/a",A2value/A2remlife)) -> 0 | L49: =IF(L$3>A2remlife,A2value-SUM($F49:K49),IF(A2remlife="N/A","n/a",A2value/A2remlife)) -> 0 | M49: =IF(M$3>A2remlife,A2value-SUM($F49:L49),IF(A2remlife="N/A","n/a",A2value/A2remlife)) -> 0 | N49: =IF(N$3>A2remlife,A2value-SUM($F49:M49),IF(A2remlife="N/A","n/a",A2value/A2remlife)) -> 0 | O49: =IF(O$3>A2remlife,A2value-SUM($F49:N49),IF(A2remlife="N/A","n/a",A2value/A2remlife)) -> 0 | P49: =IF(P$3>A2remlife,A2value-SUM($F49:O49),IF(A2remlife="N/A","n/a",A2value/A2remlife)) -> 0
D50: Capex | E50: 0
E51: 1 | H51: =IF(A2stdlife="n/a","n/a",IF(H$3>(A2stdlife+$E51),(Input!$G$64*(1+rvanilla)^0.5)-SUM($G51:G51),(Input!$G$64*(1+rvanilla)^0.5)/A2stdlife)) -> 0 | I51: =IF(A2stdlife="n/a","n/a",IF(I$3>(A2stdlife+$E51),(Input!$G$64*(1+rvanilla)^0.5)-SUM($G51:H51),(Input!$G$64*(1+rvanilla)^0.5)/A2stdlife)) -> 0 | J51: =IF(A2stdlife="n/a","n/a",IF(J$3>(A2stdlife+$E51),(Input!$G$64*(1+rvanilla)^0.5)-SUM($G51:I51),(Input!$G$64*(1+rvanilla)^0.5)/A2stdlife)) -> 0 | K51: =IF(A2stdlife="n/a","n/a",IF(K$3>(A2stdlife+$E51),(Input!$G$64*(1+rvanilla)^0.5)-SUM($G51:J51),(Input!$G$64*(1+rvanilla)^0.5)/A2stdlife)) -> 0 | L51: =IF(A2stdlife="n/a","n/a",IF(L$3>(A2stdlife+$E51),(Input!$G$64*(1+rvanilla)^0.5)-SUM($G51:K51),(Input!$G$64*(1+rvanilla)^0.5)/A2stdlife)) -> 0 | M51: =IF(A2stdlife="n/a","n/a",IF(M$3>(A2stdlife+$E51),(Input!$G$64*(1+rvanilla)^0.5)-SUM($G51:L51),(Input!$G$64*(1+rvanilla)^0.5)/A2stdlife)) -> 0 | N51: =IF(A2stdlife="n/a","n/a",IF(N$3>(A2stdlife+$E51),(Input!$G$64*(1+rvanilla)^0.5)-SUM($G51:M51),(Input!$G$64*(1+rvanilla)^0.5)/A2stdlife)) -> 0 | O51: =IF(A2stdlife="n/a","n/a",IF(O$3>(A2stdlife+$E51),(Input!$G$64*(1+rvanilla)^0.5)-SUM($G51:N51),(Input!$G$64*(1+rvanilla)^0.5)/A2stdlife)) -> 0 | P51: =IF(A2stdlife="n/a","n/a",IF(P$3>(A2stdlife+$E51),(Input!$G$64*(1+rvanilla)^0.5)-SUM($G51:O51),(Input!$G$64*(1+rvanilla)^0.5)/A2stdlife)) -> 0
E52: 2 | I52: =IF(A2stdlife="n/a","n/a",IF(I$3>(A2stdlife+$E52),(Input!$H$64*(1+rvanilla)^0.5)-SUM($H52:H52),(Input!$H$64*(1+rvanilla)^0.5)/A2stdlife)) -> 0 | J52: =IF(A2stdlife="n/a","n/a",IF(J$3>(A2stdlife+$E52),(Input!$H$64*(1+rvanilla)^0.5)-SUM($H52:I52),(Input!$H$64*(1+rvanilla)^0.5)/A2stdlife)) -> 0 | K52: =IF(A2stdlife="n/a","n/a",IF(K$3>(A2stdlife+$E52),(Input!$H$64*(1+rvanilla)^0.5)-SUM($H52:J52),(Input!$H$64*(1+rvanilla)^0.5)/A2stdlife)) -> 0 | L52: =IF(A2stdlife="n/a","n/a",IF(L$3>(A2stdlife+$E52),(Input!$H$64*(1+rvanilla)^0.5)-SUM($H52:K52),(Input!$H$64*(1+rvanilla)^0.5)/A2stdlife)) -> 0 | M52: =IF(A2stdlife="n/a","n/a",IF(M$3>(A2stdlife+$E52),(Input!$H$64*(1+rvanilla)^0.5)-SUM($H52:L52),(Input!$H$64*(1+rvanilla)^0.5)/A2stdlife)) -> 0 | N52: =IF(A2stdlife="n/a","n/a",IF(N$3>(A2stdlife+$E52),(Input!$H$64*(1+rvanilla)^0.5)-SUM($H52:M52),(Input!$H$64*(1+rvanilla)^0.5)/A2stdlife)) -> 0 | O52: =IF(A2stdlife="n/a","n/a",IF(O$3>(A2stdlife+$E52),(Input!$H$64*(1+rvanilla)^0.5)-SUM($H52:N52),(Input!$H$64*(1+rvanilla)^0.5)/A2stdlife)) -> 0 | P52: =IF(A2stdlife="n/a","n/a",IF(P$3>(A2stdlife+$E52),(Input!$H$64*(1+rvanilla)^0.5)-SUM($H52:O52),(Input!$H$64*(1+rvanilla)^0.5)/A2stdlife)) -> 0
E53: 3 | J53: =IF(A2stdlife="n/a","n/a",IF(J$3>(A2stdlife+$E53),(Input!$I$64*(1+rvanilla)^0.5)-SUM($I53:I53),(Input!$I$64*(1+rvanilla)^0.5)/A2stdlife)) -> 0 | K53: =IF(A2stdlife="n/a","n/a",IF(K$3>(A2stdlife+$E53),(Input!$I$64*(1+rvanilla)^0.5)-SUM($I53:J53),(Input!$I$64*(1+rvanilla)^0.5)/A2stdlife)) -> 0 | L53: =IF(A2stdlife="n/a","n/a",IF(L$3>(A2stdlife+$E53),(Input!$I$64*(1+rvanilla)^0.5)-SUM($I53:K53),(Input!$I$64*(1+rvanilla)^0.5)/A2stdlife)) -> 0 | M53: =IF(A2stdlife="n/a","n/a",IF(M$3>(A2stdlife+$E53),(Input!$I$64*(1+rvanilla)^0.5)-SUM($I53:L53),(Input!$I$64*(1+rvanilla)^0.5)/A2stdlife)) -> 0 | N53: =IF(A2stdlife="n/a","n/a",IF(N$3>(A2stdlife+$E53),(Input!$I$64*(1+rvanilla)^0.5)-SUM($I53:M53),(Input!$I$64*(1+rvanilla)^0.5)/A2stdlife)) -> 0 | O53: =IF(A2stdlife="n/a","n/a",IF(O$3>(A2stdlife+$E53),(Input!$I$64*(1+rvanilla)^0.5)-SUM($I53:N53),(Input!$I$64*(1+rvanilla)^0.5)/A2stdlife)) -> 0 | P53: =IF(A2stdlife="n/a","n/a",IF(P$3>(A2stdlife+$E53),(Input!$I$64*(1+rvanilla)^0.5)-SUM($I53:O53),(Input!$I$64*(1+rvanilla)^0.5)/A2stdlife)) -> 0
E54: 4 | K54: =IF(A2stdlife="n/a","n/a",IF(K$3>(A2stdlife+$E54),(Input!$J$64*(1+rvanilla)^0.5)-SUM($J54:J54),(Input!$J$64*(1+rvanilla)^0.5)/A2stdlife)) -> 0 | L54: =IF(A2stdlife="n/a","n/a",IF(L$3>(A2stdlife+$E54),(Input!$J$64*(1+rvanilla)^0.5)-SUM($J54:K54),(Input!$J$64*(1+rvanilla)^0.5)/A2stdlife)) -> 0 | M54: =IF(A2stdlife="n/a","n/a",IF(M$3>(A2stdlife+$E54),(Input!$J$64*(1+rvanilla)^0.5)-SUM($J54:L54),(Input!$J$64*(1+rvanilla)^0.5)/A2stdlife)) -> 0 | N54: =IF(A2stdlife="n/a","n/a",IF(N$3>(A2stdlife+$E54),(Input!$J$64*(1+rvanilla)^0.5)-SUM($J54:M54),(Input!$J$64*(1+rvanilla)^0.5)/A2stdlife)) -> 0 | O54: =IF(A2stdlife="n/a","n/a",IF(O$3>(A2stdlife+$E54),(Input!$J$64*(1+rvanilla)^0.5)-SUM($J54:N54),(Input!$J$64*(1+rvanilla)^0.5)/A2stdlife)) -> 0 | P54: =IF(A2stdlife="n/a","n/a",IF(P$3>(A2stdlife+$E54),(Input!$J$64*(1+rvanilla)^0.5)-SUM($J54:O54),(Input!$J$64*(1+rvanilla)^0.5)/A2stdlife)) -> 0
E55: 5 | L55: =IF(A2stdlife="n/a","n/a",IF(L$3>(A2stdlife+$E55),(Input!$K$64*(1+rvanilla)^0.5)-SUM($K55:K55),(Input!$K$64*(1+rvanilla)^0.5)/A2stdlife)) -> 0 | M55: =IF(A2stdlife="n/a","n/a",IF(M$3>(A2stdlife+$E55),(Input!$K$64*(1+rvanilla)^0.5)-SUM($K55:L55),(Input!$K$64*(1+rvanilla)^0.5)/A2stdlife)) -> 0 | N55: =IF(A2stdlife="n/a","n/a",IF(N$3>(A2stdlife+$E55),(Input!$K$64*(1+rvanilla)^0.5)-SUM($K55:M55),(Input!$K$64*(1+rvanilla)^0.5)/A2stdlife)) -> 0 | O55: =IF(A2stdlife="n/a","n/a",IF(O$3>(A2stdlife+$E55),(Input!$K$64*(1+rvanilla)^0.5)-SUM($K55:N55),(Input!$K$64*(1+rvanilla)^0.5)/A2stdlife)) -> 0 | P55: =IF(A2stdlife="n/a","n/a",IF(P$3>(A2stdlife+$E55),(Input!$K$64*(1+rvanilla)^0.5)-SUM($K55:O55),(Input!$K$64*(1+rvanilla)^0.5)/A2stdlife)) -> 0
E56: 6 | M56: =IF(A2stdlife="n/a","n/a",IF(M$3>(A2stdlife+$E56),(Input!$L$64*(1+rvanilla)^0.5)-SUM($L56:L56),(Input!$L$64*(1+rvanilla)^0.5)/A2stdlife)) -> 0 | N56: =IF(A2stdlife="n/a","n/a",IF(N$3>(A2stdlife+$E56),(Input!$L$64*(1+rvanilla)^0.5)-SUM($L56:M56),(Input!$L$64*(1+rvanilla)^0.5)/A2stdlife)) -> 0 | O56: =IF(A2stdlife="n/a","n/a",IF(O$3>(A2stdlife+$E56),(Input!$L$64*(1+rvanilla)^0.5)-SUM($L56:N56),(Input!$L$64*(1+rvanilla)^0.5)/A2stdlife)) -> 0 | P56: =IF(A2stdlife="n/a","n/a",IF(P$3>(A2stdlife+$E56),(Input!$L$64*(1+rvanilla)^0.5)-SUM($L56:O56),(Input!$L$64*(1+rvanilla)^0.5)/A2stdlife)) -> 0
E57: 7 | N57: =IF(A2stdlife="n/a","n/a",IF(N$3>(A2stdlife+$E57),(Input!$M$64*(1+rvanilla)^0.5)-SUM($M57:M57),(Input!$M$64*(1+rvanilla)^0.5)/A2stdlife)) -> 0 | O57: =IF(A2stdlife="n/a","n/a",IF(O$3>(A2stdlife+$E57),(Input!$M$64*(1+rvanilla)^0.5)-SUM($M57:N57),(Input!$M$64*(1+rvanilla)^0.5)/A2stdlife)) -> 0 | P57: =IF(A2stdlife="n/a","n/a",IF(P$3>(A2stdlife+$E57),(Input!$M$64*(1+rvanilla)^0.5)-SUM($M57:O57),(Input!$M$64*(1+rvanilla)^0.5)/A2stdlife)) -> 0
E58: 8 | O58: =IF(A2stdlife="n/a","n/a",IF(O$3>(A2stdlife+$E58),(Input!$N$64*(1+rvanilla)^0.5)-SUM($N58:N58),(Input!$N$64*(1+rvanilla)^0.5)/A2stdlife)) -> 0 | P58: =IF(A2stdlife="n/a","n/a",IF(P$3>(A2stdlife+$E58),(Input!$N$64*(1+rvanilla)^0.5)-SUM($N58:O58),(Input!$N$64*(1+rvanilla)^0.5)/A2stdlife)) -> 0
E59: 9 | P59: =IF(A2stdlife="n/a","n/a",IF(P$3>(A2stdlife+$E59),(Input!$O$64*(1+rvanilla)^0.5)-SUM($O59:O59),(Input!$O$64*(1+rvanilla)^0.5)/A2stdlife)) -> 0
E60: 10
C61: =Asset2 -> Equity raising costs | G61: =SUM(G49:G60) -> 0 | H61: =SUM(H49:H60) -> 0 | I61: 0 | J61: 0 | K61: 0 | L61: 0 | M61: 0 | N61: 0 | O61: 0 | P61: 0
B62: =C74 -> 0 | D62: Initial Asset Base | G62: =IF(G$3>A3remlife,A3value-SUM($F62:F62),IF(A3remlife="N/A","n/a",A3value/A3remlife)) -> 0 | H62: =IF(H$3>A3remlife,A3value-SUM($F62:G62),IF(A3remlife="N/A","n/a",A3value/A3remlife)) -> 0 | I62: =IF(I$3>A3remlife,A3value-SUM($F62:H62),IF(A3remlife="N/A","n/a",A3value/A3remlife)) -> 0 | J62: =IF(J$3>A3remlife,A3value-SUM($F62:I62),IF(A3remlife="N/A","n/a",A3value/A3remlife)) -> 0 | K62: =IF(K$3>A3remlife,A3value-SUM($F62:J62),IF(A3remlife="N/A","n/a",A3value/A3remlife)) -> 0 | L62: =IF(L$3>A3remlife,A3value-SUM($F62:K62),IF(A3remlife="N/A","n/a",A3value/A3remlife)) -> 0 | M62: =IF(M$3>A3remlife,A3value-SUM($F62:L62),IF(A3remlife="N/A","n/a",A3value/A3remlife)) -> 0 | N62: =IF(N$3>A3remlife,A3value-SUM($F62:M62),IF(A3remlife="N/A","n/a",A3value/A3remlife)) -> 0 | O62: =IF(O$3>A3remlife,A3value-SUM($F62:N62),IF(A3remlife="N/A","n/a",A3value/A3remlife)) -> 0 | P62: =IF(P$3>A3remlife,A3value-SUM($F62:O62),IF(A3remlife="N/A","n/a",A3value/A3remlife)) -> 0
D63: Capex | E63: 0
E64: 1 | H64: =IF(A3stdlife="n/a","n/a",IF(H$3>(A3stdlife+$E64),(Input!$G$65*(1+rvanilla)^0.5)-SUM($G64:G64),(Input!$G$65*(1+rvanilla)^0.5)/A3stdlife)) -> 0 | I64: =IF(A3stdlife="n/a","n/a",IF(I$3>(A3stdlife+$E64),(Input!$G$65*(1+rvanilla)^0.5)-SUM($G64:H64),(Input!$G$65*(1+rvanilla)^0.5)/A3stdlife)) -> 0 | J64: =IF(A3stdlife="n/a","n/a",IF(J$3>(A3stdlife+$E64),(Input!$G$65*(1+rvanilla)^0.5)-SUM($G64:I64),(Input!$G$65*(1+rvanilla)^0.5)/A3stdlife)) -> 0 | K64: =IF(A3stdlife="n/a","n/a",IF(K$3>(A3stdlife+$E64),(Input!$G$65*(1+rvanilla)^0.5)-SUM($G64:J64),(Input!$G$65*(1+rvanilla)^0.5)/A3stdlife)) -> 0 | L64: =IF(A3stdlife="n/a","n/a",IF(L$3>(A3stdlife+$E64),(Input!$G$65*(1+rvanilla)^0.5)-SUM($G64:K64),(Input!$G$65*(1+rvanilla)^0.5)/A3stdlife)) -> 0 | M64: =IF(A3stdlife="n/a","n/a",IF(M$3>(A3stdlife+$E64),(Input!$G$65*(1+rvanilla)^0.5)-SUM($G64:L64),(Input!$G$65*(1+rvanilla)^0.5)/A3stdlife)) -> 0 | N64: =IF(A3stdlife="n/a","n/a",IF(N$3>(A3stdlife+$E64),(Input!$G$65*(1+rvanilla)^0.5)-SUM($G64:M64),(Input!$G$65*(1+rvanilla)^0.5)/A3stdlife)) -> 0 | O64: =IF(A3stdlife="n/a","n/a",IF(O$3>(A3stdlife+$E64),(Input!$G$65*(1+rvanilla)^0.5)-SUM($G64:N64),(Input!$G$65*(1+rvanilla)^0.5)/A3stdlife)) -> 0 | P64: =IF(A3stdlife="n/a","n/a",IF(P$3>(A3stdlife+$E64),(Input!$G$65*(1+rvanilla)^0.5)-SUM($G64:O64),(Input!$G$65*(1+rvanilla)^0.5)/A3stdlife)) -> 0
E65: 2 | I65: =IF(A3stdlife="n/a","n/a",IF(I$3>(A3stdlife+$E65),(Input!$H$65*(1+rvanilla)^0.5)-SUM($H65:H65),(Input!$H$65*(1+rvanilla)^0.5)/A3stdlife)) -> 0 | J65: =IF(A3stdlife="n/a","n/a",IF(J$3>(A3stdlife+$E65),(Input!$H$65*(1+rvanilla)^0.5)-SUM($H65:I65),(Input!$H$65*(1+rvanilla)^0.5)/A3stdlife)) -> 0 | K65: =IF(A3stdlife="n/a","n/a",IF(K$3>(A3stdlife+$E65),(Input!$H$65*(1+rvanilla)^0.5)-SUM($H65:J65),(Input!$H$65*(1+rvanilla)^0.5)/A3stdlife)) -> 0 | L65: =IF(A3stdlife="n/a","n/a",IF(L$3>(A3stdlife+$E65),(Input!$H$65*(1+rvanilla)^0.5)-SUM($H65:K65),(Input!$H$65*(1+rvanilla)^0.5)/A3stdlife)) -> 0 | M65: =IF(A3stdlife="n/a","n/a",IF(M$3>(A3stdlife+$E65),(Input!$H$65*(1+rvanilla)^0.5)-SUM($H65:L65),(Input!$H$65*(1+rvanilla)^0.5)/A3stdlife)) -> 0 | N65: =IF(A3stdlife="n/a","n/a",IF(N$3>(A3stdlife+$E65),(Input!$H$65*(1+rvanilla)^0.5)-SUM($H65:M65),(Input!$H$65*(1+rvanilla)^0.5)/A3stdlife)) -> 0 | O65: =IF(A3stdlife="n/a","n/a",IF(O$3>(A3stdlife+$E65),(Input!$H$65*(1+rvanilla)^0.5)-SUM($H65:N65),(Input!$H$65*(1+rvanilla)^0.5)/A3stdlife)) -> 0 | P65: =IF(A3stdlife="n/a","n/a",IF(P$3>(A3stdlife+$E65),(Input!$H$65*(1+rvanilla)^0.5)-SUM($H65:O65),(Input!$H$65*(1+rvanilla)^0.5)/A3stdlife)) -> 0
E66: 3 | J66: =IF(A3stdlife="n/a","n/a",IF(J$3>(A3stdlife+$E66),(Input!$I$65*(1+rvanilla)^0.5)-SUM($I66:I66),(Input!$I$65*(1+rvanilla)^0.5)/A3stdlife)) -> 0 | K66: =IF(A3stdlife="n/a","n/a",IF(K$3>(A3stdlife+$E66),(Input!$I$65*(1+rvanilla)^0.5)-SUM($I66:J66),(Input!$I$65*(1+rvanilla)^0.5)/A3stdlife)) -> 0 | L66: =IF(A3stdlife="n/a","n/a",IF(L$3>(A3stdlife+$E66),(Input!$I$65*(1+rvanilla)^0.5)-SUM($I66:K66),(Input!$I$65*(1+rvanilla)^0.5)/A3stdlife)) -> 0 | M66: =IF(A3stdlife="n/a","n/a",IF(M$3>(A3stdlife+$E66),(Input!$I$65*(1+rvanilla)^0.5)-SUM($I66:L66),(Input!$I$65*(1+rvanilla)^0.5)/A3stdlife)) -> 0 | N66: =IF(A3stdlife="n/a","n/a",IF(N$3>(A3stdlife+$E66),(Input!$I$65*(1+rvanilla)^0.5)-SUM($I66:M66),(Input!$I$65*(1+rvanilla)^0.5)/A3stdlife)) -> 0 | O66: =IF(A3stdlife="n/a","n/a",IF(O$3>(A3stdlife+$E66),(Input!$I$65*(1+rvanilla)^0.5)-SUM($I66:N66),(Input!$I$65*(1+rvanilla)^0.5)/A3stdlife)) -> 0 | P66: =IF(A3stdlife="n/a","n/a",IF(P$3>(A3stdlife+$E66),(Input!$I$65*(1+rvanilla)^0.5)-SUM($I66:O66),(Input!$I$65*(1+rvanilla)^0.5)/A3stdlife)) -> 0
E67: 4 | K67: =IF(A3stdlife="n/a","n/a",IF(K$3>(A3stdlife+$E67),(Input!$J$65*(1+rvanilla)^0.5)-SUM($J67:J67),(Input!$J$65*(1+rvanilla)^0.5)/A3stdlife)) -> 0 | L67: =IF(A3stdlife="n/a","n/a",IF(L$3>(A3stdlife+$E67),(Input!$J$65*(1+rvanilla)^0.5)-SUM($J67:K67),(Input!$J$65*(1+rvanilla)^0.5)/A3stdlife)) -> 0 | M67: =IF(A3stdlife="n/a","n/a",IF(M$3>(A3stdlife+$E67),(Input!$J$65*(1+rvanilla)^0.5)-SUM($J67:L67),(Input!$J$65*(1+rvanilla)^0.5)/A3stdlife)) -> 0 | N67: =IF(A3stdlife="n/a","n/a",IF(N$3>(A3stdlife+$E67),(Input!$J$65*(1+rvanilla)^0.5)-SUM($J67:M67),(Input!$J$65*(1+rvanilla)^0.5)/A3stdlife)) -> 0 | O67: =IF(A3stdlife="n/a","n/a",IF(O$3>(A3stdlife+$E67),(Input!$J$65*(1+rvanilla)^0.5)-SUM($J67:N67),(Input!$J$65*(1+rvanilla)^0.5)/A3stdlife)) -> 0 | P67: =IF(A3stdlife="n/a","n/a",IF(P$3>(A3stdlife+$E67),(Input!$J$65*(1+rvanilla)^0.5)-SUM($J67:O67),(Input!$J$65*(1+rvanilla)^0.5)/A3stdlife)) -> 0
E68: 5 | L68: =IF(A3stdlife="n/a","n/a",IF(L$3>(A3stdlife+$E68),(Input!$K$65*(1+rvanilla)^0.5)-SUM($K68:K68),(Input!$K$65*(1+rvanilla)^0.5)/A3stdlife)) -> 0 | M68: =IF(A3stdlife="n/a","n/a",IF(M$3>(A3stdlife+$E68),(Input!$K$65*(1+rvanilla)^0.5)-SUM($K68:L68),(Input!$K$65*(1+rvanilla)^0.5)/A3stdlife)) -> 0 | N68: =IF(A3stdlife="n/a","n/a",IF(N$3>(A3stdlife+$E68),(Input!$K$65*(1+rvanilla)^0.5)-SUM($K68:M68),(Input!$K$65*(1+rvanilla)^0.5)/A3stdlife)) -> 0 | O68: =IF(A3stdlife="n/a","n/a",IF(O$3>(A3stdlife+$E68),(Input!$K$65*(1+rvanilla)^0.5)-SUM($K68:N68),(Input!$K$65*(1+rvanilla)^0.5)/A3stdlife)) -> 0 | P68: =IF(A3stdlife="n/a","n/a",IF(P$3>(A3stdlife+$E68),(Input!$K$65*(1+rvanilla)^0.5)-SUM($K68:O68),(Input!$K$65*(1+rvanilla)^0.5)/A3stdlife)) -> 0
E69: 6 | M69: =IF(A3stdlife="n/a","n/a",IF(M$3>(A3stdlife+$E69),(Input!$L$65*(1+rvanilla)^0.5)-SUM($L69:L69),(Input!$L$65*(1+rvanilla)^0.5)/A3stdlife)) -> 0 | N69: =IF(A3stdlife="n/a","n/a",IF(N$3>(A3stdlife+$E69),(Input!$L$65*(1+rvanilla)^0.5)-SUM($L69:M69),(Input!$L$65*(1+rvanilla)^0.5)/A3stdlife)) -> 0 | O69: =IF(A3stdlife="n/a","n/a",IF(O$3>(A3stdlife+$E69),(Input!$L$65*(1+rvanilla)^0.5)-SUM($L69:N69),(Input!$L$65*(1+rvanilla)^0.5)/A3stdlife)) -> 0 | P69: =IF(A3stdlife="n/a","n/a",IF(P$3>(A3stdlife+$E69),(Input!$L$65*(1+rvanilla)^0.5)-SUM($L69:O69),(Input!$L$65*(1+rvanilla)^0.5)/A3stdlife)) -> 0
E70: 7 | N70: =IF(A3stdlife="n/a","n/a",IF(N$3>(A3stdlife+$E70),(Input!$M$65*(1+rvanilla)^0.5)-SUM($M70:M70),(Input!$M$65*(1+rvanilla)^0.5)/A3stdlife)) -> 0 | O70: =IF(A3stdlife="n/a","n/a",IF(O$3>(A3stdlife+$E70),(Input!$M$65*(1+rvanilla)^0.5)-SUM($M70:N70),(Input!$M$65*(1+rvanilla)^0.5)/A3stdlife)) -> 0 | P70: =IF(A3stdlife="n/a","n/a",IF(P$3>(A3stdlife+$E70),(Input!$M$65*(1+rvanilla)^0.5)-SUM($M70:O70),(Input!$M$65*(1+rvanilla)^0.5)/A3stdlife)) -> 0
E71: 8 | O71: =IF(A3stdlife="n/a","n/a",IF(O$3>(A3stdlife+$E71),(Input!$N$65*(1+rvanilla)^0.5)-SUM($N71:N71),(Input!$N$65*(1+rvanilla)^0.5)/A3stdlife)) -> 0 | P71: =IF(A3stdlife="n/a","n/a",IF(P$3>(A3stdlife+$E71),(Input!$N$65*(1+rvanilla)^0.5)-SUM($N71:O71),(Input!$N$65*(1+rvanilla)^0.5)/A3stdlife)) -> 0
E72: 9 | P72: =IF(A3stdlife="n/a","n/a",IF(P$3>(A3stdlife+$E72),(Input!$O$65*(1+rvanilla)^0.5)-SUM($O72:O72),(Input!$O$65*(1+rvanilla)^0.5)/A3stdlife)) -> 0
E73: 10
C74: =Asset3 -> 0 | G74: =SUM(G62:G73) -> 0 | H74: =SUM(H62:H73) -> 0 | I74: 0 | J74: 0 | K74: 0 | L74: 0 | M74: 0 | N74: 0 | O74: 0 | P74: 0
B75: =C87 -> 0 | D75: Initial Asset Base | G75: =IF(G$3>A4remlife,A4value-SUM($F75:F75),IF(A4remlife="N/A","n/a",A4value/A4remlife)) -> 0 | H75: =IF(H$3>A4remlife,A4value-SUM($F75:G75),IF(A4remlife="N/A","n/a",A4value/A4remlife)) -> 0 | I75: =IF(I$3>A4remlife,A4value-SUM($F75:H75),IF(A4remlife="N/A","n/a",A4value/A4remlife)) -> 0 | J75: =IF(J$3>A4remlife,A4value-SUM($F75:I75),IF(A4remlife="N/A","n/a",A4value/A4remlife)) -> 0 | K75: =IF(K$3>A4remlife,A4value-SUM($F75:J75),IF(A4remlife="N/A","n/a",A4value/A4remlife)) -> 0 | L75: =IF(L$3>A4remlife,A4value-SUM($F75:K75),IF(A4remlife="N/A","n/a",A4value/A4remlife)) -> 0 | M75: =IF(M$3>A4remlife,A4value-SUM($F75:L75),IF(A4remlife="N/A","n/a",A4value/A4remlife)) -> 0 | N75: =IF(N$3>A4remlife,A4value-SUM($F75:M75),IF(A4remlife="N/A","n/a",A4value/A4remlife)) -> 0 | O75: =IF(O$3>A4remlife,A4value-SUM($F75:N75),IF(A4remlife="N/A","n/a",A4value/A4remlife)) -> 0 | P75: =IF(P$3>A4remlife,A4value-SUM($F75:O75),IF(A4remlife="N/A","n/a",A4value/A4remlife)) -> 0
D76: Capex | E76: 0
E77: 1 | H77: =IF(A4stdlife="n/a","n/a",IF(H$3>(A4stdlife+$E77),(Input!$G$66*(1+rvanilla)^0.5)-SUM($G77:G77),(Input!$G$66*(1+rvanilla)^0.5)/A4stdlife)) -> 0 | I77: =IF(A4stdlife="n/a","n/a",IF(I$3>(A4stdlife+$E77),(Input!$G$66*(1+rvanilla)^0.5)-SUM($G77:H77),(Input!$G$66*(1+rvanilla)^0.5)/A4stdlife)) -> 0 | J77: =IF(A4stdlife="n/a","n/a",IF(J$3>(A4stdlife+$E77),(Input!$G$66*(1+rvanilla)^0.5)-SUM($G77:I77),(Input!$G$66*(1+rvanilla)^0.5)/A4stdlife)) -> 0 | K77: =IF(A4stdlife="n/a","n/a",IF(K$3>(A4stdlife+$E77),(Input!$G$66*(1+rvanilla)^0.5)-SUM($G77:J77),(Input!$G$66*(1+rvanilla)^0.5)/A4stdlife)) -> 0 | L77: =IF(A4stdlife="n/a","n/a",IF(L$3>(A4stdlife+$E77),(Input!$G$66*(1+rvanilla)^0.5)-SUM($G77:K77),(Input!$G$66*(1+rvanilla)^0.5)/A4stdlife)) -> 0 | M77: =IF(A4stdlife="n/a","n/a",IF(M$3>(A4stdlife+$E77),(Input!$G$66*(1+rvanilla)^0.5)-SUM($G77:L77),(Input!$G$66*(1+rvanilla)^0.5)/A4stdlife)) -> 0 | N77: =IF(A4stdlife="n/a","n/a",IF(N$3>(A4stdlife+$E77),(Input!$G$66*(1+rvanilla)^0.5)-SUM($G77:M77),(Input!$G$66*(1+rvanilla)^0.5)/A4stdlife)) -> 0 | O77: =IF(A4stdlife="n/a","n/a",IF(O$3>(A4stdlife+$E77),(Input!$G$66*(1+rvanilla)^0.5)-SUM($G77:N77),(Input!$G$66*(1+rvanilla)^0.5)/A4stdlife)) -> 0 | P77: =IF(A4stdlife="n/a","n/a",IF(P$3>(A4stdlife+$E77),(Input!$G$66*(1+rvanilla)^0.5)-SUM($G77:O77),(Input!$G$66*(1+rvanilla)^0.5)/A4stdlife)) -> 0
E78: 2 | I78: =IF(A4stdlife="n/a","n/a",IF(I$3>(A4stdlife+$E78),(Input!$H$66*(1+rvanilla)^0.5)-SUM($H78:H78),(Input!$H$66*(1+rvanilla)^0.5)/A4stdlife)) -> 0 | J78: =IF(A4stdlife="n/a","n/a",IF(J$3>(A4stdlife+$E78),(Input!$H$66*(1+rvanilla)^0.5)-SUM($H78:I78),(Input!$H$66*(1+rvanilla)^0.5)/A4stdlife)) -> 0 | K78: =IF(A4stdlife="n/a","n/a",IF(K$3>(A4stdlife+$E78),(Input!$H$66*(1+rvanilla)^0.5)-SUM($H78:J78),(Input!$H$66*(1+rvanilla)^0.5)/A4stdlife)) -> 0 | L78: =IF(A4stdlife="n/a","n/a",IF(L$3>(A4stdlife+$E78),(Input!$H$66*(1+rvanilla)^0.5)-SUM($H78:K78),(Input!$H$66*(1+rvanilla)^0.5)/A4stdlife)) -> 0 | M78: =IF(A4stdlife="n/a","n/a",IF(M$3>(A4stdlife+$E78),(Input!$H$66*(1+rvanilla)^0.5)-SUM($H78:L78),(Input!$H$66*(1+rvanilla)^0.5)/A4stdlife)) -> 0 | N78: =IF(A4stdlife="n/a","n/a",IF(N$3>(A4stdlife+$E78),(Input!$H$66*(1+rvanilla)^0.5)-SUM($H78:M78),(Input!$H$66*(1+rvanilla)^0.5)/A4stdlife)) -> 0 | O78: =IF(A4stdlife="n/a","n/a",IF(O$3>(A4stdlife+$E78),(Input!$H$66*(1+rvanilla)^0.5)-SUM($H78:N78),(Input!$H$66*(1+rvanilla)^0.5)/A4stdlife)) -> 0 | P78: =IF(A4stdlife="n/a","n/a",IF(P$3>(A4stdlife+$E78),(Input!$H$66*(1+rvanilla)^0.5)-SUM($H78:O78),(Input!$H$66*(1+rvanilla)^0.5)/A4stdlife)) -> 0
E79: 3 | J79: =IF(A4stdlife="n/a","n/a",IF(J$3>(A4stdlife+$E79),(Input!$I$66*(1+rvanilla)^0.5)-SUM($I79:I79),(Input!$I$66*(1+rvanilla)^0.5)/A4stdlife)) -> 0 | K79: =IF(A4stdlife="n/a","n/a",IF(K$3>(A4stdlife+$E79),(Input!$I$66*(1+rvanilla)^0.5)-SUM($I79:J79),(Input!$I$66*(1+rvanilla)^0.5)/A4stdlife)) -> 0 | L79: =IF(A4stdlife="n/a","n/a",IF(L$3>(A4stdlife+$E79),(Input!$I$66*(1+rvanilla)^0.5)-SUM($I79:K79),(Input!$I$66*(1+rvanilla)^0.5)/A4stdlife)) -> 0 | M79: =IF(A4stdlife="n/a","n/a",IF(M$3>(A4stdlife+$E79),(Input!$I$66*(1+rvanilla)^0.5)-SUM($I79:L79),(Input!$I$66*(1+rvanilla)^0.5)/A4stdlife)) -> 0 | N79: =IF(A4stdlife="n/a","n/a",IF(N$3>(A4stdlife+$E79),(Input!$I$66*(1+rvanilla)^0.5)-SUM($I79:M79),(Input!$I$66*(1+rvanilla)^0.5)/A4stdlife)) -> 0 | O79: =IF(A4stdlife="n/a","n/a",IF(O$3>(A4stdlife+$E79),(Input!$I$66*(1+rvanilla)^0.5)-SUM($I79:N79),(Input!$I$66*(1+rvanilla)^0.5)/A4stdlife)) -> 0 | P79: =IF(A4stdlife="n/a","n/a",IF(P$3>(A4stdlife+$E79),(Input!$I$66*(1+rvanilla)^0.5)-SUM($I79:O79),(Input!$I$66*(1+rvanilla)^0.5)/A4stdlife)) -> 0
E80: 4 | K80: =IF(A4stdlife="n/a","n/a",IF(K$3>(A4stdlife+$E80),(Input!$J$66*(1+rvanilla)^0.5)-SUM($J80:J80),(Input!$J$66*(1+rvanilla)^0.5)/A4stdlife)) -> 0 | L80: =IF(A4stdlife="n/a","n/a",IF(L$3>(A4stdlife+$E80),(Input!$J$66*(1+rvanilla)^0.5)-SUM($J80:K80),(Input!$J$66*(1+rvanilla)^0.5)/A4stdlife)) -> 0 | M80: =IF(A4stdlife="n/a","n/a",IF(M$3>(A4stdlife+$E80),(Input!$J$66*(1+rvanilla)^0.5)-SUM($J80:L80),(Input!$J$66*(1+rvanilla)^0.5)/A4stdlife)) -> 0 | N80: =IF(A4stdlife="n/a","n/a",IF(N$3>(A4stdlife+$E80),(Input!$J$66*(1+rvanilla)^0.5)-SUM($J80:M80),(Input!$J$66*(1+rvanilla)^0.5)/A4stdlife)) -> 0 | O80: =IF(A4stdlife="n/a","n/a",IF(O$3>(A4stdlife+$E80),(Input!$J$66*(1+rvanilla)^0.5)-SUM($J80:N80),(Input!$J$66*(1+rvanilla)^0.5)/A4stdlife)) -> 0 | P80: =IF(A4stdlife="n/a","n/a",IF(P$3>(A4stdlife+$E80),(Input!$J$66*(1+rvanilla)^0.5)-SUM($J80:O80),(Input!$J$66*(1+rvanilla)^0.5)/A4stdlife)) -> 0
E81: 5 | L81: =IF(A4stdlife="n/a","n/a",IF(L$3>(A4stdlife+$E81),(Input!$K$66*(1+rvanilla)^0.5)-SUM($K81:K81),(Input!$K$66*(1+rvanilla)^0.5)/A4stdlife)) -> 0 | M81: =IF(A4stdlife="n/a","n/a",IF(M$3>(A4stdlife+$E81),(Input!$K$66*(1+rvanilla)^0.5)-SUM($K81:L81),(Input!$K$66*(1+rvanilla)^0.5)/A4stdlife)) -> 0 | N81: =IF(A4stdlife="n/a","n/a",IF(N$3>(A4stdlife+$E81),(Input!$K$66*(1+rvanilla)^0.5)-SUM($K81:M81),(Input!$K$66*(1+rvanilla)^0.5)/A4stdlife)) -> 0 | O81: =IF(A4stdlife="n/a","n/a",IF(O$3>(A4stdlife+$E81),(Input!$K$66*(1+rvanilla)^0.5)-SUM($K81:N81),(Input!$K$66*(1+rvanilla)^0.5)/A4stdlife)) -> 0 | P81: =IF(A4stdlife="n/a","n/a",IF(P$3>(A4stdlife+$E81),(Input!$K$66*(1+rvanilla)^0.5)-SUM($K81:O81),(Input!$K$66*(1+rvanilla)^0.5)/A4stdlife)) -> 0
E82: 6 | M82: =IF(A4stdlife="n/a","n/a",IF(M$3>(A4stdlife+$E82),(Input!$L$66*(1+rvanilla)^0.5)-SUM($L82:L82),(Input!$L$66*(1+rvanilla)^0.5)/A4stdlife)) -> 0 | N82: =IF(A4stdlife="n/a","n/a",IF(N$3>(A4stdlife+$E82),(Input!$L$66*(1+rvanilla)^0.5)-SUM($L82:M82),(Input!$L$66*(1+rvanilla)^0.5)/A4stdlife)) -> 0 | O82: =IF(A4stdlife="n/a","n/a",IF(O$3>(A4stdlife+$E82),(Input!$L$66*(1+rvanilla)^0.5)-SUM($L82:N82),(Input!$L$66*(1+rvanilla)^0.5)/A4stdlife)) -> 0 | P82: =IF(A4stdlife="n/a","n/a",IF(P$3>(A4stdlife+$E82),(Input!$L$66*(1+rvanilla)^0.5)-SUM($L82:O82),(Input!$L$66*(1+rvanilla)^0.5)/A4stdlife)) -> 0
E83: 7 | N83: =IF(A4stdlife="n/a","n/a",IF(N$3>(A4stdlife+$E83),(Input!$M$66*(1+rvanilla)^0.5)-SUM($M83:M83),(Input!$M$66*(1+rvanilla)^0.5)/A4stdlife)) -> 0 | O83: =IF(A4stdlife="n/a","n/a",IF(O$3>(A4stdlife+$E83),(Input!$M$66*(1+rvanilla)^0.5)-SUM($M83:N83),(Input!$M$66*(1+rvanilla)^0.5)/A4stdlife)) -> 0 | P83: =IF(A4stdlife="n/a","n/a",IF(P$3>(A4stdlife+$E83),(Input!$M$66*(1+rvanilla)^0.5)-SUM($M83:O83),(Input!$M$66*(1+rvanilla)^0.5)/A4stdlife)) -> 0
E84: 8 | O84: =IF(A4stdlife="n/a","n/a",IF(O$3>(A4stdlife+$E84),(Input!$N$66*(1+rvanilla)^0.5)-SUM($N84:N84),(Input!$N$66*(1+rvanilla)^0.5)/A4stdlife)) -> 0 | P84: =IF(A4stdlife="n/a","n/a",IF(P$3>(A4stdlife+$E84),(Input!$N$66*(1+rvanilla)^0.5)-SUM($N84:O84),(Input!$N$66*(1+rvanilla)^0.5)/A4stdlife)) -> 0
E85: 9 | P85: =IF(A4stdlife="n/a","n/a",IF(P$3>(A4stdlife+$E85),(Input!$O$66*(1+rvanilla)^0.5)-SUM($O85:O85),(Input!$O$66*(1+rvanilla)^0.5)/A4stdlife)) -> 0
E86: 10
C87: =Asset4 -> 0 | G87: =SUM(G75:G86) -> 0 | H87: 0 | I87: 0 | J87: 0 | K87: 0 | L87: 0 | M87: 0 | N87: 0 | O87: 0 | P87: 0
B88: =C100 -> 0 | D88: Initial Asset Base | G88: =IF(G$3>A5remlife,A5value-SUM($F88:F88),IF(A5remlife="N/A","n/a",A5value/A5remlife)) -> 0 | H88: =IF(H$3>A5remlife,A5value-SUM($F88:G88),IF(A5remlife="N/A","n/a",A5value/A5remlife)) -> 0 | I88: =IF(I$3>A5remlife,A5value-SUM($F88:H88),IF(A5remlife="N/A","n/a",A5value/A5remlife)) -> 0 | J88: =IF(J$3>A5remlife,A5value-SUM($F88:I88),IF(A5remlife="N/A","n/a",A5value/A5remlife)) -> 0 | K88: =IF(K$3>A5remlife,A5value-SUM($F88:J88),IF(A5remlife="N/A","n/a",A5value/A5remlife)) -> 0 | L88: =IF(L$3>A5remlife,A5value-SUM($F88:K88),IF(A5remlife="N/A","n/a",A5value/A5remlife)) -> 0 | M88: =IF(M$3>A5remlife,A5value-SUM($F88:L88),IF(A5remlife="N/A","n/a",A5value/A5remlife)) -> 0 | N88: =IF(N$3>A5remlife,A5value-SUM($F88:M88),IF(A5remlife="N/A","n/a",A5value/A5remlife)) -> 0 | O88: =IF(O$3>A5remlife,A5value-SUM($F88:N88),IF(A5remlife="N/A","n/a",A5value/A5remlife)) -> 0 | P88: =IF(P$3>A5remlife,A5value-SUM($F88:O88),IF(A5remlife="N/A","n/a",A5value/A5remlife)) -> 0
D89: Capex | E89: 0
E90: 1 | H90: =IF(A5stdlife="n/a","n/a",IF(H$3>(A5stdlife+$E90),(Input!$G$67*(1+rvanilla)^0.5)-SUM($G90:G90),(Input!$G$67*(1+rvanilla)^0.5)/A5stdlife)) -> 0 | I90: =IF(A5stdlife="n/a","n/a",IF(I$3>(A5stdlife+$E90),(Input!$G$67*(1+rvanilla)^0.5)-SUM($G90:H90),(Input!$G$67*(1+rvanilla)^0.5)/A5stdlife)) -> 0 | J90: =IF(A5stdlife="n/a","n/a",IF(J$3>(A5stdlife+$E90),(Input!$G$67*(1+rvanilla)^0.5)-SUM($G90:I90),(Input!$G$67*(1+rvanilla)^0.5)/A5stdlife)) -> 0 | K90: =IF(A5stdlife="n/a","n/a",IF(K$3>(A5stdlife+$E90),(Input!$G$67*(1+rvanilla)^0.5)-SUM($G90:J90),(Input!$G$67*(1+rvanilla)^0.5)/A5stdlife)) -> 0 | L90: =IF(A5stdlife="n/a","n/a",IF(L$3>(A5stdlife+$E90),(Input!$G$67*(1+rvanilla)^0.5)-SUM($G90:K90),(Input!$G$67*(1+rvanilla)^0.5)/A5stdlife)) -> 0 | M90: =IF(A5stdlife="n/a","n/a",IF(M$3>(A5stdlife+$E90),(Input!$G$67*(1+rvanilla)^0.5)-SUM($G90:L90),(Input!$G$67*(1+rvanilla)^0.5)/A5stdlife)) -> 0 | N90: =IF(A5stdlife="n/a","n/a",IF(N$3>(A5stdlife+$E90),(Input!$G$67*(1+rvanilla)^0.5)-SUM($G90:M90),(Input!$G$67*(1+rvanilla)^0.5)/A5stdlife)) -> 0 | O90: =IF(A5stdlife="n/a","n/a",IF(O$3>(A5stdlife+$E90),(Input!$G$67*(1+rvanilla)^0.5)-SUM($G90:N90),(Input!$G$67*(1+rvanilla)^0.5)/A5stdlife)) -> 0 | P90: =IF(A5stdlife="n/a","n/a",IF(P$3>(A5stdlife+$E90),(Input!$G$67*(1+rvanilla)^0.5)-SUM($G90:O90),(Input!$G$67*(1+rvanilla)^0.5)/A5stdlife)) -> 0
E91: 2 | I91: =IF(A5stdlife="n/a","n/a",IF(I$3>(A5stdlife+$E91),(Input!$H$67*(1+rvanilla)^0.5)-SUM($H91:H91),(Input!$H$67*(1+rvanilla)^0.5)/A5stdlife)) -> 0 | J91: =IF(A5stdlife="n/a","n/a",IF(J$3>(A5stdlife+$E91),(Input!$H$67*(1+rvanilla)^0.5)-SUM($H91:I91),(Input!$H$67*(1+rvanilla)^0.5)/A5stdlife)) -> 0 | K91: =IF(A5stdlife="n/a","n/a",IF(K$3>(A5stdlife+$E91),(Input!$H$67*(1+rvanilla)^0.5)-SUM($H91:J91),(Input!$H$67*(1+rvanilla)^0.5)/A5stdlife)) -> 0 | L91: =IF(A5stdlife="n/a","n/a",IF(L$3>(A5stdlife+$E91),(Input!$H$67*(1+rvanilla)^0.5)-SUM($H91:K91),(Input!$H$67*(1+rvanilla)^0.5)/A5stdlife)) -> 0 | M91: =IF(A5stdlife="n/a","n/a",IF(M$3>(A5stdlife+$E91),(Input!$H$67*(1+rvanilla)^0.5)-SUM($H91:L91),(Input!$H$67*(1+rvanilla)^0.5)/A5stdlife)) -> 0 | N91: =IF(A5stdlife="n/a","n/a",IF(N$3>(A5stdlife+$E91),(Input!$H$67*(1+rvanilla)^0.5)-SUM($H91:M91),(Input!$H$67*(1+rvanilla)^0.5)/A5stdlife)) -> 0 | O91: =IF(A5stdlife="n/a","n/a",IF(O$3>(A5stdlife+$E91),(Input!$H$67*(1+rvanilla)^0.5)-SUM($H91:N91),(Input!$H$67*(1+rvanilla)^0.5)/A5stdlife)) -> 0 | P91: =IF(A5stdlife="n/a","n/a",IF(P$3>(A5stdlife+$E91),(Input!$H$67*(1+rvanilla)^0.5)-SUM($H91:O91),(Input!$H$67*(1+rvanilla)^0.5)/A5stdlife)) -> 0
E92: 3 | J92: =IF(A5stdlife="n/a","n/a",IF(J$3>(A5stdlife+$E92),(Input!$I$67*(1+rvanilla)^0.5)-SUM($I92:I92),(Input!$I$67*(1+rvanilla)^0.5)/A5stdlife)) -> 0 | K92: =IF(A5stdlife="n/a","n/a",IF(K$3>(A5stdlife+$E92),(Input!$I$67*(1+rvanilla)^0.5)-SUM($I92:J92),(Input!$I$67*(1+rvanilla)^0.5)/A5stdlife)) -> 0 | L92: =IF(A5stdlife="n/a","n/a",IF(L$3>(A5stdlife+$E92),(Input!$I$67*(1+rvanilla)^0.5)-SUM($I92:K92),(Input!$I$67*(1+rvanilla)^0.5)/A5stdlife)) -> 0 | M92: =IF(A5stdlife="n/a","n/a",IF(M$3>(A5stdlife+$E92),(Input!$I$67*(1+rvanilla)^0.5)-SUM($I92:L92),(Input!$I$67*(1+rvanilla)^0.5)/A5stdlife)) -> 0 | N92: =IF(A5stdlife="n/a","n/a",IF(N$3>(A5stdlife+$E92),(Input!$I$67*(1+rvanilla)^0.5)-SUM($I92:M92),(Input!$I$67*(1+rvanilla)^0.5)/A5stdlife)) -> 0 | O92: =IF(A5stdlife="n/a","n/a",IF(O$3>(A5stdlife+$E92),(Input!$I$67*(1+rvanilla)^0.5)-SUM($I92:N92),(Input!$I$67*(1+rvanilla)^0.5)/A5stdlife)) -> 0 | P92: =IF(A5stdlife="n/a","n/a",IF(P$3>(A5stdlife+$E92),(Input!$I$67*(1+rvanilla)^0.5)-SUM($I92:O92),(Input!$I$67*(1+rvanilla)^0.5)/A5stdlife)) -> 0
E93: 4 | K93: =IF(A5stdlife="n/a","n/a",IF(K$3>(A5stdlife+$E93),(Input!$J$67*(1+rvanilla)^0.5)-SUM($J93:J93),(Input!$J$67*(1+rvanilla)^0.5)/A5stdlife)) -> 0 | L93: =IF(A5stdlife="n/a","n/a",IF(L$3>(A5stdlife+$E93),(Input!$J$67*(1+rvanilla)^0.5)-SUM($J93:K93),(Input!$J$67*(1+rvanilla)^0.5)/A5stdlife)) -> 0 | M93: =IF(A5stdlife="n/a","n/a",IF(M$3>(A5stdlife+$E93),(Input!$J$67*(1+rvanilla)^0.5)-SUM($J93:L93),(Input!$J$67*(1+rvanilla)^0.5)/A5stdlife)) -> 0 | N93: =IF(A5stdlife="n/a","n/a",IF(N$3>(A5stdlife+$E93),(Input!$J$67*(1+rvanilla)^0.5)-SUM($J93:M93),(Input!$J$67*(1+rvanilla)^0.5)/A5stdlife)) -> 0 | O93: =IF(A5stdlife="n/a","n/a",IF(O$3>(A5stdlife+$E93),(Input!$J$67*(1+rvanilla)^0.5)-SUM($J93:N93),(Input!$J$67*(1+rvanilla)^0.5)/A5stdlife)) -> 0 | P93: =IF(A5stdlife="n/a","n/a",IF(P$3>(A5stdlife+$E93),(Input!$J$67*(1+rvanilla)^0.5)-SUM($J93:O93),(Input!$J$67*(1+rvanilla)^0.5)/A5stdlife)) -> 0
E94: 5 | L94: =IF(A5stdlife="n/a","n/a",IF(L$3>(A5stdlife+$E94),(Input!$K$67*(1+rvanilla)^0.5)-SUM($K94:K94),(Input!$K$67*(1+rvanilla)^0.5)/A5stdlife)) -> 0 | M94: =IF(A5stdlife="n/a","n/a",IF(M$3>(A5stdlife+$E94),(Input!$K$67*(1+rvanilla)^0.5)-SUM($K94:L94),(Input!$K$67*(1+rvanilla)^0.5)/A5stdlife)) -> 0 | N94: =IF(A5stdlife="n/a","n/a",IF(N$3>(A5stdlife+$E94),(Input!$K$67*(1+rvanilla)^0.5)-SUM($K94:M94),(Input!$K$67*(1+rvanilla)^0.5)/A5stdlife)) -> 0 | O94: =IF(A5stdlife="n/a","n/a",IF(O$3>(A5stdlife+$E94),(Input!$K$67*(1+rvanilla)^0.5)-SUM($K94:N94),(Input!$K$67*(1+rvanilla)^0.5)/A5stdlife)) -> 0 | P94: =IF(A5stdlife="n/a","n/a",IF(P$3>(A5stdlife+$E94),(Input!$K$67*(1+rvanilla)^0.5)-SUM($K94:O94),(Input!$K$67*(1+rvanilla)^0.5)/A5stdlife)) -> 0
E95: 6 | M95: =IF(A5stdlife="n/a","n/a",IF(M$3>(A5stdlife+$E95),(Input!$L$67*(1+rvanilla)^0.5)-SUM($L95:L95),(Input!$L$67*(1+rvanilla)^0.5)/A5stdlife)) -> 0 | N95: =IF(A5stdlife="n/a","n/a",IF(N$3>(A5stdlife+$E95),(Input!$L$67*(1+rvanilla)^0.5)-SUM($L95:M95),(Input!$L$67*(1+rvanilla)^0.5)/A5stdlife)) -> 0 | O95: =IF(A5stdlife="n/a","n/a",IF(O$3>(A5stdlife+$E95),(Input!$L$67*(1+rvanilla)^0.5)-SUM($L95:N95),(Input!$L$67*(1+rvanilla)^0.5)/A5stdlife)) -> 0 | P95: =IF(A5stdlife="n/a","n/a",IF(P$3>(A5stdlife+$E95),(Input!$L$67*(1+rvanilla)^0.5)-SUM($L95:O95),(Input!$L$67*(1+rvanilla)^0.5)/A5stdlife)) -> 0
E96: 7 | N96: =IF(A5stdlife="n/a","n/a",IF(N$3>(A5stdlife+$E96),(Input!$M$67*(1+rvanilla)^0.5)-SUM($M96:M96),(Input!$M$67*(1+rvanilla)^0.5)/A5stdlife)) -> 0 | O96: =IF(A5stdlife="n/a","n/a",IF(O$3>(A5stdlife+$E96),(Input!$M$67*(1+rvanilla)^0.5)-SUM($M96:N96),(Input!$M$67*(1+rvanilla)^0.5)/A5stdlife)) -> 0 | P96: =IF(A5stdlife="n/a","n/a",IF(P$3>(A5stdlife+$E96),(Input!$M$67*(1+rvanilla)^0.5)-SUM($M96:O96),(Input!$M$67*(1+rvanilla)^0.5)/A5stdlife)) -> 0
E97: 8 | O97: =IF(A5stdlife="n/a","n/a",IF(O$3>(A5stdlife+$E97),(Input!$N$67*(1+rvanilla)^0.5)-SUM($N97:N97),(Input!$N$67*(1+rvanilla)^0.5)/A5stdlife)) -> 0 | P97: =IF(A5stdlife="n/a","n/a",IF(P$3>(A5stdlife+$E97),(Input!$N$67*(1+rvanilla)^0.5)-SUM($N97:O97),(Input!$N$67*(1+rvanilla)^0.5)/A5stdlife)) -> 0
E98: 9 | P98: =IF(A5stdlife="n/a","n/a",IF(P$3>(A5stdlife+$E98),(Input!$O$67*(1+rvanilla)^0.5)-SUM($O98:O98),(Input!$O$67*(1+rvanilla)^0.5)/A5stdlife)) -> 0
E99: 10
C100: =Asset5 -> 0 | G100: =SUM(G88:G99) -> 0 | H100: 0 | I100: 0 | J100: 0 | K100: 0 | L100: 0 | M100: 0 | N100: 0 | O100: 0 | P100: 0
B101: =C113 -> 0 | D101: Initial Asset Base | G101: =IF(G$3>A6remlife,A6value-SUM($F101:F101),IF(A6remlife="N/A","n/a",A6value/A6remlife)) -> 0 | H101: =IF(H$3>A6remlife,A6value-SUM($F101:G101),IF(A6remlife="N/A","n/a",A6value/A6remlife)) -> 0 | I101: =IF(I$3>A6remlife,A6value-SUM($F101:H101),IF(A6remlife="N/A","n/a",A6value/A6remlife)) -> 0 | J101: =IF(J$3>A6remlife,A6value-SUM($F101:I101),IF(A6remlife="N/A","n/a",A6value/A6remlife)) -> 0 | K101: =IF(K$3>A6remlife,A6value-SUM($F101:J101),IF(A6remlife="N/A","n/a",A6value/A6remlife)) -> 0 | L101: =IF(L$3>A6remlife,A6value-SUM($F101:K101),IF(A6remlife="N/A","n/a",A6value/A6remlife)) -> 0 | M101: =IF(M$3>A6remlife,A6value-SUM($F101:L101),IF(A6remlife="N/A","n/a",A6value/A6remlife)) -> 0 | N101: =IF(N$3>A6remlife,A6value-SUM($F101:M101),IF(A6remlife="N/A","n/a",A6value/A6remlife)) -> 0 | O101: =IF(O$3>A6remlife,A6value-SUM($F101:N101),IF(A6remlife="N/A","n/a",A6value/A6remlife)) -> 0 | P101: =IF(P$3>A6remlife,A6value-SUM($F101:O101),IF(A6remlife="N/A","n/a",A6value/A6remlife)) -> 0
D102: Capex | E102: 0
E103: 1 | H103: =IF(A6stdlife="n/a","n/a",IF(H$3>(A6stdlife+$E103),(Input!$G$68*(1+rvanilla)^0.5)-SUM($G103:G103),(Input!$G$68*(1+rvanilla)^0.5)/A6stdlife)) -> 0 | I103: =IF(A6stdlife="n/a","n/a",IF(I$3>(A6stdlife+$E103),(Input!$G$68*(1+rvanilla)^0.5)-SUM($G103:H103),(Input!$G$68*(1+rvanilla)^0.5)/A6stdlife)) -> 0 | J103: =IF(A6stdlife="n/a","n/a",IF(J$3>(A6stdlife+$E103),(Input!$G$68*(1+rvanilla)^0.5)-SUM($G103:I103),(Input!$G$68*(1+rvanilla)^0.5)/A6stdlife)) -> 0 | K103: =IF(A6stdlife="n/a","n/a",IF(K$3>(A6stdlife+$E103),(Input!$G$68*(1+rvanilla)^0.5)-SUM($G103:J103),(Input!$G$68*(1+rvanilla)^0.5)/A6stdlife)) -> 0 | L103: =IF(A6stdlife="n/a","n/a",IF(L$3>(A6stdlife+$E103),(Input!$G$68*(1+rvanilla)^0.5)-SUM($G103:K103),(Input!$G$68*(1+rvanilla)^0.5)/A6stdlife)) -> 0 | M103: =IF(A6stdlife="n/a","n/a",IF(M$3>(A6stdlife+$E103),(Input!$G$68*(1+rvanilla)^0.5)-SUM($G103:L103),(Input!$G$68*(1+rvanilla)^0.5)/A6stdlife)) -> 0 | N103: =IF(A6stdlife="n/a","n/a",IF(N$3>(A6stdlife+$E103),(Input!$G$68*(1+rvanilla)^0.5)-SUM($G103:M103),(Input!$G$68*(1+rvanilla)^0.5)/A6stdlife)) -> 0 | O103: =IF(A6stdlife="n/a","n/a",IF(O$3>(A6stdlife+$E103),(Input!$G$68*(1+rvanilla)^0.5)-SUM($G103:N103),(Input!$G$68*(1+rvanilla)^0.5)/A6stdlife)) -> 0 | P103: =IF(A6stdlife="n/a","n/a",IF(P$3>(A6stdlife+$E103),(Input!$G$68*(1+rvanilla)^0.5)-SUM($G103:O103),(Input!$G$68*(1+rvanilla)^0.5)/A6stdlife)) -> 0
E104: 2 | I104: =IF(A6stdlife="n/a","n/a",IF(I$3>(A6stdlife+$E104),(Input!$H$68*(1+rvanilla)^0.5)-SUM($H104:H104),(Input!$H$68*(1+rvanilla)^0.5)/A6stdlife)) -> 0 | J104: =IF(A6stdlife="n/a","n/a",IF(J$3>(A6stdlife+$E104),(Input!$H$68*(1+rvanilla)^0.5)-SUM($H104:I104),(Input!$H$68*(1+rvanilla)^0.5)/A6stdlife)) -> 0 | K104: =IF(A6stdlife="n/a","n/a",IF(K$3>(A6stdlife+$E104),(Input!$H$68*(1+rvanilla)^0.5)-SUM($H104:J104),(Input!$H$68*(1+rvanilla)^0.5)/A6stdlife)) -> 0 | L104: =IF(A6stdlife="n/a","n/a",IF(L$3>(A6stdlife+$E104),(Input!$H$68*(1+rvanilla)^0.5)-SUM($H104:K104),(Input!$H$68*(1+rvanilla)^0.5)/A6stdlife)) -> 0 | M104: =IF(A6stdlife="n/a","n/a",IF(M$3>(A6stdlife+$E104),(Input!$H$68*(1+rvanilla)^0.5)-SUM($H104:L104),(Input!$H$68*(1+rvanilla)^0.5)/A6stdlife)) -> 0 | N104: =IF(A6stdlife="n/a","n/a",IF(N$3>(A6stdlife+$E104),(Input!$H$68*(1+rvanilla)^0.5)-SUM($H104:M104),(Input!$H$68*(1+rvanilla)^0.5)/A6stdlife)) -> 0 | O104: =IF(A6stdlife="n/a","n/a",IF(O$3>(A6stdlife+$E104),(Input!$H$68*(1+rvanilla)^0.5)-SUM($H104:N104),(Input!$H$68*(1+rvanilla)^0.5)/A6stdlife)) -> 0 | P104: =IF(A6stdlife="n/a","n/a",IF(P$3>(A6stdlife+$E104),(Input!$H$68*(1+rvanilla)^0.5)-SUM($H104:O104),(Input!$H$68*(1+rvanilla)^0.5)/A6stdlife)) -> 0
E105: 3 | J105: =IF(A6stdlife="n/a","n/a",IF(J$3>(A6stdlife+$E105),(Input!$I$68*(1+rvanilla)^0.5)-SUM($I105:I105),(Input!$I$68*(1+rvanilla)^0.5)/A6stdlife)) -> 0 | K105: =IF(A6stdlife="n/a","n/a",IF(K$3>(A6stdlife+$E105),(Input!$I$68*(1+rvanilla)^0.5)-SUM($I105:J105),(Input!$I$68*(1+rvanilla)^0.5)/A6stdlife)) -> 0 | L105: =IF(A6stdlife="n/a","n/a",IF(L$3>(A6stdlife+$E105),(Input!$I$68*(1+rvanilla)^0.5)-SUM($I105:K105),(Input!$I$68*(1+rvanilla)^0.5)/A6stdlife)) -> 0 | M105: =IF(A6stdlife="n/a","n/a",IF(M$3>(A6stdlife+$E105),(Input!$I$68*(1+rvanilla)^0.5)-SUM($I105:L105),(Input!$I$68*(1+rvanilla)^0.5)/A6stdlife)) -> 0 | N105: =IF(A6stdlife="n/a","n/a",IF(N$3>(A6stdlife+$E105),(Input!$I$68*(1+rvanilla)^0.5)-SUM($I105:M105),(Input!$I$68*(1+rvanilla)^0.5)/A6stdlife)) -> 0 | O105: =IF(A6stdlife="n/a","n/a",IF(O$3>(A6stdlife+$E105),(Input!$I$68*(1+rvanilla)^0.5)-SUM($I105:N105),(Input!$I$68*(1+rvanilla)^0.5)/A6stdlife)) -> 0 | P105: =IF(A6stdlife="n/a","n/a",IF(P$3>(A6stdlife+$E105),(Input!$I$68*(1+rvanilla)^0.5)-SUM($I105:O105),(Input!$I$68*(1+rvanilla)^0.5)/A6stdlife)) -> 0
E106: 4 | K106: =IF(A6stdlife="n/a","n/a",IF(K$3>(A6stdlife+$E106),(Input!$J$68*(1+rvanilla)^0.5)-SUM($J106:J106),(Input!$J$68*(1+rvanilla)^0.5)/A6stdlife)) -> 0 | L106: =IF(A6stdlife="n/a","n/a",IF(L$3>(A6stdlife+$E106),(Input!$J$68*(1+rvanilla)^0.5)-SUM($J106:K106),(Input!$J$68*(1+rvanilla)^0.5)/A6stdlife)) -> 0 | M106: =IF(A6stdlife="n/a","n/a",IF(M$3>(A6stdlife+$E106),(Input!$J$68*(1+rvanilla)^0.5)-SUM($J106:L106),(Input!$J$68*(1+rvanilla)^0.5)/A6stdlife)) -> 0 | N106: =IF(A6stdlife="n/a","n/a",IF(N$3>(A6stdlife+$E106),(Input!$J$68*(1+rvanilla)^0.5)-SUM($J106:M106),(Input!$J$68*(1+rvanilla)^0.5)/A6stdlife)) -> 0 | O106: =IF(A6stdlife="n/a","n/a",IF(O$3>(A6stdlife+$E106),(Input!$J$68*(1+rvanilla)^0.5)-SUM($J106:N106),(Input!$J$68*(1+rvanilla)^0.5)/A6stdlife)) -> 0 | P106: =IF(A6stdlife="n/a","n/a",IF(P$3>(A6stdlife+$E106),(Input!$J$68*(1+rvanilla)^0.5)-SUM($J106:O106),(Input!$J$68*(1+rvanilla)^0.5)/A6stdlife)) -> 0
E107: 5 | L107: =IF(A6stdlife="n/a","n/a",IF(L$3>(A6stdlife+$E107),(Input!$K$68*(1+rvanilla)^0.5)-SUM($K107:K107),(Input!$K$68*(1+rvanilla)^0.5)/A6stdlife)) -> 0 | M107: =IF(A6stdlife="n/a","n/a",IF(M$3>(A6stdlife+$E107),(Input!$K$68*(1+rvanilla)^0.5)-SUM($K107:L107),(Input!$K$68*(1+rvanilla)^0.5)/A6stdlife)) -> 0 | N107: =IF(A6stdlife="n/a","n/a",IF(N$3>(A6stdlife+$E107),(Input!$K$68*(1+rvanilla)^0.5)-SUM($K107:M107),(Input!$K$68*(1+rvanilla)^0.5)/A6stdlife)) -> 0 | O107: =IF(A6stdlife="n/a","n/a",IF(O$3>(A6stdlife+$E107),(Input!$K$68*(1+rvanilla)^0.5)-SUM($K107:N107),(Input!$K$68*(1+rvanilla)^0.5)/A6stdlife)) -> 0 | P107: =IF(A6stdlife="n/a","n/a",IF(P$3>(A6stdlife+$E107),(Input!$K$68*(1+rvanilla)^0.5)-SUM($K107:O107),(Input!$K$68*(1+rvanilla)^0.5)/A6stdlife)) -> 0
E108: 6 | M108: =IF(A6stdlife="n/a","n/a",IF(M$3>(A6stdlife+$E108),(Input!$L$68*(1+rvanilla)^0.5)-SUM($L108:L108),(Input!$L$68*(1+rvanilla)^0.5)/A6stdlife)) -> 0 | N108: =IF(A6stdlife="n/a","n/a",IF(N$3>(A6stdlife+$E108),(Input!$L$68*(1+rvanilla)^0.5)-SUM($L108:M108),(Input!$L$68*(1+rvanilla)^0.5)/A6stdlife)) -> 0 | O108: =IF(A6stdlife="n/a","n/a",IF(O$3>(A6stdlife+$E108),(Input!$L$68*(1+rvanilla)^0.5)-SUM($L108:N108),(Input!$L$68*(1+rvanilla)^0.5)/A6stdlife)) -> 0 | P108: =IF(A6stdlife="n/a","n/a",IF(P$3>(A6stdlife+$E108),(Input!$L$68*(1+rvanilla)^0.5)-SUM($L108:O108),(Input!$L$68*(1+rvanilla)^0.5)/A6stdlife)) -> 0
E109: 7 | N109: =IF(A6stdlife="n/a","n/a",IF(N$3>(A6stdlife+$E109),(Input!$M$68*(1+rvanilla)^0.5)-SUM($M109:M109),(Input!$M$68*(1+rvanilla)^0.5)/A6stdlife)) -> 0 | O109: =IF(A6stdlife="n/a","n/a",IF(O$3>(A6stdlife+$E109),(Input!$M$68*(1+rvanilla)^0.5)-SUM($M109:N109),(Input!$M$68*(1+rvanilla)^0.5)/A6stdlife)) -> 0 | P109: =IF(A6stdlife="n/a","n/a",IF(P$3>(A6stdlife+$E109),(Input!$M$68*(1+rvanilla)^0.5)-SUM($M109:O109),(Input!$M$68*(1+rvanilla)^0.5)/A6stdlife)) -> 0
E110: 8 | O110: =IF(A6stdlife="n/a","n/a",IF(O$3>(A6stdlife+$E110),(Input!$N$68*(1+rvanilla)^0.5)-SUM($N110:N110),(Input!$N$68*(1+rvanilla)^0.5)/A6stdlife)) -> 0 | P110: =IF(A6stdlife="n/a","n/a",IF(P$3>(A6stdlife+$E110),(Input!$N$68*(1+rvanilla)^0.5)-SUM($N110:O110),(Input!$N$68*(1+rvanilla)^0.5)/A6stdlife)) -> 0
E111: 9 | P111: =IF(A6stdlife="n/a","n/a",IF(P$3>(A6stdlife+$E111),(Input!$O$68*(1+rvanilla)^0.5)-SUM($O111:O111),(Input!$O$68*(1+rvanilla)^0.5)/A6stdlife)) -> 0
E112: 10
C113: =Asset6 -> 0 | G113: =SUM(G101:G112) -> 0 | H113: 0 | I113: 0 | J113: 0 | K113: 0 | L113: 0 | M113: 0 | N113: 0 | O113: 0 | P113: 0
B114: =C126 -> 0 | D114: Initial Asset Base | G114: =IF(G$3>A7remlife,A7value-SUM($F114:F114),IF(A7remlife="N/A","n/a",A7value/A7remlife)) -> 0 | H114: =IF(H$3>A7remlife,A7value-SUM($F114:G114),IF(A7remlife="N/A","n/a",A7value/A7remlife)) -> 0 | I114: =IF(I$3>A7remlife,A7value-SUM($F114:H114),IF(A7remlife="N/A","n/a",A7value/A7remlife)) -> 0 | J114: =IF(J$3>A7remlife,A7value-SUM($F114:I114),IF(A7remlife="N/A","n/a",A7value/A7remlife)) -> 0 | K114: =IF(K$3>A7remlife,A7value-SUM($F114:J114),IF(A7remlife="N/A","n/a",A7value/A7remlife)) -> 0 | L114: =IF(L$3>A7remlife,A7value-SUM($F114:K114),IF(A7remlife="N/A","n/a",A7value/A7remlife)) -> 0 | M114: =IF(M$3>A7remlife,A7value-SUM($F114:L114),IF(A7remlife="N/A","n/a",A7value/A7remlife)) -> 0 | N114: =IF(N$3>A7remlife,A7value-SUM($F114:M114),IF(A7remlife="N/A","n/a",A7value/A7remlife)) -> 0 | O114: =IF(O$3>A7remlife,A7value-SUM($F114:N114),IF(A7remlife="N/A","n/a",A7value/A7remlife)) -> 0 | P114: =IF(P$3>A7remlife,A7value-SUM($F114:O114),IF(A7remlife="N/A","n/a",A7value/A7remlife)) -> 0
D115: Capex | E115: 0
E116: 1 | H116: =IF(A7stdlife="n/a","n/a",IF(H$3>(A7stdlife+$E116),(Input!$G$69*(1+rvanilla)^0.5)-SUM($G116:G116),(Input!$G$69*(1+rvanilla)^0.5)/A7stdlife)) -> 0 | I116: =IF(A7stdlife="n/a","n/a",IF(I$3>(A7stdlife+$E116),(Input!$G$69*(1+rvanilla)^0.5)-SUM($G116:H116),(Input!$G$69*(1+rvanilla)^0.5)/A7stdlife)) -> 0 | J116: =IF(A7stdlife="n/a","n/a",IF(J$3>(A7stdlife+$E116),(Input!$G$69*(1+rvanilla)^0.5)-SUM($G116:I116),(Input!$G$69*(1+rvanilla)^0.5)/A7stdlife)) -> 0 | K116: =IF(A7stdlife="n/a","n/a",IF(K$3>(A7stdlife+$E116),(Input!$G$69*(1+rvanilla)^0.5)-SUM($G116:J116),(Input!$G$69*(1+rvanilla)^0.5)/A7stdlife)) -> 0 | L116: =IF(A7stdlife="n/a","n/a",IF(L$3>(A7stdlife+$E116),(Input!$G$69*(1+rvanilla)^0.5)-SUM($G116:K116),(Input!$G$69*(1+rvanilla)^0.5)/A7stdlife)) -> 0 | M116: =IF(A7stdlife="n/a","n/a",IF(M$3>(A7stdlife+$E116),(Input!$G$69*(1+rvanilla)^0.5)-SUM($G116:L116),(Input!$G$69*(1+rvanilla)^0.5)/A7stdlife)) -> 0 | N116: =IF(A7stdlife="n/a","n/a",IF(N$3>(A7stdlife+$E116),(Input!$G$69*(1+rvanilla)^0.5)-SUM($G116:M116),(Input!$G$69*(1+rvanilla)^0.5)/A7stdlife)) -> 0 | O116: =IF(A7stdlife="n/a","n/a",IF(O$3>(A7stdlife+$E116),(Input!$G$69*(1+rvanilla)^0.5)-SUM($G116:N116),(Input!$G$69*(1+rvanilla)^0.5)/A7stdlife)) -> 0 | P116: =IF(A7stdlife="n/a","n/a",IF(P$3>(A7stdlife+$E116),(Input!$G$69*(1+rvanilla)^0.5)-SUM($G116:O116),(Input!$G$69*(1+rvanilla)^0.5)/A7stdlife)) -> 0
E117: 2 | I117: =IF(A7stdlife="n/a","n/a",IF(I$3>(A7stdlife+$E117),(Input!$H$69*(1+rvanilla)^0.5)-SUM($H117:H117),(Input!$H$69*(1+rvanilla)^0.5)/A7stdlife)) -> 0 | J117: =IF(A7stdlife="n/a","n/a",IF(J$3>(A7stdlife+$E117),(Input!$H$69*(1+rvanilla)^0.5)-SUM($H117:I117),(Input!$H$69*(1+rvanilla)^0.5)/A7stdlife)) -> 0 | K117: =IF(A7stdlife="n/a","n/a",IF(K$3>(A7stdlife+$E117),(Input!$H$69*(1+rvanilla)^0.5)-SUM($H117:J117),(Input!$H$69*(1+rvanilla)^0.5)/A7stdlife)) -> 0 | L117: =IF(A7stdlife="n/a","n/a",IF(L$3>(A7stdlife+$E117),(Input!$H$69*(1+rvanilla)^0.5)-SUM($H117:K117),(Input!$H$69*(1+rvanilla)^0.5)/A7stdlife)) -> 0 | M117: =IF(A7stdlife="n/a","n/a",IF(M$3>(A7stdlife+$E117),(Input!$H$69*(1+rvanilla)^0.5)-SUM($H117:L117),(Input!$H$69*(1+rvanilla)^0.5)/A7stdlife)) -> 0 | N117: =IF(A7stdlife="n/a","n/a",IF(N$3>(A7stdlife+$E117),(Input!$H$69*(1+rvanilla)^0.5)-SUM($H117:M117),(Input!$H$69*(1+rvanilla)^0.5)/A7stdlife)) -> 0 | O117: =IF(A7stdlife="n/a","n/a",IF(O$3>(A7stdlife+$E117),(Input!$H$69*(1+rvanilla)^0.5)-SUM($H117:N117),(Input!$H$69*(1+rvanilla)^0.5)/A7stdlife)) -> 0 | P117: =IF(A7stdlife="n/a","n/a",IF(P$3>(A7stdlife+$E117),(Input!$H$69*(1+rvanilla)^0.5)-SUM($H117:O117),(Input!$H$69*(1+rvanilla)^0.5)/A7stdlife)) -> 0
E118: 3 | J118: =IF(A7stdlife="n/a","n/a",IF(J$3>(A7stdlife+$E118),(Input!$I$69*(1+rvanilla)^0.5)-SUM($I118:I118),(Input!$I$69*(1+rvanilla)^0.5)/A7stdlife)) -> 0 | K118: =IF(A7stdlife="n/a","n/a",IF(K$3>(A7stdlife+$E118),(Input!$I$69*(1+rvanilla)^0.5)-SUM($I118:J118),(Input!$I$69*(1+rvanilla)^0.5)/A7stdlife)) -> 0 | L118: =IF(A7stdlife="n/a","n/a",IF(L$3>(A7stdlife+$E118),(Input!$I$69*(1+rvanilla)^0.5)-SUM($I118:K118),(Input!$I$69*(1+rvanilla)^0.5)/A7stdlife)) -> 0 | M118: =IF(A7stdlife="n/a","n/a",IF(M$3>(A7stdlife+$E118),(Input!$I$69*(1+rvanilla)^0.5)-SUM($I118:L118),(Input!$I$69*(1+rvanilla)^0.5)/A7stdlife)) -> 0 | N118: =IF(A7stdlife="n/a","n/a",IF(N$3>(A7stdlife+$E118),(Input!$I$69*(1+rvanilla)^0.5)-SUM($I118:M118),(Input!$I$69*(1+rvanilla)^0.5)/A7stdlife)) -> 0 | O118: =IF(A7stdlife="n/a","n/a",IF(O$3>(A7stdlife+$E118),(Input!$I$69*(1+rvanilla)^0.5)-SUM($I118:N118),(Input!$I$69*(1+rvanilla)^0.5)/A7stdlife)) -> 0 | P118: =IF(A7stdlife="n/a","n/a",IF(P$3>(A7stdlife+$E118),(Input!$I$69*(1+rvanilla)^0.5)-SUM($I118:O118),(Input!$I$69*(1+rvanilla)^0.5)/A7stdlife)) -> 0
E119: 4 | K119: =IF(A7stdlife="n/a","n/a",IF(K$3>(A7stdlife+$E119),(Input!$J$69*(1+rvanilla)^0.5)-SUM($J119:J119),(Input!$J$69*(1+rvanilla)^0.5)/A7stdlife)) -> 0 | L119: =IF(A7stdlife="n/a","n/a",IF(L$3>(A7stdlife+$E119),(Input!$J$69*(1+rvanilla)^0.5)-SUM($J119:K119),(Input!$J$69*(1+rvanilla)^0.5)/A7stdlife)) -> 0 | M119: =IF(A7stdlife="n/a","n/a",IF(M$3>(A7stdlife+$E119),(Input!$J$69*(1+rvanilla)^0.5)-SUM($J119:L119),(Input!$J$69*(1+rvanilla)^0.5)/A7stdlife)) -> 0 | N119: =IF(A7stdlife="n/a","n/a",IF(N$3>(A7stdlife+$E119),(Input!$J$69*(1+rvanilla)^0.5)-SUM($J119:M119),(Input!$J$69*(1+rvanilla)^0.5)/A7stdlife)) -> 0 | O119: =IF(A7stdlife="n/a","n/a",IF(O$3>(A7stdlife+$E119),(Input!$J$69*(1+rvanilla)^0.5)-SUM($J119:N119),(Input!$J$69*(1+rvanilla)^0.5)/A7stdlife)) -> 0 | P119: =IF(A7stdlife="n/a","n/a",IF(P$3>(A7stdlife+$E119),(Input!$J$69*(1+rvanilla)^0.5)-SUM($J119:O119),(Input!$J$69*(1+rvanilla)^0.5)/A7stdlife)) -> 0
E120: 5 | L120: =IF(A7stdlife="n/a","n/a",IF(L$3>(A7stdlife+$E120),(Input!$K$69*(1+rvanilla)^0.5)-SUM($K120:K120),(Input!$K$69*(1+rvanilla)^0.5)/A7stdlife)) -> 0 | M120: =IF(A7stdlife="n/a","n/a",IF(M$3>(A7stdlife+$E120),(Input!$K$69*(1+rvanilla)^0.5)-SUM($K120:L120),(Input!$K$69*(1+rvanilla)^0.5)/A7stdlife)) -> 0 | N120: =IF(A7stdlife="n/a","n/a",IF(N$3>(A7stdlife+$E120),(Input!$K$69*(1+rvanilla)^0.5)-SUM($K120:M120),(Input!$K$69*(1+rvanilla)^0.5)/A7stdlife)) -> 0 | O120: =IF(A7stdlife="n/a","n/a",IF(O$3>(A7stdlife+$E120),(Input!$K$69*(1+rvanilla)^0.5)-SUM($K120:N120),(Input!$K$69*(1+rvanilla)^0.5)/A7stdlife)) -> 0 | P120: =IF(A7stdlife="n/a","n/a",IF(P$3>(A7stdlife+$E120),(Input!$K$69*(1+rvanilla)^0.5)-SUM($K120:O120),(Input!$K$69*(1+rvanilla)^0.5)/A7stdlife)) -> 0
E121: 6 | M121: =IF(A7stdlife="n/a","n/a",IF(M$3>(A7stdlife+$E121),(Input!$L$69*(1+rvanilla)^0.5)-SUM($L121:L121),(Input!$L$69*(1+rvanilla)^0.5)/A7stdlife)) -> 0 | N121: =IF(A7stdlife="n/a","n/a",IF(N$3>(A7stdlife+$E121),(Input!$L$69*(1+rvanilla)^0.5)-SUM($L121:M121),(Input!$L$69*(1+rvanilla)^0.5)/A7stdlife)) -> 0 | O121: =IF(A7stdlife="n/a","n/a",IF(O$3>(A7stdlife+$E121),(Input!$L$69*(1+rvanilla)^0.5)-SUM($L121:N121),(Input!$L$69*(1+rvanilla)^0.5)/A7stdlife)) -> 0 | P121: =IF(A7stdlife="n/a","n/a",IF(P$3>(A7stdlife+$E121),(Input!$L$69*(1+rvanilla)^0.5)-SUM($L121:O121),(Input!$L$69*(1+rvanilla)^0.5)/A7stdlife)) -> 0
E122: 7 | N122: =IF(A7stdlife="n/a","n/a",IF(N$3>(A7stdlife+$E122),(Input!$M$69*(1+rvanilla)^0.5)-SUM($M122:M122),(Input!$M$69*(1+rvanilla)^0.5)/A7stdlife)) -> 0 | O122: =IF(A7stdlife="n/a","n/a",IF(O$3>(A7stdlife+$E122),(Input!$M$69*(1+rvanilla)^0.5)-SUM($M122:N122),(Input!$M$69*(1+rvanilla)^0.5)/A7stdlife)) -> 0 | P122: =IF(A7stdlife="n/a","n/a",IF(P$3>(A7stdlife+$E122),(Input!$M$69*(1+rvanilla)^0.5)-SUM($M122:O122),(Input!$M$69*(1+rvanilla)^0.5)/A7stdlife)) -> 0
E123: 8 | O123: =IF(A7stdlife="n/a","n/a",IF(O$3>(A7stdlife+$E123),(Input!$N$69*(1+rvanilla)^0.5)-SUM($N123:N123),(Input!$N$69*(1+rvanilla)^0.5)/A7stdlife)) -> 0 | P123: =IF(A7stdlife="n/a","n/a",IF(P$3>(A7stdlife+$E123),(Input!$N$69*(1+rvanilla)^0.5)-SUM($N123:O123),(Input!$N$69*(1+rvanilla)^0.5)/A7stdlife)) -> 0
E124: 9 | P124: =IF(A7stdlife="n/a","n/a",IF(P$3>(A7stdlife+$E124),(Input!$O$69*(1+rvanilla)^0.5)-SUM($O124:O124),(Input!$O$69*(1+rvanilla)^0.5)/A7stdlife)) -> 0
E125: 10
C126: =Asset7 -> 0 | G126: =SUM(G114:G125) -> 0 | H126: 0 | I126: 0 | J126: 0 | K126: 0 | L126: 0 | M126: 0 | N126: 0 | O126: 0 | P126: 0
B127: =C139 -> 0 | D127: Initial Asset Base | G127: =IF(G$3>A8remlife,A8value-SUM($F127:F127),IF(A8remlife="N/A","n/a",A8value/A8remlife)) -> 0 | H127: =IF(H$3>A8remlife,A8value-SUM($F127:G127),IF(A8remlife="N/A","n/a",A8value/A8remlife)) -> 0 | I127: =IF(I$3>A8remlife,A8value-SUM($F127:H127),IF(A8remlife="N/A","n/a",A8value/A8remlife)) -> 0 | J127: =IF(J$3>A8remlife,A8value-SUM($F127:I127),IF(A8remlife="N/A","n/a",A8value/A8remlife)) -> 0 | K127: =IF(K$3>A8remlife,A8value-SUM($F127:J127),IF(A8remlife="N/A","n/a",A8value/A8remlife)) -> 0 | L127: =IF(L$3>A8remlife,A8value-SUM($F127:K127),IF(A8remlife="N/A","n/a",A8value/A8remlife)) -> 0 | M127: =IF(M$3>A8remlife,A8value-SUM($F127:L127),IF(A8remlife="N/A","n/a",A8value/A8remlife)) -> 0 | N127: =IF(N$3>A8remlife,A8value-SUM($F127:M127),IF(A8remlife="N/A","n/a",A8value/A8remlife)) -> 0 | O127: =IF(O$3>A8remlife,A8value-SUM($F127:N127),IF(A8remlife="N/A","n/a",A8value/A8remlife)) -> 0 | P127: =IF(P$3>A8remlife,A8value-SUM($F127:O127),IF(A8remlife="N/A","n/a",A8value/A8remlife)) -> 0
D128: Capex | E128: 0
E129: 1 | H129: =IF(A8stdlife="n/a","n/a",IF(H$3>(A8stdlife+$E129),(Input!$G$70*(1+rvanilla)^0.5)-SUM($G129:G129),(Input!$G$70*(1+rvanilla)^0.5)/A8stdlife)) -> 0 | I129: =IF(A8stdlife="n/a","n/a",IF(I$3>(A8stdlife+$E129),(Input!$G$70*(1+rvanilla)^0.5)-SUM($G129:H129),(Input!$G$70*(1+rvanilla)^0.5)/A8stdlife)) -> 0 | J129: =IF(A8stdlife="n/a","n/a",IF(J$3>(A8stdlife+$E129),(Input!$G$70*(1+rvanilla)^0.5)-SUM($G129:I129),(Input!$G$70*(1+rvanilla)^0.5)/A8stdlife)) -> 0 | K129: =IF(A8stdlife="n/a","n/a",IF(K$3>(A8stdlife+$E129),(Input!$G$70*(1+rvanilla)^0.5)-SUM($G129:J129),(Input!$G$70*(1+rvanilla)^0.5)/A8stdlife)) -> 0 | L129: =IF(A8stdlife="n/a","n/a",IF(L$3>(A8stdlife+$E129),(Input!$G$70*(1+rvanilla)^0.5)-SUM($G129:K129),(Input!$G$70*(1+rvanilla)^0.5)/A8stdlife)) -> 0 | M129: =IF(A8stdlife="n/a","n/a",IF(M$3>(A8stdlife+$E129),(Input!$G$70*(1+rvanilla)^0.5)-SUM($G129:L129),(Input!$G$70*(1+rvanilla)^0.5)/A8stdlife)) -> 0 | N129: =IF(A8stdlife="n/a","n/a",IF(N$3>(A8stdlife+$E129),(Input!$G$70*(1+rvanilla)^0.5)-SUM($G129:M129),(Input!$G$70*(1+rvanilla)^0.5)/A8stdlife)) -> 0 | O129: =IF(A8stdlife="n/a","n/a",IF(O$3>(A8stdlife+$E129),(Input!$G$70*(1+rvanilla)^0.5)-SUM($G129:N129),(Input!$G$70*(1+rvanilla)^0.5)/A8stdlife)) -> 0 | P129: =IF(A8stdlife="n/a","n/a",IF(P$3>(A8stdlife+$E129),(Input!$G$70*(1+rvanilla)^0.5)-SUM($G129:O129),(Input!$G$70*(1+rvanilla)^0.5)/A8stdlife)) -> 0
E130: 2 | I130: =IF(A8stdlife="n/a","n/a",IF(I$3>(A8stdlife+$E130),(Input!$H$70*(1+rvanilla)^0.5)-SUM($H130:H130),(Input!$H$70*(1+rvanilla)^0.5)/A8stdlife)) -> 0 | J130: =IF(A8stdlife="n/a","n/a",IF(J$3>(A8stdlife+$E130),(Input!$H$70*(1+rvanilla)^0.5)-SUM($H130:I130),(Input!$H$70*(1+rvanilla)^0.5)/A8stdlife)) -> 0 | K130: =IF(A8stdlife="n/a","n/a",IF(K$3>(A8stdlife+$E130),(Input!$H$70*(1+rvanilla)^0.5)-SUM($H130:J130),(Input!$H$70*(1+rvanilla)^0.5)/A8stdlife)) -> 0 | L130: =IF(A8stdlife="n/a","n/a",IF(L$3>(A8stdlife+$E130),(Input!$H$70*(1+rvanilla)^0.5)-SUM($H130:K130),(Input!$H$70*(1+rvanilla)^0.5)/A8stdlife)) -> 0 | M130: =IF(A8stdlife="n/a","n/a",IF(M$3>(A8stdlife+$E130),(Input!$H$70*(1+rvanilla)^0.5)-SUM($H130:L130),(Input!$H$70*(1+rvanilla)^0.5)/A8stdlife)) -> 0 | N130: =IF(A8stdlife="n/a","n/a",IF(N$3>(A8stdlife+$E130),(Input!$H$70*(1+rvanilla)^0.5)-SUM($H130:M130),(Input!$H$70*(1+rvanilla)^0.5)/A8stdlife)) -> 0 | O130: =IF(A8stdlife="n/a","n/a",IF(O$3>(A8stdlife+$E130),(Input!$H$70*(1+rvanilla)^0.5)-SUM($H130:N130),(Input!$H$70*(1+rvanilla)^0.5)/A8stdlife)) -> 0 | P130: =IF(A8stdlife="n/a","n/a",IF(P$3>(A8stdlife+$E130),(Input!$H$70*(1+rvanilla)^0.5)-SUM($H130:O130),(Input!$H$70*(1+rvanilla)^0.5)/A8stdlife)) -> 0
E131: 3 | J131: =IF(A8stdlife="n/a","n/a",IF(J$3>(A8stdlife+$E131),(Input!$I$70*(1+rvanilla)^0.5)-SUM($I131:I131),(Input!$I$70*(1+rvanilla)^0.5)/A8stdlife)) -> 0 | K131: =IF(A8stdlife="n/a","n/a",IF(K$3>(A8stdlife+$E131),(Input!$I$70*(1+rvanilla)^0.5)-SUM($I131:J131),(Input!$I$70*(1+rvanilla)^0.5)/A8stdlife)) -> 0 | L131: =IF(A8stdlife="n/a","n/a",IF(L$3>(A8stdlife+$E131),(Input!$I$70*(1+rvanilla)^0.5)-SUM($I131:K131),(Input!$I$70*(1+rvanilla)^0.5)/A8stdlife)) -> 0 | M131: =IF(A8stdlife="n/a","n/a",IF(M$3>(A8stdlife+$E131),(Input!$I$70*(1+rvanilla)^0.5)-SUM($I131:L131),(Input!$I$70*(1+rvanilla)^0.5)/A8stdlife)) -> 0 | N131: =IF(A8stdlife="n/a","n/a",IF(N$3>(A8stdlife+$E131),(Input!$I$70*(1+rvanilla)^0.5)-SUM($I131:M131),(Input!$I$70*(1+rvanilla)^0.5)/A8stdlife)) -> 0 | O131: =IF(A8stdlife="n/a","n/a",IF(O$3>(A8stdlife+$E131),(Input!$I$70*(1+rvanilla)^0.5)-SUM($I131:N131),(Input!$I$70*(1+rvanilla)^0.5)/A8stdlife)) -> 0 | P131: =IF(A8stdlife="n/a","n/a",IF(P$3>(A8stdlife+$E131),(Input!$I$70*(1+rvanilla)^0.5)-SUM($I131:O131),(Input!$I$70*(1+rvanilla)^0.5)/A8stdlife)) -> 0
E132: 4 | K132: =IF(A8stdlife="n/a","n/a",IF(K$3>(A8stdlife+$E132),(Input!$J$70*(1+rvanilla)^0.5)-SUM($J132:J132),(Input!$J$70*(1+rvanilla)^0.5)/A8stdlife)) -> 0 | L132: =IF(A8stdlife="n/a","n/a",IF(L$3>(A8stdlife+$E132),(Input!$J$70*(1+rvanilla)^0.5)-SUM($J132:K132),(Input!$J$70*(1+rvanilla)^0.5)/A8stdlife)) -> 0 | M132: =IF(A8stdlife="n/a","n/a",IF(M$3>(A8stdlife+$E132),(Input!$J$70*(1+rvanilla)^0.5)-SUM($J132:L132),(Input!$J$70*(1+rvanilla)^0.5)/A8stdlife)) -> 0 | N132: =IF(A8stdlife="n/a","n/a",IF(N$3>(A8stdlife+$E132),(Input!$J$70*(1+rvanilla)^0.5)-SUM($J132:M132),(Input!$J$70*(1+rvanilla)^0.5)/A8stdlife)) -> 0 | O132: =IF(A8stdlife="n/a","n/a",IF(O$3>(A8stdlife+$E132),(Input!$J$70*(1+rvanilla)^0.5)-SUM($J132:N132),(Input!$J$70*(1+rvanilla)^0.5)/A8stdlife)) -> 0 | P132: =IF(A8stdlife="n/a","n/a",IF(P$3>(A8stdlife+$E132),(Input!$J$70*(1+rvanilla)^0.5)-SUM($J132:O132),(Input!$J$70*(1+rvanilla)^0.5)/A8stdlife)) -> 0
E133: 5 | L133: =IF(A8stdlife="n/a","n/a",IF(L$3>(A8stdlife+$E133),(Input!$K$70*(1+rvanilla)^0.5)-SUM($K133:K133),(Input!$K$70*(1+rvanilla)^0.5)/A8stdlife)) -> 0 | M133: =IF(A8stdlife="n/a","n/a",IF(M$3>(A8stdlife+$E133),(Input!$K$70*(1+rvanilla)^0.5)-SUM($K133:L133),(Input!$K$70*(1+rvanilla)^0.5)/A8stdlife)) -> 0 | N133: =IF(A8stdlife="n/a","n/a",IF(N$3>(A8stdlife+$E133),(Input!$K$70*(1+rvanilla)^0.5)-SUM($K133:M133),(Input!$K$70*(1+rvanilla)^0.5)/A8stdlife)) -> 0 | O133: =IF(A8stdlife="n/a","n/a",IF(O$3>(A8stdlife+$E133),(Input!$K$70*(1+rvanilla)^0.5)-SUM($K133:N133),(Input!$K$70*(1+rvanilla)^0.5)/A8stdlife)) -> 0 | P133: =IF(A8stdlife="n/a","n/a",IF(P$3>(A8stdlife+$E133),(Input!$K$70*(1+rvanilla)^0.5)-SUM($K133:O133),(Input!$K$70*(1+rvanilla)^0.5)/A8stdlife)) -> 0
E134: 6 | M134: =IF(A8stdlife="n/a","n/a",IF(M$3>(A8stdlife+$E134),(Input!$L$70*(1+rvanilla)^0.5)-SUM($L134:L134),(Input!$L$70*(1+rvanilla)^0.5)/A8stdlife)) -> 0 | N134: =IF(A8stdlife="n/a","n/a",IF(N$3>(A8stdlife+$E134),(Input!$L$70*(1+rvanilla)^0.5)-SUM($L134:M134),(Input!$L$70*(1+rvanilla)^0.5)/A8stdlife)) -> 0 | O134: =IF(A8stdlife="n/a","n/a",IF(O$3>(A8stdlife+$E134),(Input!$L$70*(1+rvanilla)^0.5)-SUM($L134:N134),(Input!$L$70*(1+rvanilla)^0.5)/A8stdlife)) -> 0 | P134: =IF(A8stdlife="n/a","n/a",IF(P$3>(A8stdlife+$E134),(Input!$L$70*(1+rvanilla)^0.5)-SUM($L134:O134),(Input!$L$70*(1+rvanilla)^0.5)/A8stdlife)) -> 0
E135: 7 | N135: =IF(A8stdlife="n/a","n/a",IF(N$3>(A8stdlife+$E135),(Input!$M$70*(1+rvanilla)^0.5)-SUM($M135:M135),(Input!$M$70*(1+rvanilla)^0.5)/A8stdlife)) -> 0 | O135: =IF(A8stdlife="n/a","n/a",IF(O$3>(A8stdlife+$E135),(Input!$M$70*(1+rvanilla)^0.5)-SUM($M135:N135),(Input!$M$70*(1+rvanilla)^0.5)/A8stdlife)) -> 0 | P135: =IF(A8stdlife="n/a","n/a",IF(P$3>(A8stdlife+$E135),(Input!$M$70*(1+rvanilla)^0.5)-SUM($M135:O135),(Input!$M$70*(1+rvanilla)^0.5)/A8stdlife)) -> 0
E136: 8 | O136: =IF(A8stdlife="n/a","n/a",IF(O$3>(A8stdlife+$E136),(Input!$N$70*(1+rvanilla)^0.5)-SUM($N136:N136),(Input!$N$70*(1+rvanilla)^0.5)/A8stdlife)) -> 0 | P136: =IF(A8stdlife="n/a","n/a",IF(P$3>(A8stdlife+$E136),(Input!$N$70*(1+rvanilla)^0.5)-SUM($N136:O136),(Input!$N$70*(1+rvanilla)^0.5)/A8stdlife)) -> 0
E137: 9 | P137: =IF(A8stdlife="n/a","n/a",IF(P$3>(A8stdlife+$E137),(Input!$O$70*(1+rvanilla)^0.5)-SUM($O137:O137),(Input!$O$70*(1+rvanilla)^0.5)/A8stdlife)) -> 0
E138: 10
C139: =Asset8 -> 0 | G139: =SUM(G127:G138) -> 0 | H139: 0 | I139: 0 | J139: 0 | K139: 0 | L139: 0 | M139: 0 | N139: 0 | O139: 0 | P139: 0
B140: =C152 -> 0 | D140: Initial Asset Base | G140: =IF(G$3>A9remlife,A9value-SUM($F140:F140),IF(A9remlife="N/A","n/a",A9value/A9remlife)) -> 0 | H140: =IF(H$3>A9remlife,A9value-SUM($F140:G140),IF(A9remlife="N/A","n/a",A9value/A9remlife)) -> 0 | I140: =IF(I$3>A9remlife,A9value-SUM($F140:H140),IF(A9remlife="N/A","n/a",A9value/A9remlife)) -> 0 | J140: =IF(J$3>A9remlife,A9value-SUM($F140:I140),IF(A9remlife="N/A","n/a",A9value/A9remlife)) -> 0 | K140: =IF(K$3>A9remlife,A9value-SUM($F140:J140),IF(A9remlife="N/A","n/a",A9value/A9remlife)) -> 0 | L140: =IF(L$3>A9remlife,A9value-SUM($F140:K140),IF(A9remlife="N/A","n/a",A9value/A9remlife)) -> 0 | M140: =IF(M$3>A9remlife,A9value-SUM($F140:L140),IF(A9remlife="N/A","n/a",A9value/A9remlife)) -> 0 | N140: =IF(N$3>A9remlife,A9value-SUM($F140:M140),IF(A9remlife="N/A","n/a",A9value/A9remlife)) -> 0 | O140: =IF(O$3>A9remlife,A9value-SUM($F140:N140),IF(A9remlife="N/A","n/a",A9value/A9remlife)) -> 0 | P140: =IF(P$3>A9remlife,A9value-SUM($F140:O140),IF(A9remlife="N/A","n/a",A9value/A9remlife)) -> 0
D141: Capex | E141: 0
E142: 1 | H142: =IF(A9stdlife="n/a","n/a",IF(H$3>(A9stdlife+$E142),(Input!$G$71*(1+rvanilla)^0.5)-SUM($G142:G142),(Input!$G$71*(1+rvanilla)^0.5)/A9stdlife)) -> 0 | I142: =IF(A9stdlife="n/a","n/a",IF(I$3>(A9stdlife+$E142),(Input!$G$71*(1+rvanilla)^0.5)-SUM($G142:H142),(Input!$G$71*(1+rvanilla)^0.5)/A9stdlife)) -> 0 | J142: =IF(A9stdlife="n/a","n/a",IF(J$3>(A9stdlife+$E142),(Input!$G$71*(1+rvanilla)^0.5)-SUM($G142:I142),(Input!$G$71*(1+rvanilla)^0.5)/A9stdlife)) -> 0 | K142: =IF(A9stdlife="n/a","n/a",IF(K$3>(A9stdlife+$E142),(Input!$G$71*(1+rvanilla)^0.5)-SUM($G142:J142),(Input!$G$71*(1+rvanilla)^0.5)/A9stdlife)) -> 0 | L142: =IF(A9stdlife="n/a","n/a",IF(L$3>(A9stdlife+$E142),(Input!$G$71*(1+rvanilla)^0.5)-SUM($G142:K142),(Input!$G$71*(1+rvanilla)^0.5)/A9stdlife)) -> 0 | M142: =IF(A9stdlife="n/a","n/a",IF(M$3>(A9stdlife+$E142),(Input!$G$71*(1+rvanilla)^0.5)-SUM($G142:L142),(Input!$G$71*(1+rvanilla)^0.5)/A9stdlife)) -> 0 | N142: =IF(A9stdlife="n/a","n/a",IF(N$3>(A9stdlife+$E142),(Input!$G$71*(1+rvanilla)^0.5)-SUM($G142:M142),(Input!$G$71*(1+rvanilla)^0.5)/A9stdlife)) -> 0 | O142: =IF(A9stdlife="n/a","n/a",IF(O$3>(A9stdlife+$E142),(Input!$G$71*(1+rvanilla)^0.5)-SUM($G142:N142),(Input!$G$71*(1+rvanilla)^0.5)/A9stdlife)) -> 0 | P142: =IF(A9stdlife="n/a","n/a",IF(P$3>(A9stdlife+$E142),(Input!$G$71*(1+rvanilla)^0.5)-SUM($G142:O142),(Input!$G$71*(1+rvanilla)^0.5)/A9stdlife)) -> 0
E143: 2 | I143: =IF(A9stdlife="n/a","n/a",IF(I$3>(A9stdlife+$E143),(Input!$H$71*(1+rvanilla)^0.5)-SUM($H143:H143),(Input!$H$71*(1+rvanilla)^0.5)/A9stdlife)) -> 0 | J143: =IF(A9stdlife="n/a","n/a",IF(J$3>(A9stdlife+$E143),(Input!$H$71*(1+rvanilla)^0.5)-SUM($H143:I143),(Input!$H$71*(1+rvanilla)^0.5)/A9stdlife)) -> 0 | K143: =IF(A9stdlife="n/a","n/a",IF(K$3>(A9stdlife+$E143),(Input!$H$71*(1+rvanilla)^0.5)-SUM($H143:J143),(Input!$H$71*(1+rvanilla)^0.5)/A9stdlife)) -> 0 | L143: =IF(A9stdlife="n/a","n/a",IF(L$3>(A9stdlife+$E143),(Input!$H$71*(1+rvanilla)^0.5)-SUM($H143:K143),(Input!$H$71*(1+rvanilla)^0.5)/A9stdlife)) -> 0 | M143: =IF(A9stdlife="n/a","n/a",IF(M$3>(A9stdlife+$E143),(Input!$H$71*(1+rvanilla)^0.5)-SUM($H143:L143),(Input!$H$71*(1+rvanilla)^0.5)/A9stdlife)) -> 0 | N143: =IF(A9stdlife="n/a","n/a",IF(N$3>(A9stdlife+$E143),(Input!$H$71*(1+rvanilla)^0.5)-SUM($H143:M143),(Input!$H$71*(1+rvanilla)^0.5)/A9stdlife)) -> 0 | O143: =IF(A9stdlife="n/a","n/a",IF(O$3>(A9stdlife+$E143),(Input!$H$71*(1+rvanilla)^0.5)-SUM($H143:N143),(Input!$H$71*(1+rvanilla)^0.5)/A9stdlife)) -> 0 | P143: =IF(A9stdlife="n/a","n/a",IF(P$3>(A9stdlife+$E143),(Input!$H$71*(1+rvanilla)^0.5)-SUM($H143:O143),(Input!$H$71*(1+rvanilla)^0.5)/A9stdlife)) -> 0
E144: 3 | J144: =IF(A9stdlife="n/a","n/a",IF(J$3>(A9stdlife+$E144),(Input!$I$71*(1+rvanilla)^0.5)-SUM($I144:I144),(Input!$I$71*(1+rvanilla)^0.5)/A9stdlife)) -> 0 | K144: =IF(A9stdlife="n/a","n/a",IF(K$3>(A9stdlife+$E144),(Input!$I$71*(1+rvanilla)^0.5)-SUM($I144:J144),(Input!$I$71*(1+rvanilla)^0.5)/A9stdlife)) -> 0 | L144: =IF(A9stdlife="n/a","n/a",IF(L$3>(A9stdlife+$E144),(Input!$I$71*(1+rvanilla)^0.5)-SUM($I144:K144),(Input!$I$71*(1+rvanilla)^0.5)/A9stdlife)) -> 0 | M144: =IF(A9stdlife="n/a","n/a",IF(M$3>(A9stdlife+$E144),(Input!$I$71*(1+rvanilla)^0.5)-SUM($I144:L144),(Input!$I$71*(1+rvanilla)^0.5)/A9stdlife)) -> 0 | N144: =IF(A9stdlife="n/a","n/a",IF(N$3>(A9stdlife+$E144),(Input!$I$71*(1+rvanilla)^0.5)-SUM($I144:M144),(Input!$I$71*(1+rvanilla)^0.5)/A9stdlife)) -> 0 | O144: =IF(A9stdlife="n/a","n/a",IF(O$3>(A9stdlife+$E144),(Input!$I$71*(1+rvanilla)^0.5)-SUM($I144:N144),(Input!$I$71*(1+rvanilla)^0.5)/A9stdlife)) -> 0 | P144: =IF(A9stdlife="n/a","n/a",IF(P$3>(A9stdlife+$E144),(Input!$I$71*(1+rvanilla)^0.5)-SUM($I144:O144),(Input!$I$71*(1+rvanilla)^0.5)/A9stdlife)) -> 0
E145: 4 | K145: =IF(A9stdlife="n/a","n/a",IF(K$3>(A9stdlife+$E145),(Input!$J$71*(1+rvanilla)^0.5)-SUM($J145:J145),(Input!$J$71*(1+rvanilla)^0.5)/A9stdlife)) -> 0 | L145: =IF(A9stdlife="n/a","n/a",IF(L$3>(A9stdlife+$E145),(Input!$J$71*(1+rvanilla)^0.5)-SUM($J145:K145),(Input!$J$71*(1+rvanilla)^0.5)/A9stdlife)) -> 0 | M145: =IF(A9stdlife="n/a","n/a",IF(M$3>(A9stdlife+$E145),(Input!$J$71*(1+rvanilla)^0.5)-SUM($J145:L145),(Input!$J$71*(1+rvanilla)^0.5)/A9stdlife)) -> 0 | N145: =IF(A9stdlife="n/a","n/a",IF(N$3>(A9stdlife+$E145),(Input!$J$71*(1+rvanilla)^0.5)-SUM($J145:M145),(Input!$J$71*(1+rvanilla)^0.5)/A9stdlife)) -> 0 | O145: =IF(A9stdlife="n/a","n/a",IF(O$3>(A9stdlife+$E145),(Input!$J$71*(1+rvanilla)^0.5)-SUM($J145:N145),(Input!$J$71*(1+rvanilla)^0.5)/A9stdlife)) -> 0 | P145: =IF(A9stdlife="n/a","n/a",IF(P$3>(A9stdlife+$E145),(Input!$J$71*(1+rvanilla)^0.5)-SUM($J145:O145),(Input!$J$71*(1+rvanilla)^0.5)/A9stdlife)) -> 0
E146: 5 | L146: =IF(A9stdlife="n/a","n/a",IF(L$3>(A9stdlife+$E146),(Input!$K$71*(1+rvanilla)^0.5)-SUM($K146:K146),(Input!$K$71*(1+rvanilla)^0.5)/A9stdlife)) -> 0 | M146: =IF(A9stdlife="n/a","n/a",IF(M$3>(A9stdlife+$E146),(Input!$K$71*(1+rvanilla)^0.5)-SUM($K146:L146),(Input!$K$71*(1+rvanilla)^0.5)/A9stdlife)) -> 0 | N146: =IF(A9stdlife="n/a","n/a",IF(N$3>(A9stdlife+$E146),(Input!$K$71*(1+rvanilla)^0.5)-SUM($K146:M146),(Input!$K$71*(1+rvanilla)^0.5)/A9stdlife)) -> 0 | O146: =IF(A9stdlife="n/a","n/a",IF(O$3>(A9stdlife+$E146),(Input!$K$71*(1+rvanilla)^0.5)-SUM($K146:N146),(Input!$K$71*(1+rvanilla)^0.5)/A9stdlife)) -> 0 | P146: =IF(A9stdlife="n/a","n/a",IF(P$3>(A9stdlife+$E146),(Input!$K$71*(1+rvanilla)^0.5)-SUM($K146:O146),(Input!$K$71*(1+rvanilla)^0.5)/A9stdlife)) -> 0
E147: 6 | M147: =IF(A9stdlife="n/a","n/a",IF(M$3>(A9stdlife+$E147),(Input!$L$71*(1+rvanilla)^0.5)-SUM($L147:L147),(Input!$L$71*(1+rvanilla)^0.5)/A9stdlife)) -> 0 | N147: =IF(A9stdlife="n/a","n/a",IF(N$3>(A9stdlife+$E147),(Input!$L$71*(1+rvanilla)^0.5)-SUM($L147:M147),(Input!$L$71*(1+rvanilla)^0.5)/A9stdlife)) -> 0 | O147: =IF(A9stdlife="n/a","n/a",IF(O$3>(A9stdlife+$E147),(Input!$L$71*(1+rvanilla)^0.5)-SUM($L147:N147),(Input!$L$71*(1+rvanilla)^0.5)/A9stdlife)) -> 0 | P147: =IF(A9stdlife="n/a","n/a",IF(P$3>(A9stdlife+$E147),(Input!$L$71*(1+rvanilla)^0.5)-SUM($L147:O147),(Input!$L$71*(1+rvanilla)^0.5)/A9stdlife)) -> 0
E148: 7 | N148: =IF(A9stdlife="n/a","n/a",IF(N$3>(A9stdlife+$E148),(Input!$M$71*(1+rvanilla)^0.5)-SUM($M148:M148),(Input!$M$71*(1+rvanilla)^0.5)/A9stdlife)) -> 0 | O148: =IF(A9stdlife="n/a","n/a",IF(O$3>(A9stdlife+$E148),(Input!$M$71*(1+rvanilla)^0.5)-SUM($M148:N148),(Input!$M$71*(1+rvanilla)^0.5)/A9stdlife)) -> 0 | P148: =IF(A9stdlife="n/a","n/a",IF(P$3>(A9stdlife+$E148),(Input!$M$71*(1+rvanilla)^0.5)-SUM($M148:O148),(Input!$M$71*(1+rvanilla)^0.5)/A9stdlife)) -> 0
E149: 8 | O149: =IF(A9stdlife="n/a","n/a",IF(O$3>(A9stdlife+$E149),(Input!$N$71*(1+rvanilla)^0.5)-SUM($N149:N149),(Input!$N$71*(1+rvanilla)^0.5)/A9stdlife)) -> 0 | P149: =IF(A9stdlife="n/a","n/a",IF(P$3>(A9stdlife+$E149),(Input!$N$71*(1+rvanilla)^0.5)-SUM($N149:O149),(Input!$N$71*(1+rvanilla)^0.5)/A9stdlife)) -> 0
E150: 9 | P150: =IF(A9stdlife="n/a","n/a",IF(P$3>(A9stdlife+$E150),(Input!$O$71*(1+rvanilla)^0.5)-SUM($O150:O150),(Input!$O$71*(1+rvanilla)^0.5)/A9stdlife)) -> 0
E151: 10
C152: =Asset9 -> 0 | G152: =SUM(G140:G151) -> 0 | H152: =SUM(H140:H151) -> 0 | I152: 0 | J152: 0 | K152: 0 | L152: 0 | M152: 0 | N152: 0 | O152: 0 | P152: 0
B153: Real Residual RAB (end period) | F153: =F9 -> 115.1053412 | G153: =F153-G35+G10 -> 119.9708509 | H153: 117.7240031 | I153: 111.7586595 | J153: 112.4308659 | K153: 112.6371861 | L153: 104.7416218 | M153: 96.84605749 | N153: 88.95049319 | O153: 81.05492889 | P153: 73.15936459
B154: Real Residual RAB (start period) | F154: 0 | G154: =F153 -> 115.1053412 | H154: =G153 -> 119.9708509 | I154: =H153 -> 117.7240031 | J154: 111.7586595 | K154: 112.4308659 | L154: 112.6371861 | M154: 104.7416218 | N154: 96.84605749 | O154: 88.95049319 | P154: =O153 -> 81.05492889
B156: Nominal Asset Values
B158: Inflation on Opening RAB | G158: =F161*G6 -> 2.877633531 | H158: 3.074253055 | I158: 3.092094518 | J158: 3.008796318 | K158: 3.102565976 | L158: 3.185965935 | M158: 3.036704235 | N158: 2.877988221 | O158: 2.709438466 | P158: 2.53066248
B159: Nominal Straight-line Depreciation | G159: =G35*G7 -> 5.974318949 | H159: 6.872710459 | I159: 7.352856144 | J159: 7.600147844 | K159: 8.360197626 | L159: 9.156433953 | M159: 9.385344801 | N159: 9.619978421 | O159: 9.860477882 | P159: 10.10698983
B160: Nominal Regulatory Depreciation | G160: =G159-G158 -> 3.096685419 | H160: =H159-H158 -> 3.798457404 | I160: =I159-I158 -> 4.260761625 | J160: 4.591351526 | K160: 5.25763165 | L160: 5.970468017 | M160: 6.348640566 | N160: 6.7419902 | O160: 7.151039416 | P160: 7.576327348
B161: Nominal Residual RAB (end period) | F161: =F$7*F153 -> 115.1053412 | G161: =G$7*G153 -> 122.9701222 | H161: =H$7*H153 -> 123.6837807 | I161: =I$7*I153 -> 120.3518527 | J161: 124.102639 | K161: 127.4386374 | L161: 121.4681694 | M161: 115.1195288 | N161: 108.3775386 | O161: 101.2264992 | P161: 93.65017187
B162: Inflated Nominal Residual RAB (start period) | F162: =F$7*F154 -> 0 | G162: =G$7*G154 -> 117.9829748 | H162: =H$7*H154 -> 126.0443752 | I162: =I$7*I154 -> 126.7758752 | J162: 123.360649 | K162: 127.205205 | L162: 130.6246034 | M162: 124.5048736 | N162: 117.9975171 | O162: 111.0869771 | P162: 103.7571617
B164: Nominal Tax Values
B166: Tax Depreciation | G166: =G179+G192+G205+G218+G231+G244+G257+G270+G283+G296 -> 6.691622454 | H166: =H179+H192+H205+H218+H231+H244+H257+H270+H283+H296 -> 7.120469674 | I166: 7.437187816 | J166: 7.777897018 | K166: 8.26377826 | L166: 8.760086869 | M166: 8.760086869 | N166: 8.760086869 | O166: 8.760086869 | P166: 8.760086869
B167: =C179 -> Type 5 and 6 meters | D167: Initial Asset Base | G167: =IF(G$3>A1taxremlife,A1taxvalue-SUM($F167:F167),IF(A1taxremlife="N/A","n/a",A1taxvalue/A1taxremlife)) -> 6.691622454 | H167: =IF(H$3>A1taxremlife,A1taxvalue-SUM($F167:G167),IF(A1taxremlife="N/A","n/a",A1taxvalue/A1taxremlife)) -> 6.691622454 | I167: =IF(I$3>A1taxremlife,A1taxvalue-SUM($F167:H167),IF(A1taxremlife="N/A","n/a",A1taxvalue/A1taxremlife)) -> 6.691622454 | J167: =IF(J$3>A1taxremlife,A1taxvalue-SUM($F167:I167),IF(A1taxremlife="N/A","n/a",A1taxvalue/A1taxremlife)) -> 6.691622454 | K167: =IF(K$3>A1taxremlife,A1taxvalue-SUM($F167:J167),IF(A1taxremlife="N/A","n/a",A1taxvalue/A1taxremlife)) -> 6.691622454 | L167: =IF(L$3>A1taxremlife,A1taxvalue-SUM($F167:K167),IF(A1taxremlife="N/A","n/a",A1taxvalue/A1taxremlife)) -> 6.691622454 | M167: =IF(M$3>A1taxremlife,A1taxvalue-SUM($F167:L167),IF(A1taxremlife="N/A","n/a",A1taxvalue/A1taxremlife)) -> 6.691622454 | N167: =IF(N$3>A1taxremlife,A1taxvalue-SUM($F167:M167),IF(A1taxremlife="N/A","n/a",A1taxvalue/A1taxremlife)) -> 6.691622454 | O167: =IF(O$3>A1taxremlife,A1taxvalue-SUM($F167:N167),IF(A1taxremlife="N/A","n/a",A1taxvalue/A1taxremlife)) -> 6.691622454 | P167: =IF(P$3>A1taxremlife,A1taxvalue-SUM($F167:O167),IF(A1taxremlife="N/A","n/a",A1taxvalue/A1taxremlife)) -> 6.691622454
D168: Capex | E168: 0
E169: 1 | H169: =IF(A1taxstdlife="n/a","n/a",IF(H$3>(A1taxstdlife+$E169),((Input!$G$63+Input!$G$49)*$G$7)-SUM($G169:G169),((Input!$G$63+Input!$G$49)*$G$7)/A1taxstdlife)) -> 0.42884722 | I169: =IF(A1taxstdlife="n/a","n/a",IF(I$3>(A1taxstdlife+$E169),((Input!$G$63+Input!$G$49)*$G$7)-SUM($G169:H169),((Input!$G$63+Input!$G$49)*$G$7)/A1taxstdlife)) -> 0.42884722 | J169: =IF(A1taxstdlife="n/a","n/a",IF(J$3>(A1taxstdlife+$E169),((Input!$G$63+Input!$G$49)*$G$7)-SUM($G169:I169),((Input!$G$63+Input!$G$49)*$G$7)/A1taxstdlife)) -> 0.42884722 | K169: =IF(A1taxstdlife="n/a","n/a",IF(K$3>(A1taxstdlife+$E169),((Input!$G$63+Input!$G$49)*$G$7)-SUM($G169:J169),((Input!$G$63+Input!$G$49)*$G$7)/A1taxstdlife)) -> 0.42884722 | L169: =IF(A1taxstdlife="n/a","n/a",IF(L$3>(A1taxstdlife+$E169),((Input!$G$63+Input!$G$49)*$G$7)-SUM($G169:K169),((Input!$G$63+Input!$G$49)*$G$7)/A1taxstdlife)) -> 0.42884722 | M169: =IF(A1taxstdlife="n/a","n/a",IF(M$3>(A1taxstdlife+$E169),((Input!$G$63+Input!$G$49)*$G$7)-SUM($G169:L169),((Input!$G$63+Input!$G$49)*$G$7)/A1taxstdlife)) -> 0.42884722 | N169: =IF(A1taxstdlife="n/a","n/a",IF(N$3>(A1taxstdlife+$E169),((Input!$G$63+Input!$G$49)*$G$7)-SUM($G169:M169),((Input!$G$63+Input!$G$49)*$G$7)/A1taxstdlife)) -> 0.42884722 | O169: =IF(A1taxstdlife="n/a","n/a",IF(O$3>(A1taxstdlife+$E169),((Input!$G$63+Input!$G$49)*$G$7)-SUM($G169:N169),((Input!$G$63+Input!$G$49)*$G$7)/A1taxstdlife)) -> 0.42884722 | P169: =IF(A1taxstdlife="n/a","n/a",IF(P$3>(A1taxstdlife+$E169),((Input!$G$63+Input!$G$49)*$G$7)-SUM($G169:O169),((Input!$G$63+Input!$G$49)*$G$7)/A1taxstdlife)) -> 0.42884722
E170: 2 | I170: =IF(A1taxstdlife="n/a","n/a",IF(I$3>(A1taxstdlife+$E170),((Input!$H$63+Input!$H$49)*$H$7)-SUM($H170:H170),((Input!$H$63+Input!$H$49)*$H$7)/A1taxstdlife)) -> 0.3167181427 | J170: =IF(A1taxstdlife="n/a","n/a",IF(J$3>(A1taxstdlife+$E170),((Input!$H$63+Input!$H$49)*$H$7)-SUM($H170:I170),((Input!$H$63+Input!$H$49)*$H$7)/A1taxstdlife)) -> 0.3167181427 | K170: =IF(A1taxstdlife="n/a","n/a",IF(K$3>(A1taxstdlife+$E170),((Input!$H$63+Input!$H$49)*$H$7)-SUM($H170:J170),((Input!$H$63+Input!$H$49)*$H$7)/A1taxstdlife)) -> 0.3167181427 | L170: =IF(A1taxstdlife="n/a","n/a",IF(L$3>(A1taxstdlife+$E170),((Input!$H$63+Input!$H$49)*$H$7)-SUM($H170:K170),((Input!$H$63+Input!$H$49)*$H$7)/A1taxstdlife)) -> 0.3167181427 | M170: =IF(A1taxstdlife="n/a","n/a",IF(M$3>(A1taxstdlife+$E170),((Input!$H$63+Input!$H$49)*$H$7)-SUM($H170:L170),((Input!$H$63+Input!$H$49)*$H$7)/A1taxstdlife)) -> 0.3167181427 | N170: =IF(A1taxstdlife="n/a","n/a",IF(N$3>(A1taxstdlife+$E170),((Input!$H$63+Input!$H$49)*$H$7)-SUM($H170:M170),((Input!$H$63+Input!$H$49)*$H$7)/A1taxstdlife)) -> 0.3167181427 | O170: =IF(A1taxstdlife="n/a","n/a",IF(O$3>(A1taxstdlife+$E170),((Input!$H$63+Input!$H$49)*$H$7)-SUM($H170:N170),((Input!$H$63+Input!$H$49)*$H$7)/A1taxstdlife)) -> 0.3167181427 | P170: =IF(A1taxstdlife="n/a","n/a",IF(P$3>(A1taxstdlife+$E170),((Input!$H$63+Input!$H$49)*$H$7)-SUM($H170:O170),((Input!$H$63+Input!$H$49)*$H$7)/A1taxstdlife)) -> 0.3167181427
E171: 3 | J171: =IF(A1taxstdlife="n/a","n/a",IF(J$3>(A1taxstdlife+$E171),((Input!$I$63+Input!$I$49)*$I$7)-SUM($I171:I171),((Input!$I$63+Input!$I$49)*$I$7)/A1taxstdlife)) -> 0.3407092021 | K171: =IF(A1taxstdlife="n/a","n/a",IF(K$3>(A1taxstdlife+$E171),((Input!$I$63+Input!$I$49)*$I$7)-SUM($I171:J171),((Input!$I$63+Input!$I$49)*$I$7)/A1taxstdlife)) -> 0.3407092021 | L171: =IF(A1taxstdlife="n/a","n/a",IF(L$3>(A1taxstdlife+$E171),((Input!$I$63+Input!$I$49)*$I$7)-SUM($I171:K171),((Input!$I$63+Input!$I$49)*$I$7)/A1taxstdlife)) -> 0.3407092021 | M171: =IF(A1taxstdlife="n/a","n/a",IF(M$3>(A1taxstdlife+$E171),((Input!$I$63+Input!$I$49)*$I$7)-SUM($I171:L171),((Input!$I$63+Input!$I$49)*$I$7)/A1taxstdlife)) -> 0.3407092021 | N171: =IF(A1taxstdlife="n/a","n/a",IF(N$3>(A1taxstdlife+$E171),((Input!$I$63+Input!$I$49)*$I$7)-SUM($I171:M171),((Input!$I$63+Input!$I$49)*$I$7)/A1taxstdlife)) -> 0.3407092021 | O171: =IF(A1taxstdlife="n/a","n/a",IF(O$3>(A1taxstdlife+$E171),((Input!$I$63+Input!$I$49)*$I$7)-SUM($I171:N171),((Input!$I$63+Input!$I$49)*$I$7)/A1taxstdlife)) -> 0.3407092021 | P171: =IF(A1taxstdlife="n/a","n/a",IF(P$3>(A1taxstdlife+$E171),((Input!$I$63+Input!$I$49)*$I$7)-SUM($I171:O171),((Input!$I$63+Input!$I$49)*$I$7)/A1taxstdlife)) -> 0.3407092021
E172: 4 | K172: =IF(A1taxstdlife="n/a","n/a",IF(K$3>(A1taxstdlife+$E172),((Input!$J$63+Input!$J$49)*$J$7)-SUM($J172:J172),((Input!$J$63+Input!$J$49)*$J$7)/A1taxstdlife)) -> 0.4858812419 | L172: =IF(A1taxstdlife="n/a","n/a",IF(L$3>(A1taxstdlife+$E172),((Input!$J$63+Input!$J$49)*$J$7)-SUM($J172:K172),((Input!$J$63+Input!$J$49)*$J$7)/A1taxstdlife)) -> 0.4858812419 | M172: =IF(A1taxstdlife="n/a","n/a",IF(M$3>(A1taxstdlife+$E172),((Input!$J$63+Input!$J$49)*$J$7)-SUM($J172:L172),((Input!$J$63+Input!$J$49)*$J$7)/A1taxstdlife)) -> 0.4858812419 | N172: =IF(A1taxstdlife="n/a","n/a",IF(N$3>(A1taxstdlife+$E172),((Input!$J$63+Input!$J$49)*$J$7)-SUM($J172:M172),((Input!$J$63+Input!$J$49)*$J$7)/A1taxstdlife)) -> 0.4858812419 | O172: =IF(A1taxstdlife="n/a","n/a",IF(O$3>(A1taxstdlife+$E172),((Input!$J$63+Input!$J$49)*$J$7)-SUM($J172:N172),((Input!$J$63+Input!$J$49)*$J$7)/A1taxstdlife)) -> 0.4858812419 | P172: =IF(A1taxstdlife="n/a","n/a",IF(P$3>(A1taxstdlife+$E172),((Input!$J$63+Input!$J$49)*$J$7)-SUM($J172:O172),((Input!$J$63+Input!$J$49)*$J$7)/A1taxstdlife)) -> 0.4858812419
E173: 5 | L173: =IF(A1taxstdlife="n/a","n/a",IF(L$3>(A1taxstdlife+$E173),((Input!$K$63+Input!$K$49)*$K$7)-SUM($K173:K173),((Input!$K$63+Input!$K$49)*$K$7)/A1taxstdlife)) -> 0.4963086087 | M173: =IF(A1taxstdlife="n/a","n/a",IF(M$3>(A1taxstdlife+$E173),((Input!$K$63+Input!$K$49)*$K$7)-SUM($K173:L173),((Input!$K$63+Input!$K$49)*$K$7)/A1taxstdlife)) -> 0.4963086087 | N173: =IF(A1taxstdlife="n/a","n/a",IF(N$3>(A1taxstdlife+$E173),((Input!$K$63+Input!$K$49)*$K$7)-SUM($K173:M173),((Input!$K$63+Input!$K$49)*$K$7)/A1taxstdlife)) -> 0.4963086087 | O173: =IF(A1taxstdlife="n/a","n/a",IF(O$3>(A1taxstdlife+$E173),((Input!$K$63+Input!$K$49)*$K$7)-SUM($K173:N173),((Input!$K$63+Input!$K$49)*$K$7)/A1taxstdlife)) -> 0.4963086087 | P173: =IF(A1taxstdlife="n/a","n/a",IF(P$3>(A1taxstdlife+$E173),((Input!$K$63+Input!$K$49)*$K$7)-SUM($K173:O173),((Input!$K$63+Input!$K$49)*$K$7)/A1taxstdlife)) -> 0.4963086087
E174: 6 | M174: =IF(A1taxstdlife="n/a","n/a",IF(M$3>(A1taxstdlife+$E174),((Input!$L$63+Input!$L$49)*$L$7)-SUM($L174:L174),((Input!$L$63+Input!$L$49)*$L$7)/A1taxstdlife)) -> 0 | N174: =IF(A1taxstdlife="n/a","n/a",IF(N$3>(A1taxstdlife+$E174),((Input!$L$63+Input!$L$49)*$L$7)-SUM($L174:M174),((Input!$L$63+Input!$L$49)*$L$7)/A1taxstdlife)) -> 0 | O174: =IF(A1taxstdlife="n/a","n/a",IF(O$3>(A1taxstdlife+$E174),((Input!$L$63+Input!$L$49)*$L$7)-SUM($L174:N174),((Input!$L$63+Input!$L$49)*$L$7)/A1taxstdlife)) -> 0 | P174: =IF(A1taxstdlife="n/a","n/a",IF(P$3>(A1taxstdlife+$E174),((Input!$L$63+Input!$L$49)*$L$7)-SUM($L174:O174),((Input!$L$63+Input!$L$49)*$L$7)/A1taxstdlife)) -> 0
E175: 7 | N175: =IF(A1taxstdlife="n/a","n/a",IF(N$3>(A1taxstdlife+$E175),((Input!$M$63+Input!$M$49)*$M$7)-SUM($M175:M175),((Input!$M$63+Input!$M$49)*$M$7)/A1taxstdlife)) -> 0 | O175: =IF(A1taxstdlife="n/a","n/a",IF(O$3>(A1taxstdlife+$E175),((Input!$M$63+Input!$M$49)*$M$7)-SUM($M175:N175),((Input!$M$63+Input!$M$49)*$M$7)/A1taxstdlife)) -> 0 | P175: =IF(A1taxstdlife="n/a","n/a",IF(P$3>(A1taxstdlife+$E175),((Input!$M$63+Input!$M$49)*$M$7)-SUM($M175:O175),((Input!$M$63+Input!$M$49)*$M$7)/A1taxstdlife)) -> 0
E176: 8 | O176: =IF(A1taxstdlife="n/a","n/a",IF(O$3>(A1taxstdlife+$E176),((Input!$N$63+Input!$N$49)*$N$7)-SUM($N176:N176),((Input!$N$63+Input!$N$49)*$N$7)/A1taxstdlife)) -> 0 | P176: =IF(A1taxstdlife="n/a","n/a",IF(P$3>(A1taxstdlife+$E176),((Input!$N$63+Input!$N$49)*$N$7)-SUM($N176:O176),((Input!$N$63+Input!$N$49)*$N$7)/A1taxstdlife)) -> 0
E177: 9 | P177: =IF(A1taxstdlife="n/a","n/a",IF(P$3>(A1taxstdlife+$E177),((Input!$O$63+Input!$O$49)*$O$7)-SUM($O177:O177),((Input!$O$63+Input!$O$49)*$O$7)/A1taxstdlife)) -> 0
E178: 10
C179: =Asset1 -> Type 5 and 6 meters | G179: =SUM(G167:G178) -> 6.691622454 | H179: =SUM(H167:H178) -> 7.120469674 | I179: 7.437187816 | J179: 7.777897018 | K179: 8.26377826 | L179: 8.760086869 | M179: 8.760086869 | N179: 8.760086869 | O179: 8.760086869 | P179: 8.760086869
B180: =C192 -> Equity raising costs | D180: Initial Asset Base | G180: =IF(G$3>A2taxremlife,A2taxvalue-SUM($F180:F180),IF(A2taxremlife="N/A","n/a",A2taxvalue/A2taxremlife)) -> 0 | H180: =IF(H$3>A2taxremlife,A2taxvalue-SUM($F180:G180),IF(A2taxremlife="N/A","n/a",A2taxvalue/A2taxremlife)) -> 0 | I180: =IF(I$3>A2taxremlife,A2taxvalue-SUM($F180:H180),IF(A2taxremlife="N/A","n/a",A2taxvalue/A2taxremlife)) -> 0 | J180: =IF(J$3>A2taxremlife,A2taxvalue-SUM($F180:I180),IF(A2taxremlife="N/A","n/a",A2taxvalue/A2taxremlife)) -> 0 | K180: =IF(K$3>A2taxremlife,A2taxvalue-SUM($F180:J180),IF(A2taxremlife="N/A","n/a",A2taxvalue/A2taxremlife)) -> 0 | L180: =IF(L$3>A2taxremlife,A2taxvalue-SUM($F180:K180),IF(A2taxremlife="N/A","n/a",A2taxvalue/A2taxremlife)) -> 0 | M180: =IF(M$3>A2taxremlife,A2taxvalue-SUM($F180:L180),IF(A2taxremlife="N/A","n/a",A2taxvalue/A2taxremlife)) -> 0 | N180: =IF(N$3>A2taxremlife,A2taxvalue-SUM($F180:M180),IF(A2taxremlife="N/A","n/a",A2taxvalue/A2taxremlife)) -> 0 | O180: =IF(O$3>A2taxremlife,A2taxvalue-SUM($F180:N180),IF(A2taxremlife="N/A","n/a",A2taxvalue/A2taxremlife)) -> 0 | P180: =IF(P$3>A2taxremlife,A2taxvalue-SUM($F180:O180),IF(A2taxremlife="N/A","n/a",A2taxvalue/A2taxremlife)) -> 0
D181: Capex | E181: 0
E182: 1 | H182: =IF(A2taxstdlife="n/a","n/a",IF(H$3>(A2taxstdlife+$E182),((Input!$G$64+Input!$G$50)*$G$7)-SUM($G182:G182),((Input!$G$64+Input!$G$50)*$G$7)/A2taxstdlife)) -> 0 | I182: =IF(A2taxstdlife="n/a","n/a",IF(I$3>(A2taxstdlife+$E182),((Input!$G$64+Input!$G$50)*$G$7)-SUM($G182:H182),((Input!$G$64+Input!$G$50)*$G$7)/A2taxstdlife)) -> 0 | J182: =IF(A2taxstdlife="n/a","n/a",IF(J$3>(A2taxstdlife+$E182),((Input!$G$64+Input!$G$50)*$G$7)-SUM($G182:I182),((Input!$G$64+Input!$G$50)*$G$7)/A2taxstdlife)) -> 0 | K182: =IF(A2taxstdlife="n/a","n/a",IF(K$3>(A2taxstdlife+$E182),((Input!$G$64+Input!$G$50)*$G$7)-SUM($G182:J182),((Input!$G$64+Input!$G$50)*$G$7)/A2taxstdlife)) -> 0 | L182: =IF(A2taxstdlife="n/a","n/a",IF(L$3>(A2taxstdlife+$E182),((Input!$G$64+Input!$G$50)*$G$7)-SUM($G182:K182),((Input!$G$64+Input!$G$50)*$G$7)/A2taxstdlife)) -> 0 | M182: =IF(A2taxstdlife="n/a","n/a",IF(M$3>(A2taxstdlife+$E182),((Input!$G$64+Input!$G$50)*$G$7)-SUM($G182:L182),((Input!$G$64+Input!$G$50)*$G$7)/A2taxstdlife)) -> 0 | N182: =IF(A2taxstdlife="n/a","n/a",IF(N$3>(A2taxstdlife+$E182),((Input!$G$64+Input!$G$50)*$G$7)-SUM($G182:M182),((Input!$G$64+Input!$G$50)*$G$7)/A2taxstdlife)) -> 0 | O182: =IF(A2taxstdlife="n/a","n/a",IF(O$3>(A2taxstdlife+$E182),((Input!$G$64+Input!$G$50)*$G$7)-SUM($G182:N182),((Input!$G$64+Input!$G$50)*$G$7)/A2taxstdlife)) -> 0 | P182: =IF(A2taxstdlife="n/a","n/a",IF(P$3>(A2taxstdlife+$E182),((Input!$G$64+Input!$G$50)*$G$7)-SUM($G182:O182),((Input!$G$64+Input!$G$50)*$G$7)/A2taxstdlife)) -> 0
E183: 2 | I183: =IF(A2taxstdlife="n/a","n/a",IF(I$3>(A2taxstdlife+$E183),((Input!$H$64+Input!$H$50)*$H$7)-SUM($H183:H183),((Input!$H$64+Input!$H$50)*$H$7)/A2taxstdlife)) -> 0 | J183: =IF(A2taxstdlife="n/a","n/a",IF(J$3>(A2taxstdlife+$E183),((Input!$H$64+Input!$H$50)*$H$7)-SUM($H183:I183),((Input!$H$64+Input!$H$50)*$H$7)/A2taxstdlife)) -> 0 | K183: =IF(A2taxstdlife="n/a","n/a",IF(K$3>(A2taxstdlife+$E183),((Input!$H$64+Input!$H$50)*$H$7)-SUM($H183:J183),((Input!$H$64+Input!$H$50)*$H$7)/A2taxstdlife)) -> 0 | L183: =IF(A2taxstdlife="n/a","n/a",IF(L$3>(A2taxstdlife+$E183),((Input!$H$64+Input!$H$50)*$H$7)-SUM($H183:K183),((Input!$H$64+Input!$H$50)*$H$7)/A2taxstdlife)) -> 0 | M183: =IF(A2taxstdlife="n/a","n/a",IF(M$3>(A2taxstdlife+$E183),((Input!$H$64+Input!$H$50)*$H$7)-SUM($H183:L183),((Input!$H$64+Input!$H$50)*$H$7)/A2taxstdlife)) -> 0 | N183: =IF(A2taxstdlife="n/a","n/a",IF(N$3>(A2taxstdlife+$E183),((Input!$H$64+Input!$H$50)*$H$7)-SUM($H183:M183),((Input!$H$64+Input!$H$50)*$H$7)/A2taxstdlife)) -> 0 | O183: =IF(A2taxstdlife="n/a","n/a",IF(O$3>(A2taxstdlife+$E183),((Input!$H$64+Input!$H$50)*$H$7)-SUM($H183:N183),((Input!$H$64+Input!$H$50)*$H$7)/A2taxstdlife)) -> 0 | P183: =IF(A2taxstdlife="n/a","n/a",IF(P$3>(A2taxstdlife+$E183),((Input!$H$64+Input!$H$50)*$H$7)-SUM($H183:O183),((Input!$H$64+Input!$H$50)*$H$7)/A2taxstdlife)) -> 0
E184: 3 | J184: =IF(A2taxstdlife="n/a","n/a",IF(J$3>(A2taxstdlife+$E184),((Input!$I$64+Input!$I$50)*$I$7)-SUM($I184:I184),((Input!$I$64+Input!$I$50)*$I$7)/A2taxstdlife)) -> 0 | K184: =IF(A2taxstdlife="n/a","n/a",IF(K$3>(A2taxstdlife+$E184),((Input!$I$64+Input!$I$50)*$I$7)-SUM($I184:J184),((Input!$I$64+Input!$I$50)*$I$7)/A2taxstdlife)) -> 0 | L184: =IF(A2taxstdlife="n/a","n/a",IF(L$3>(A2taxstdlife+$E184),((Input!$I$64+Input!$I$50)*$I$7)-SUM($I184:K184),((Input!$I$64+Input!$I$50)*$I$7)/A2taxstdlife)) -> 0 | M184: =IF(A2taxstdlife="n/a","n/a",IF(M$3>(A2taxstdlife+$E184),((Input!$I$64+Input!$I$50)*$I$7)-SUM($I184:L184),((Input!$I$64+Input!$I$50)*$I$7)/A2taxstdlife)) -> 0 | N184: =IF(A2taxstdlife="n/a","n/a",IF(N$3>(A2taxstdlife+$E184),((Input!$I$64+Input!$I$50)*$I$7)-SUM($I184:M184),((Input!$I$64+Input!$I$50)*$I$7)/A2taxstdlife)) -> 0 | O184: =IF(A2taxstdlife="n/a","n/a",IF(O$3>(A2taxstdlife+$E184),((Input!$I$64+Input!$I$50)*$I$7)-SUM($I184:N184),((Input!$I$64+Input!$I$50)*$I$7)/A2taxstdlife)) -> 0 | P184: =IF(A2taxstdlife="n/a","n/a",IF(P$3>(A2taxstdlife+$E184),((Input!$I$64+Input!$I$50)*$I$7)-SUM($I184:O184),((Input!$I$64+Input!$I$50)*$I$7)/A2taxstdlife)) -> 0
E185: 4 | K185: =IF(A2taxstdlife="n/a","n/a",IF(K$3>(A2taxstdlife+$E185),((Input!$J$64+Input!$J$50)*$J$7)-SUM($J185:J185),((Input!$J$64+Input!$J$50)*$J$7)/A2taxstdlife)) -> 0 | L185: =IF(A2taxstdlife="n/a","n/a",IF(L$3>(A2taxstdlife+$E185),((Input!$J$64+Input!$J$50)*$J$7)-SUM($J185:K185),((Input!$J$64+Input!$J$50)*$J$7)/A2taxstdlife)) -> 0 | M185: =IF(A2taxstdlife="n/a","n/a",IF(M$3>(A2taxstdlife+$E185),((Input!$J$64+Input!$J$50)*$J$7)-SUM($J185:L185),((Input!$J$64+Input!$J$50)*$J$7)/A2taxstdlife)) -> 0 | N185: =IF(A2taxstdlife="n/a","n/a",IF(N$3>(A2taxstdlife+$E185),((Input!$J$64+Input!$J$50)*$J$7)-SUM($J185:M185),((Input!$J$64+Input!$J$50)*$J$7)/A2taxstdlife)) -> 0 | O185: =IF(A2taxstdlife="n/a","n/a",IF(O$3>(A2taxstdlife+$E185),((Input!$J$64+Input!$J$50)*$J$7)-SUM($J185:N185),((Input!$J$64+Input!$J$50)*$J$7)/A2taxstdlife)) -> 0 | P185: =IF(A2taxstdlife="n/a","n/a",IF(P$3>(A2taxstdlife+$E185),((Input!$J$64+Input!$J$50)*$J$7)-SUM($J185:O185),((Input!$J$64+Input!$J$50)*$J$7)/A2taxstdlife)) -> 0
E186: 5 | L186: =IF(A2taxstdlife="n/a","n/a",IF(L$3>(A2taxstdlife+$E186),((Input!$K$64+Input!$K$50)*$K$7)-SUM($K186:K186),((Input!$K$64+Input!$K$50)*$K$7)/A2taxstdlife)) -> 0 | M186: =IF(A2taxstdlife="n/a","n/a",IF(M$3>(A2taxstdlife+$E186),((Input!$K$64+Input!$K$50)*$K$7)-SUM($K186:L186),((Input!$K$64+Input!$K$50)*$K$7)/A2taxstdlife)) -> 0 | N186: =IF(A2taxstdlife="n/a","n/a",IF(N$3>(A2taxstdlife+$E186),((Input!$K$64+Input!$K$50)*$K$7)-SUM($K186:M186),((Input!$K$64+Input!$K$50)*$K$7)/A2taxstdlife)) -> 0 | O186: =IF(A2taxstdlife="n/a","n/a",IF(O$3>(A2taxstdlife+$E186),((Input!$K$64+Input!$K$50)*$K$7)-SUM($K186:N186),((Input!$K$64+Input!$K$50)*$K$7)/A2taxstdlife)) -> 0 | P186: =IF(A2taxstdlife="n/a","n/a",IF(P$3>(A2taxstdlife+$E186),((Input!$K$64+Input!$K$50)*$K$7)-SUM($K186:O186),((Input!$K$64+Input!$K$50)*$K$7)/A2taxstdlife)) -> 0
E187: 6 | M187: =IF(A2taxstdlife="n/a","n/a",IF(M$3>(A2taxstdlife+$E187),((Input!$L$64+Input!$L$50)*$L$7)-SUM($L187:L187),((Input!$L$64+Input!$L$50)*$L$7)/A2taxstdlife)) -> 0 | N187: =IF(A2taxstdlife="n/a","n/a",IF(N$3>(A2taxstdlife+$E187),((Input!$L$64+Input!$L$50)*$L$7)-SUM($L187:M187),((Input!$L$64+Input!$L$50)*$L$7)/A2taxstdlife)) -> 0 | O187: =IF(A2taxstdlife="n/a","n/a",IF(O$3>(A2taxstdlife+$E187),((Input!$L$64+Input!$L$50)*$L$7)-SUM($L187:N187),((Input!$L$64+Input!$L$50)*$L$7)/A2taxstdlife)) -> 0 | P187: =IF(A2taxstdlife="n/a","n/a",IF(P$3>(A2taxstdlife+$E187),((Input!$L$64+Input!$L$50)*$L$7)-SUM($L187:O187),((Input!$L$64+Input!$L$50)*$L$7)/A2taxstdlife)) -> 0
E188: 7 | N188: =IF(A2taxstdlife="n/a","n/a",IF(N$3>(A2taxstdlife+$E188),((Input!$M$64+Input!$M$50)*$M$7)-SUM($M188:M188),((Input!$M$64+Input!$M$50)*$M$7)/A2taxstdlife)) -> 0 | O188: =IF(A2taxstdlife="n/a","n/a",IF(O$3>(A2taxstdlife+$E188),((Input!$M$64+Input!$M$50)*$M$7)-SUM($M188:N188),((Input!$M$64+Input!$M$50)*$M$7)/A2taxstdlife)) -> 0 | P188: =IF(A2taxstdlife="n/a","n/a",IF(P$3>(A2taxstdlife+$E188),((Input!$M$64+Input!$M$50)*$M$7)-SUM($M188:O188),((Input!$M$64+Input!$M$50)*$M$7)/A2taxstdlife)) -> 0
E189: 8 | O189: =IF(A2taxstdlife="n/a","n/a",IF(O$3>(A2taxstdlife+$E189),((Input!$N$64+Input!$N$50)*$N$7)-SUM($N189:N189),((Input!$N$64+Input!$N$50)*$N$7)/A2taxstdlife)) -> 0 | P189: =IF(A2taxstdlife="n/a","n/a",IF(P$3>(A2taxstdlife+$E189),((Input!$N$64+Input!$N$50)*$N$7)-SUM($N189:O189),((Input!$N$64+Input!$N$50)*$N$7)/A2taxstdlife)) -> 0
E190: 9 | P190: =IF(A2taxstdlife="n/a","n/a",IF(P$3>(A2taxstdlife+$E190),((Input!$O$64+Input!$O$50)*$O$7)-SUM($O190:O190),((Input!$O$64+Input!$O$50)*$O$7)/A2taxstdlife)) -> 0
E191: 10
C192: =Asset2 -> Equity raising costs | G192: =SUM(G180:G191) -> 0 | H192: =SUM(H180:H191) -> 0 | I192: 0 | J192: 0 | K192: 0 | L192: 0 | M192: 0 | N192: 0 | O192: 0 | P192: 0
B193: =C205 -> 0 | D193: Initial Asset Base | G193: =IF(G$3>A3taxremlife,A3taxvalue-SUM($F193:F193),IF(A3taxremlife="N/A","n/a",A3taxvalue/A3taxremlife)) -> 0 | H193: =IF(H$3>A3taxremlife,A3taxvalue-SUM($F193:G193),IF(A3taxremlife="N/A","n/a",A3taxvalue/A3taxremlife)) -> 0 | I193: =IF(I$3>A3taxremlife,A3taxvalue-SUM($F193:H193),IF(A3taxremlife="N/A","n/a",A3taxvalue/A3taxremlife)) -> 0 | J193: =IF(J$3>A3taxremlife,A3taxvalue-SUM($F193:I193),IF(A3taxremlife="N/A","n/a",A3taxvalue/A3taxremlife)) -> 0 | K193: =IF(K$3>A3taxremlife,A3taxvalue-SUM($F193:J193),IF(A3taxremlife="N/A","n/a",A3taxvalue/A3taxremlife)) -> 0 | L193: =IF(L$3>A3taxremlife,A3taxvalue-SUM($F193:K193),IF(A3taxremlife="N/A","n/a",A3taxvalue/A3taxremlife)) -> 0 | M193: =IF(M$3>A3taxremlife,A3taxvalue-SUM($F193:L193),IF(A3taxremlife="N/A","n/a",A3taxvalue/A3taxremlife)) -> 0 | N193: =IF(N$3>A3taxremlife,A3taxvalue-SUM($F193:M193),IF(A3taxremlife="N/A","n/a",A3taxvalue/A3taxremlife)) -> 0 | O193: =IF(O$3>A3taxremlife,A3taxvalue-SUM($F193:N193),IF(A3taxremlife="N/A","n/a",A3taxvalue/A3taxremlife)) -> 0 | P193: =IF(P$3>A3taxremlife,A3taxvalue-SUM($F193:O193),IF(A3taxremlife="N/A","n/a",A3taxvalue/A3taxremlife)) -> 0
D194: Capex | E194: 0
E195: 1 | H195: =IF(A3taxstdlife="n/a","n/a",IF(H$3>(A3taxstdlife+$E195),((Input!$G$65+Input!$G$51)*$G$7)-SUM($G195:G195),((Input!$G$65+Input!$G$51)*$G$7)/A3taxstdlife)) -> 0 | I195: =IF(A3taxstdlife="n/a","n/a",IF(I$3>(A3taxstdlife+$E195),((Input!$G$65+Input!$G$51)*$G$7)-SUM($G195:H195),((Input!$G$65+Input!$G$51)*$G$7)/A3taxstdlife)) -> 0 | J195: =IF(A3taxstdlife="n/a","n/a",IF(J$3>(A3taxstdlife+$E195),((Input!$G$65+Input!$G$51)*$G$7)-SUM($G195:I195),((Input!$G$65+Input!$G$51)*$G$7)/A3taxstdlife)) -> 0 | K195: =IF(A3taxstdlife="n/a","n/a",IF(K$3>(A3taxstdlife+$E195),((Input!$G$65+Input!$G$51)*$G$7)-SUM($G195:J195),((Input!$G$65+Input!$G$51)*$G$7)/A3taxstdlife)) -> 0 | L195: =IF(A3taxstdlife="n/a","n/a",IF(L$3>(A3taxstdlife+$E195),((Input!$G$65+Input!$G$51)*$G$7)-SUM($G195:K195),((Input!$G$65+Input!$G$51)*$G$7)/A3taxstdlife)) -> 0 | M195: =IF(A3taxstdlife="n/a","n/a",IF(M$3>(A3taxstdlife+$E195),((Input!$G$65+Input!$G$51)*$G$7)-SUM($G195:L195),((Input!$G$65+Input!$G$51)*$G$7)/A3taxstdlife)) -> 0 | N195: =IF(A3taxstdlife="n/a","n/a",IF(N$3>(A3taxstdlife+$E195),((Input!$G$65+Input!$G$51)*$G$7)-SUM($G195:M195),((Input!$G$65+Input!$G$51)*$G$7)/A3taxstdlife)) -> 0 | O195: =IF(A3taxstdlife="n/a","n/a",IF(O$3>(A3taxstdlife+$E195),((Input!$G$65+Input!$G$51)*$G$7)-SUM($G195:N195),((Input!$G$65+Input!$G$51)*$G$7)/A3taxstdlife)) -> 0 | P195: =IF(A3taxstdlife="n/a","n/a",IF(P$3>(A3taxstdlife+$E195),((Input!$G$65+Input!$G$51)*$G$7)-SUM($G195:O195),((Input!$G$65+Input!$G$51)*$G$7)/A3taxstdlife)) -> 0
E196: 2 | I196: =IF(A3taxstdlife="n/a","n/a",IF(I$3>(A3taxstdlife+$E196),((Input!$H$65+Input!$H$51)*$H$7)-SUM($H196:H196),((Input!$H$65+Input!$H$51)*$H$7)/A3taxstdlife)) -> 0 | J196: =IF(A3taxstdlife="n/a","n/a",IF(J$3>(A3taxstdlife+$E196),((Input!$H$65+Input!$H$51)*$H$7)-SUM($H196:I196),((Input!$H$65+Input!$H$51)*$H$7)/A3taxstdlife)) -> 0 | K196: =IF(A3taxstdlife="n/a","n/a",IF(K$3>(A3taxstdlife+$E196),((Input!$H$65+Input!$H$51)*$H$7)-SUM($H196:J196),((Input!$H$65+Input!$H$51)*$H$7)/A3taxstdlife)) -> 0 | L196: =IF(A3taxstdlife="n/a","n/a",IF(L$3>(A3taxstdlife+$E196),((Input!$H$65+Input!$H$51)*$H$7)-SUM($H196:K196),((Input!$H$65+Input!$H$51)*$H$7)/A3taxstdlife)) -> 0 | M196: =IF(A3taxstdlife="n/a","n/a",IF(M$3>(A3taxstdlife+$E196),((Input!$H$65+Input!$H$51)*$H$7)-SUM($H196:L196),((Input!$H$65+Input!$H$51)*$H$7)/A3taxstdlife)) -> 0 | N196: =IF(A3taxstdlife="n/a","n/a",IF(N$3>(A3taxstdlife+$E196),((Input!$H$65+Input!$H$51)*$H$7)-SUM($H196:M196),((Input!$H$65+Input!$H$51)*$H$7)/A3taxstdlife)) -> 0 | O196: =IF(A3taxstdlife="n/a","n/a",IF(O$3>(A3taxstdlife+$E196),((Input!$H$65+Input!$H$51)*$H$7)-SUM($H196:N196),((Input!$H$65+Input!$H$51)*$H$7)/A3taxstdlife)) -> 0 | P196: =IF(A3taxstdlife="n/a","n/a",IF(P$3>(A3taxstdlife+$E196),((Input!$H$65+Input!$H$51)*$H$7)-SUM($H196:O196),((Input!$H$65+Input!$H$51)*$H$7)/A3taxstdlife)) -> 0
E197: 3 | J197: =IF(A3taxstdlife="n/a","n/a",IF(J$3>(A3taxstdlife+$E197),((Input!$I$65+Input!$I$51)*$I$7)-SUM($I197:I197),((Input!$I$65+Input!$I$51)*$I$7)/A3taxstdlife)) -> 0 | K197: =IF(A3taxstdlife="n/a","n/a",IF(K$3>(A3taxstdlife+$E197),((Input!$I$65+Input!$I$51)*$I$7)-SUM($I197:J197),((Input!$I$65+Input!$I$51)*$I$7)/A3taxstdlife)) -> 0 | L197: =IF(A3taxstdlife="n/a","n/a",IF(L$3>(A3taxstdlife+$E197),((Input!$I$65+Input!$I$51)*$I$7)-SUM($I197:K197),((Input!$I$65+Input!$I$51)*$I$7)/A3taxstdlife)) -> 0 | M197: =IF(A3taxstdlife="n/a","n/a",IF(M$3>(A3taxstdlife+$E197),((Input!$I$65+Input!$I$51)*$I$7)-SUM($I197:L197),((Input!$I$65+Input!$I$51)*$I$7)/A3taxstdlife)) -> 0 | N197: =IF(A3taxstdlife="n/a","n/a",IF(N$3>(A3taxstdlife+$E197),((Input!$I$65+Input!$I$51)*$I$7)-SUM($I197:M197),((Input!$I$65+Input!$I$51)*$I$7)/A3taxstdlife)) -> 0 | O197: =IF(A3taxstdlife="n/a","n/a",IF(O$3>(A3taxstdlife+$E197),((Input!$I$65+Input!$I$51)*$I$7)-SUM($I197:N197),((Input!$I$65+Input!$I$51)*$I$7)/A3taxstdlife)) -> 0 | P197: =IF(A3taxstdlife="n/a","n/a",IF(P$3>(A3taxstdlife+$E197),((Input!$I$65+Input!$I$51)*$I$7)-SUM($I197:O197),((Input!$I$65+Input!$I$51)*$I$7)/A3taxstdlife)) -> 0
E198: 4 | K198: =IF(A3taxstdlife="n/a","n/a",IF(K$3>(A3taxstdlife+$E198),((Input!$J$65+Input!$J$51)*$J$7)-SUM($J198:J198),((Input!$J$65+Input!$J$51)*$J$7)/A3taxstdlife)) -> 0 | L198: =IF(A3taxstdlife="n/a","n/a",IF(L$3>(A3taxstdlife+$E198),((Input!$J$65+Input!$J$51)*$J$7)-SUM($J198:K198),((Input!$J$65+Input!$J$51)*$J$7)/A3taxstdlife)) -> 0 | M198: =IF(A3taxstdlife="n/a","n/a",IF(M$3>(A3taxstdlife+$E198),((Input!$J$65+Input!$J$51)*$J$7)-SUM($J198:L198),((Input!$J$65+Input!$J$51)*$J$7)/A3taxstdlife)) -> 0 | N198: =IF(A3taxstdlife="n/a","n/a",IF(N$3>(A3taxstdlife+$E198),((Input!$J$65+Input!$J$51)*$J$7)-SUM($J198:M198),((Input!$J$65+Input!$J$51)*$J$7)/A3taxstdlife)) -> 0 | O198: =IF(A3taxstdlife="n/a","n/a",IF(O$3>(A3taxstdlife+$E198),((Input!$J$65+Input!$J$51)*$J$7)-SUM($J198:N198),((Input!$J$65+Input!$J$51)*$J$7)/A3taxstdlife)) -> 0 | P198: =IF(A3taxstdlife="n/a","n/a",IF(P$3>(A3taxstdlife+$E198),((Input!$J$65+Input!$J$51)*$J$7)-SUM($J198:O198),((Input!$J$65+Input!$J$51)*$J$7)/A3taxstdlife)) -> 0
E199: 5 | L199: =IF(A3taxstdlife="n/a","n/a",IF(L$3>(A3taxstdlife+$E199),((Input!$K$65+Input!$K$51)*$K$7)-SUM($K199:K199),((Input!$K$65+Input!$K$51)*$K$7)/A3taxstdlife)) -> 0 | M199: =IF(A3taxstdlife="n/a","n/a",IF(M$3>(A3taxstdlife+$E199),((Input!$K$65+Input!$K$51)*$K$7)-SUM($K199:L199),((Input!$K$65+Input!$K$51)*$K$7)/A3taxstdlife)) -> 0 | N199: =IF(A3taxstdlife="n/a","n/a",IF(N$3>(A3taxstdlife+$E199),((Input!$K$65+Input!$K$51)*$K$7)-SUM($K199:M199),((Input!$K$65+Input!$K$51)*$K$7)/A3taxstdlife)) -> 0 | O199: =IF(A3taxstdlife="n/a","n/a",IF(O$3>(A3taxstdlife+$E199),((Input!$K$65+Input!$K$51)*$K$7)-SUM($K199:N199),((Input!$K$65+Input!$K$51)*$K$7)/A3taxstdlife)) -> 0 | P199: =IF(A3taxstdlife="n/a","n/a",IF(P$3>(A3taxstdlife+$E199),((Input!$K$65+Input!$K$51)*$K$7)-SUM($K199:O199),((Input!$K$65+Input!$K$51)*$K$7)/A3taxstdlife)) -> 0
E200: 6 | M200: =IF(A3taxstdlife="n/a","n/a",IF(M$3>(A3taxstdlife+$E200),((Input!$L$65+Input!$L$51)*$L$7)-SUM($L200:L200),((Input!$L$65+Input!$L$51)*$L$7)/A3taxstdlife)) -> 0 | N200: =IF(A3taxstdlife="n/a","n/a",IF(N$3>(A3taxstdlife+$E200),((Input!$L$65+Input!$L$51)*$L$7)-SUM($L200:M200),((Input!$L$65+Input!$L$51)*$L$7)/A3taxstdlife)) -> 0 | O200: =IF(A3taxstdlife="n/a","n/a",IF(O$3>(A3taxstdlife+$E200),((Input!$L$65+Input!$L$51)*$L$7)-SUM($L200:N200),((Input!$L$65+Input!$L$51)*$L$7)/A3taxstdlife)) -> 0 | P200: =IF(A3taxstdlife="n/a","n/a",IF(P$3>(A3taxstdlife+$E200),((Input!$L$65+Input!$L$51)*$L$7)-SUM($L200:O200),((Input!$L$65+Input!$L$51)*$L$7)/A3taxstdlife)) -> 0
E201: 7 | N201: =IF(A3taxstdlife="n/a","n/a",IF(N$3>(A3taxstdlife+$E201),((Input!$M$65+Input!$M$51)*$M$7)-SUM($M201:M201),((Input!$M$65+Input!$M$51)*$M$7)/A3taxstdlife)) -> 0 | O201: =IF(A3taxstdlife="n/a","n/a",IF(O$3>(A3taxstdlife+$E201),((Input!$M$65+Input!$M$51)*$M$7)-SUM($M201:N201),((Input!$M$65+Input!$M$51)*$M$7)/A3taxstdlife)) -> 0 | P201: =IF(A3taxstdlife="n/a","n/a",IF(P$3>(A3taxstdlife+$E201),((Input!$M$65+Input!$M$51)*$M$7)-SUM($M201:O201),((Input!$M$65+Input!$M$51)*$M$7)/A3taxstdlife)) -> 0
E202: 8 | O202: =IF(A3taxstdlife="n/a","n/a",IF(O$3>(A3taxstdlife+$E202),((Input!$N$65+Input!$N$51)*$N$7)-SUM($N202:N202),((Input!$N$65+Input!$N$51)*$N$7)/A3taxstdlife)) -> 0 | P202: =IF(A3taxstdlife="n/a","n/a",IF(P$3>(A3taxstdlife+$E202),((Input!$N$65+Input!$N$51)*$N$7)-SUM($N202:O202),((Input!$N$65+Input!$N$51)*$N$7)/A3taxstdlife)) -> 0
E203: 9 | P203: =IF(A3taxstdlife="n/a","n/a",IF(P$3>(A3taxstdlife+$E203),((Input!$O$65+Input!$O$51)*$O$7)-SUM($O203:O203),((Input!$O$65+Input!$O$51)*$O$7)/A3taxstdlife)) -> 0
E204: 10
C205: =Asset3 -> 0 | G205: =SUM(G193:G204) -> 0 | H205: =SUM(H193:H204) -> 0 | I205: 0 | J205: 0 | K205: 0 | L205: 0 | M205: 0 | N205: 0 | O205: 0 | P205: 0
B206: =C218 -> 0 | D206: Initial Asset Base | G206: =IF(G$3>A4taxremlife,A4taxvalue-SUM($F206:F206),IF(A4taxremlife="N/A","n/a",A4taxvalue/A4taxremlife)) -> 0 | H206: =IF(H$3>A4taxremlife,A4taxvalue-SUM($F206:G206),IF(A4taxremlife="N/A","n/a",A4taxvalue/A4taxremlife)) -> 0 | I206: =IF(I$3>A4taxremlife,A4taxvalue-SUM($F206:H206),IF(A4taxremlife="N/A","n/a",A4taxvalue/A4taxremlife)) -> 0 | J206: =IF(J$3>A4taxremlife,A4taxvalue-SUM($F206:I206),IF(A4taxremlife="N/A","n/a",A4taxvalue/A4taxremlife)) -> 0 | K206: =IF(K$3>A4taxremlife,A4taxvalue-SUM($F206:J206),IF(A4taxremlife="N/A","n/a",A4taxvalue/A4taxremlife)) -> 0 | L206: =IF(L$3>A4taxremlife,A4taxvalue-SUM($F206:K206),IF(A4taxremlife="N/A","n/a",A4taxvalue/A4taxremlife)) -> 0 | M206: =IF(M$3>A4taxremlife,A4taxvalue-SUM($F206:L206),IF(A4taxremlife="N/A","n/a",A4taxvalue/A4taxremlife)) -> 0 | N206: =IF(N$3>A4taxremlife,A4taxvalue-SUM($F206:M206),IF(A4taxremlife="N/A","n/a",A4taxvalue/A4taxremlife)) -> 0 | O206: =IF(O$3>A4taxremlife,A4taxvalue-SUM($F206:N206),IF(A4taxremlife="N/A","n/a",A4taxvalue/A4taxremlife)) -> 0 | P206: =IF(P$3>A4taxremlife,A4taxvalue-SUM($F206:O206),IF(A4taxremlife="N/A","n/a",A4taxvalue/A4taxremlife)) -> 0
D207: Capex | E207: 0
E208: 1 | H208: =IF(A4taxstdlife="n/a","n/a",IF(H$3>(A4taxstdlife+$E208),((Input!$G$66+Input!$G$52)*$G$7)-SUM($G208:G208),((Input!$G$66+Input!$G$52)*$G$7)/A4taxstdlife)) -> 0 | I208: =IF(A4taxstdlife="n/a","n/a",IF(I$3>(A4taxstdlife+$E208),((Input!$G$66+Input!$G$52)*$G$7)-SUM($G208:H208),((Input!$G$66+Input!$G$52)*$G$7)/A4taxstdlife)) -> 0 | J208: =IF(A4taxstdlife="n/a","n/a",IF(J$3>(A4taxstdlife+$E208),((Input!$G$66+Input!$G$52)*$G$7)-SUM($G208:I208),((Input!$G$66+Input!$G$52)*$G$7)/A4taxstdlife)) -> 0 | K208: =IF(A4taxstdlife="n/a","n/a",IF(K$3>(A4taxstdlife+$E208),((Input!$G$66+Input!$G$52)*$G$7)-SUM($G208:J208),((Input!$G$66+Input!$G$52)*$G$7)/A4taxstdlife)) -> 0 | L208: =IF(A4taxstdlife="n/a","n/a",IF(L$3>(A4taxstdlife+$E208),((Input!$G$66+Input!$G$52)*$G$7)-SUM($G208:K208),((Input!$G$66+Input!$G$52)*$G$7)/A4taxstdlife)) -> 0 | M208: =IF(A4taxstdlife="n/a","n/a",IF(M$3>(A4taxstdlife+$E208),((Input!$G$66+Input!$G$52)*$G$7)-SUM($G208:L208),((Input!$G$66+Input!$G$52)*$G$7)/A4taxstdlife)) -> 0 | N208: =IF(A4taxstdlife="n/a","n/a",IF(N$3>(A4taxstdlife+$E208),((Input!$G$66+Input!$G$52)*$G$7)-SUM($G208:M208),((Input!$G$66+Input!$G$52)*$G$7)/A4taxstdlife)) -> 0 | O208: =IF(A4taxstdlife="n/a","n/a",IF(O$3>(A4taxstdlife+$E208),((Input!$G$66+Input!$G$52)*$G$7)-SUM($G208:N208),((Input!$G$66+Input!$G$52)*$G$7)/A4taxstdlife)) -> 0 | P208: =IF(A4taxstdlife="n/a","n/a",IF(P$3>(A4taxstdlife+$E208),((Input!$G$66+Input!$G$52)*$G$7)-SUM($G208:O208),((Input!$G$66+Input!$G$52)*$G$7)/A4taxstdlife)) -> 0
E209: 2 | I209: =IF(A4taxstdlife="n/a","n/a",IF(I$3>(A4taxstdlife+$E209),((Input!$H$66+Input!$H$52)*$H$7)-SUM($H209:H209),((Input!$H$66+Input!$H$52)*$H$7)/A4taxstdlife)) -> 0 | J209: =IF(A4taxstdlife="n/a","n/a",IF(J$3>(A4taxstdlife+$E209),((Input!$H$66+Input!$H$52)*$H$7)-SUM($H209:I209),((Input!$H$66+Input!$H$52)*$H$7)/A4taxstdlife)) -> 0 | K209: =IF(A4taxstdlife="n/a","n/a",IF(K$3>(A4taxstdlife+$E209),((Input!$H$66+Input!$H$52)*$H$7)-SUM($H209:J209),((Input!$H$66+Input!$H$52)*$H$7)/A4taxstdlife)) -> 0 | L209: =IF(A4taxstdlife="n/a","n/a",IF(L$3>(A4taxstdlife+$E209),((Input!$H$66+Input!$H$52)*$H$7)-SUM($H209:K209),((Input!$H$66+Input!$H$52)*$H$7)/A4taxstdlife)) -> 0 | M209: =IF(A4taxstdlife="n/a","n/a",IF(M$3>(A4taxstdlife+$E209),((Input!$H$66+Input!$H$52)*$H$7)-SUM($H209:L209),((Input!$H$66+Input!$H$52)*$H$7)/A4taxstdlife)) -> 0 | N209: =IF(A4taxstdlife="n/a","n/a",IF(N$3>(A4taxstdlife+$E209),((Input!$H$66+Input!$H$52)*$H$7)-SUM($H209:M209),((Input!$H$66+Input!$H$52)*$H$7)/A4taxstdlife)) -> 0 | O209: =IF(A4taxstdlife="n/a","n/a",IF(O$3>(A4taxstdlife+$E209),((Input!$H$66+Input!$H$52)*$H$7)-SUM($H209:N209),((Input!$H$66+Input!$H$52)*$H$7)/A4taxstdlife)) -> 0 | P209: =IF(A4taxstdlife="n/a","n/a",IF(P$3>(A4taxstdlife+$E209),((Input!$H$66+Input!$H$52)*$H$7)-SUM($H209:O209),((Input!$H$66+Input!$H$52)*$H$7)/A4taxstdlife)) -> 0
... 89 more rows

Sheet Analysis
B2: Post-Tax Building Block Cash Flow Model
B5: Year | F5: =Assets!F4 -> 2013-14 | G5: =Assets!G4 -> 2014-15 | H5: =Assets!H4 -> 2015-16 | I5: =Assets!I4 -> 2016-17 | J5: =Assets!J4 -> 2017-18 | K5: =Assets!K4 -> 2018-19 | L5: =Assets!L4 -> 2019-20 | M5: =Assets!M4 -> 2020-21 | N5: =Assets!N4 -> 2021-22 | O5: =Assets!O4 -> 2022-23 | P5: =Assets!P4 -> 2023-24
B7: Inflation Assumption (CPI % increase) | G7: =WACC!F9 -> 0.025 | H7: =G7 -> 0.025 | I7: =H7 -> 0.025 | J7: 0.025 | K7: 0.025 | L7: 0.025 | M7: 0.025 | N7: 0.025 | O7: 0.025 | P7: 0.025
B8: Cumulative Inflation Index (CPI end period) | F8: 1 | G8: =F8*(1+G7) -> 1.025 | H8: =G8*(1+H7) -> 1.050625 | I8: 1.076890625 | J8: 1.103812891 | K8: 1.131408213 | L8: 1.159693418 | M8: 1.188685754 | N8: 1.218402898 | O8: 1.24886297 | P8: =O8*(1+P7) -> 1.280084544
B10: RAB (start period) | D10: (nominal value) | G10: =Assets!F161 -> 115.1053412 | H10: =Assets!G161 -> 122.9701222 | I10: =Assets!H161 -> 123.6837807 | J10: =Assets!I161 -> 120.3518527 | K10: =Assets!J161 -> 124.102639 | L10: =Assets!K161 -> 127.4386374 | M10: =Assets!L161 -> 121.4681694 | N10: =Assets!M161 -> 115.1195288 | O10: =Assets!N161 -> 108.3775386 | P10: =Assets!O161 -> 101.2264992
B11: - Equity | D11: =WACC!F18 -> 0.4 | G11: =$D11*G$10 -> 46.04213649 | H11: =$D11*H$10 -> 49.18804887 | I11: =$D11*I$10 -> 49.47351229 | J11: 48.14074109 | K11: 49.64105561 | L11: 50.97545497 | M11: 48.58726776 | N11: 46.04781153 | O11: 43.35101545 | P11: 40.49059969
B12: - Debt | D12: =WACC!F19 -> 0.6 | G12: =$D12*G$10 -> 69.06320473 | H12: 73.78207331 | I12: 74.21026844 | J12: 72.21111163 | K12: 74.46158342 | L12: 76.46318245 | M12: 72.88090164 | N12: 69.0717173 | O12: 65.02652318 | P12: 60.73589953
B14: Revenue Building Blocks
B15: Nominal Vanilla WACC | D15: =D11*D17+D12*D18 -> 0.07146 | G15: =SUM(G17:G18) -> 8.225427684 | H15: =SUM(H17:H18) -> 8.787444931 | I15: =SUM(I17:I18) -> 8.838442971 | J15: 8.600343395 | K15: 8.868374585 | L15: 9.10676503 | M15: 8.680115385 | N15: 8.226441531 | O15: 7.744658911 | P15: 7.233645634
B16: Return on Asset
B17: - Return on Equity | D17: =WACC!$F$25 -> 0.081 | G17: =$D17*G11 -> 3.729413056 | H17: =$D17*H11 -> 3.984231959 | I17: =$D17*I11 -> 4.007354496 | J17: 3.899400028 | K17: 4.020925505 | L17: 4.129011852 | M17: 3.935568689 | N17: 3.729872734 | O17: 3.511432252 | P17: 3.279738575
B18: - Return on Debt | D18: =WACC!$F$11 -> 0.0651 | G18: =$D18*G12 -> 4.496014628 | H18: 4.803212973 | I18: =$D18*I12 -> 4.831088475 | J18: 4.700943367 | K18: 4.847449081 | L18: 4.977753178 | M18: 4.744546697 | N18: 4.496568796 | O18: 4.233226659 | P18: 3.953907059
B20: Return of Asset (regulatory depreciation) | G20: =Assets!G$160 -> 3.096685419 | H20: =Assets!H$160 -> 3.798457404 | I20: =Assets!I$160 -> 4.260761625 | J20: =Assets!J$160 -> 4.591351526 | K20: =Assets!K$160 -> 5.25763165 | L20: =Assets!L$160 -> 5.970468017 | M20: =Assets!M$160 -> 6.348640566 | N20: =Assets!N$160 -> 6.7419902 | O20: =Assets!O$160 -> 7.151039416 | P20: =Assets!P$160 -> 7.576327348
B22: Opex (includes carry-over amounts) | G22: =Input!G82*G$8 -> 23.75251767 | H22: =Input!H82*H$8 -> 24.53510398 | I22: =Input!I82*I$8 -> 25.32139377 | J22: =Input!J82*J$8 -> 26.13861073 | K22: =Input!K82*K$8 -> 27.00942741 | L22: =Input!L82*L$8 -> 0 | M22: =Input!M82*M$8 -> 0 | N22: =Input!N82*N$8 -> 0 | O22: =Input!O82*O$8 -> 0 | P22: =Input!P82*P$8 -> 0
B24: Tax Payable | G24: =G44 -> 0.04919854413 | H24: =H44 -> 1.524500207 | I24: =I44 -> 3.087872806 | J24: 1.71973735 | K24: 1.835577333 | L24: 0.4900218294 | M24: 0.557605751 | N24: 0.6262595363 | O24: 0.6959944386 | P24: 0.7668216052
B25: Less Value of Imputation Credits | D25: =WACC!$F$17 -> 0.4 | G25: =-G24*$D$25 -> -0.01967941765 | H25: =-H24*$D$25 -> -0.6098000827 | I25: -1.235149123 | J25: -0.6878949401 | K25: -0.7342309333 | L25: -0.1960087318 | M25: -0.2230423004 | N25: -0.2505038145 | O25: -0.2783977754 | P25: -0.3067286421
B27: Annual Revenue Requirement | G27: =SUM(G17:G26) -> 35.10414989 | H27: =SUM(H17:H26) -> 38.03570644 | I27: =SUM(I17:I26) -> 40.27332205 | J27: 40.36214806 | K27: 42.23678005 | L27: 15.37124614 | M27: 15.3633194 | N27: 15.34418745 | O27: 15.31329499 | P27: 15.27006595
B29: Additional tax income
B30: - capital contributions | G30: =Input!G59*Analysis!G8 -> 0 | H30: =Input!H59*Analysis!H8 -> 3.504747542 | I30: =Input!I59*Analysis!I8 -> 7.609257366 | J30: =Input!J59*Analysis!J8 -> 3.987760888 | K30: =Input!K59*Analysis!K8 -> 4.002465816 | L30: =Input!L59*Analysis!L8 -> 0 | M30: =Input!M59*Analysis!M8 -> 0 | N30: =Input!N59*Analysis!N8 -> 0 | O30: =Input!O59*Analysis!O8 -> 0 | P30: =Input!P59*Analysis!P8 -> 0
B32: Tax Expenses
B33: - Opex | G33: =G22 -> 23.75251767 | H33: =H22 -> 24.53510398 | I33: =I22 -> 25.32139377 | J33: 26.13861073 | K33: 27.00942741 | L33: 0 | M33: 0 | N33: 0 | O33: 0 | P33: 0
B34: - Tax Depreciation | G34: =Assets!G166 -> 6.691622454 | H34: =Assets!H166 -> 7.120469674 | I34: =Assets!I166 -> 7.437187816 | J34: =Assets!J166 -> 7.777897018 | K34: =Assets!K166 -> 8.26377826 | L34: =Assets!L166 -> 8.760086869 | M34: =Assets!M166 -> 8.760086869 | N34: =Assets!N166 -> 8.760086869 | O34: =Assets!O166 -> 8.760086869 | P34: =Assets!P166 -> 8.760086869
B35: - Interest | G35: =G18 -> 4.496014628 | H35: =H18 -> 4.803212973 | I35: =I18 -> 4.831088475 | J35: 4.700943367 | K35: 4.847449081 | L35: 4.977753178 | M35: 4.744546697 | N35: 4.496568796 | O35: 4.233226659 | P35: 3.953907059
B36: Total Tax Expenses | G36: =SUM(G33:G35) -> 34.94015475 | H36: =SUM(H33:H35) -> 36.45878663 | I36: =SUM(I33:I35) -> 37.58967006 | J36: 38.61745112 | K36: 40.12065475 | L36: 13.73784005 | M36: 13.50463357 | N36: 13.25665567 | O36: 12.99331353 | P36: =SUM(P33:P35) -> 12.71399393
B38: Tax Calculation
B39: Taxable Income | G39: =G40+F41 -> 0.1639951471 | H39: =H40+G41 -> 5.081667356 | I39: =I40+H41 -> 10.29290935 | J39: 5.732457834 | K39: 6.118591111 | L39: 1.633406098 | M39: 1.858685837 | N39: 2.087531788 | O39: 2.319981462 | P39: 2.556072017
B40: - Pre-tax Income | G40: =G27+G30-G36 -> 0.1639951471 | H40: =H27+H30-H36 -> 5.081667356 | I40: =I27+I30-I36 -> 10.29290935 | J40: 5.732457834 | K40: 6.118591111 | L40: 1.633406098 | M40: 1.858685837 | N40: 2.087531788 | O40: 2.319981462 | P40: 2.556072017
B41: - Tax Loss Carried Forward | F41: 0 | G41: =IF(G39<0,G39,0) -> 0 | H41: =IF(H39<0,H39,0) -> 0 | I41: =IF(I39<0,I39,0) -> 0 | J41: =IF(J39<0,J39,0) -> 0 | K41: 0 | L41: 0 | M41: 0 | N41: 0 | O41: 0 | P41: 0
B42: Tax Payable | D42: =WACC!F14 -> 0.3 | G42: =IF(G39>0,$D$42*G39,0) -> 0.04919854413 | H42: =IF(H39>0,$D$42*H39,0) -> 1.524500207 | I42: =IF(I39>0,$D$42*I39,0) -> 3.087872806 | J42: =IF(J39>0,$D$42*J39,0) -> 1.71973735 | K42: 1.835577333 | L42: 0.4900218294 | M42: 0.557605751 | N42: 0.6262595363 | O42: 0.6959944386 | P42: 0.7668216052
B43: Value of Imputation Credits | D43: =WACC!$F$17 -> 0.4 | G43: =$D$43*G42 -> 0.01967941765 | H43: 0.6098000827 | I43: 1.235149123 | J43: 0.6878949401 | K43: 0.7342309333 | L43: 0.1960087318 | M43: 0.2230423004 | N43: 0.2505038145 | O43: 0.2783977754 | P43: 0.3067286421
D44: (intermediate tax calculation) | G44: =MAX(0,(G17+G18+G20+G22+G30-G36+F41)*$D$42/(1-(1-$D$25)*$D$42)) -> 0.04919854413 | H44: 1.524500207 | I44: 3.087872806 | J44: 1.71973735 | K44: 1.835577333 | L44: 0.4900218294 | M44: 0.557605751 | N44: 0.6262595363 | O44: 0.6959944386 | P44: 0.7668216052
B46: Cash Flow Analysis Below This Line
B48: Net Present Values | G48: 1 | H48: 2 | I48: 3 | J48: 4 | K48: 5 | L48: 6 | M48: 7 | N48: 8 | O48: 9 | P48: 10
B49: RAB (start period) | D49: Project NPV Check | F49: =F50-F51-G49+F52 -> -46.96225623 | G49: =Assets!F161 -> 115.1053412 | H49: =Assets!G161 -> 122.9701222 | I49: =Assets!H161 -> 123.6837807 | J49: =Assets!I161 -> 120.3518527 | K49: =Assets!J161 -> 124.102639 | L49: =Assets!K161 -> 127.4386374 | M49: =Assets!L161 -> 121.4681694 | N49: =Assets!M161 -> 115.1195288 | O49: =Assets!N161 -> 108.3775386 | P49: =Assets!O161 -> 101.2264992
B50: PV for Returns on and of Asset Only | F50: =NPV(vanilla,OFFSET(G50,0,0,1,10+1)) -> 95.47398819 | G50: =SUM(G17:G18,G20) -> 11.3221131 | H50: =SUM(H17:H18,H20) -> 12.58590234 | I50: 13.0992046 | J50: 13.19169492 | K50: 14.12600624 | L50: 15.07723305 | M50: 15.02875595 | N50: 14.96843173 | O50: 14.89569833 | P50: 14.80997298
B51: PV for Capex Only | F51: =NPV(vanilla,OFFSET(G51,0,0,1,10+1)) -> 27.3309032 | G51: =Assets!G21 -> 10.96146639 | H51: =Assets!H21 -> 4.512115946 | I51: =Assets!I21 -> 0.9288336116 | J51: =Assets!J21 -> 8.342137843 | K51: =Assets!K21 -> 8.593630036 | L51: =Assets!L21 -> 0 | M51: =Assets!M21 -> 0 | N51: =Assets!N21 -> 0 | O51: =Assets!O21 -> 0 | P51: =Assets!P21 -> 0
B52: PV for end of period assets | F52: =NPV(vanilla,G52:P52) -> 0 | G52: 0 | H52: 0 | I52: 0 | J52: 0 | K52: 0 | L52: 0 | M52: 0 | N52: 0 | O52: 0 | P52: 0
B54: Nominal Cash Flow Analysis
B55: Capital Expenditure | F55: =Assets!F9+Assets!F21 -> 115.1053412 | G55: =Assets!G9+Assets!G21 -> 10.96146639 | H55: =Assets!H9+Assets!H21 -> 4.512115946 | I55: =Assets!I9+Assets!I21 -> 0.9288336116 | J55: =Assets!J9+Assets!J21 -> 8.342137843 | K55: =Assets!K9+Assets!K21 -> 8.593630036 | L55: =Assets!L9+Assets!L21 -> 0 | M55: =Assets!M9+Assets!M21 -> 0 | N55: =Assets!N9+Assets!N21 -> 0 | O55: =Assets!O9+Assets!O21 -> 0 | P55: =Assets!P9+Assets!P21 -> 0
B56: Interest Payments | F56: =F18 -> 0 | G56: =G18 -> 4.496014628 | H56: =H18 -> 4.803212973 | I56: 4.831088475 | J56: 4.700943367 | K56: 4.847449081 | L56: 4.977753178 | M56: 4.744546697 | N56: 4.496568796 | O56: 4.233226659 | P56: =P18 -> 3.953907059
B57: Repayment of Debt | F57: =F12-G12 -> -69.06320473 | G57: =G12-H12 -> -4.71886858 | H57: =H12-I12 -> -0.4281951251 | I57: 1.999156808 | J57: -2.25047179 | K57: -2.001599032 | L57: 3.58228081 | M57: 3.80918434 | N57: 4.04519412 | O57: 4.29062365 | P57: 60.73589953
B59: Nominal Cash Flow to Equity Holders
B60: - Pre-tax | C60: Te = | D60: =1-E61/E60 ->  | E60: =IRR(OFFSET(F60,0,0,1,10+1)) ->  | F60: =F27-F33-F55-F56-F57 -> -46.04213649 | G60: 0.6130197954 | H60: 4.613468666 | I60: 7.192849385 | J60: 3.430927911 | K60: 3.78787255 | L60: 6.811212157 | M60: 6.809588366 | N60: 6.802424536 | O60: 6.789444681 | P60: -49.41974064
B61: - Post-tax | E61: =IRR(OFFSET(F61,0,0,1,10+1)) ->  | F61: =F60-F42 -> -46.04213649 | G61: 0.5638212513 | H61: 3.088968459 | I61: 4.104976579 | J61: 1.711190561 | K61: 1.952295217 | L61: 6.321190327 | M61: 6.251982615 | N61: 6.176165 | O61: 6.093450243 | P61: -50.18656225
B62: - Post-tax + Value of Imputation Credits | E62: =IRR(OFFSET(F62,0,0,1,10+1)) ->  | F62: =F61-F25 -> -46.04213649 | G62: 0.5835006689 | H62: 3.698768542 | I62: 5.340125701 | J62: 2.399085501 | K62: 2.68652615 | L62: 6.517199059 | M62: 6.475024915 | N62: 6.426668814 | O62: 6.371848018 | P62: -49.87983361
B63: Real Cash Flow to Equity
B64: - Pre-tax | E64: =IRR(OFFSET(F64,0,0,1,10+1)) ->  | F64: =F60/F$8 -> -46.04213649 | G64: 0.5980680931 | H64: 4.391165893 | I64: 6.679275702 | J64: 3.108251354 | K64: 3.347927394 | L64: 5.873286896 | M64: 5.728669957 | N64: 5.583066611 | O64: 5.436500917 | P64: =P60/P$8 -> -38.60662241
B65: - Post-tax | E65: =IRR(OFFSET(F65,0,0,1,10+1)) ->  | F65: =F61/F$8 -> -46.04213649 | G65: 0.5500695135 | H65: 2.940124649 | I65: 3.811878833 | J65: 1.550254192 | K65: 1.725544498 | L65: 5.450742608 | M65: 5.259575624 | N65: 5.069066244 | O65: 4.87919843 | P65: =P61/P$8 -> -39.20566222
B66: - Post-tax + Value of Imputation Credits | E66: =IRR(OFFSET(F66,0,0,1,10+1)) ->  | F66: -46.04213649 | G66: 0.5692689453 | H66: 3.520541147 | I66: 4.95883758 | J66: 2.173453057 | K66: 2.374497657 | L66: 5.619760324 | M66: 5.447213357 | N66: 5.274666391 | O66: 5.102119425 | P66: =P62/P$8 -> -38.96604629
B67: Net Cash Flow to Debt
B68: Deduction Utilised to Reduce Tax | G68: =MAX(0,MIN(G35+G40,F69+G35)) -> 4.496014628 | H68: 4.803212973 | I68: 4.831088475 | J68: 4.700943367 | K68: 4.847449081 | L68: 4.977753178 | M68: 4.744546697 | N68: 4.496568796 | O68: 4.233226659 | P68: 3.953907059
B69: Unutilised Deductions Carried Forward | G69: =MAX(0,F69+G35-G68) -> 0 | H69: 0 | I69: 0 | J69: 0 | K69: 0 | L69: 0 | M69: 0 | N69: 0 | O69: 0 | P69: 0
B70: Net Cash Flow to Debt | C70: Td = | D70: =1-E70/$D$18 -> 0.3 | E70: =IRR(OFFSET(F70,0,0,1,10+1)) -> 0.04557 | F70: =F57 -> -69.06320473 | G70: =G35-G68*$D$42+G57 -> -1.57165834 | H70: 2.934053956 | I70: 5.380918741 | J70: 1.040188567 | K70: 1.391615325 | L70: 7.066708035 | M70: 7.130367028 | N70: 7.192792278 | O70: 7.253882311 | P70: 63.50363447
B71: Nominal Cash Flows to Assets
B72: Cash flow to Asset | E72: =IRR(OFFSET(F72,0,0,1,10+1)) -> -0.003409932373 | F72: =F27-F55-F22 -> -115.1053412 | G72: 0.3901658436 | H72: 8.988486514 | I72: 14.02309467 | J72: 5.881399489 | K72: 6.633722599 | L72: 15.37124614 | M72: 15.3633194 | N72: 15.34418745 | O72: 15.31329499 | P72: 15.27006595
B73: Cash flow to Asset Post-tax | E73: -0.01889110001 | F73: =F72-F42 -> -115.1053412 | G73: 0.3409672995 | H73: 7.463986307 | I73: 10.93522186 | J73: 4.161662138 | K73: 4.798145266 | L73: 14.88122432 | M73: 14.80571365 | N73: 14.71792792 | O73: 14.61730055 | P73: 14.50324434
B74: Cash flow to Asset Real | E74: -0.02771700719 | F74: =F72/F$8 -> -115.1053412 | G74: =G72/G$8 -> 0.3806496035 | H74: =H72/H$8 -> 8.555370864 | I74: 13.02183745 | J74: 5.328257659 | K74: 5.863244162 | L74: 13.25457738 | M74: 12.92462651 | N74: 12.59368923 | O74: 12.26178961 | P74: =P72/P$8 -> 11.92895111
B75: Cash flow to Asset Real Post-tax | E75: -0.04282058538 | F75: =F73/F$8 -> -115.1053412 | G75: =G73/G$8 -> 0.3326510239 | H75: 7.10432962 | I75: 10.15444058 | J75: 3.770260498 | K75: 4.240861266 | L75: 12.83203309 | M75: 12.45553218 | N75: 12.07968887 | O75: 11.70448712 | P75: =P73/P$8 -> 11.3299113
B76: Check on Vanilla WACC Cash Flow (nom) | E76: -0.01266743206 | F76: =F74/F$8 -> -115.1053412 | G76: =(G72-G42+G43) -> 0.3606467171 | H76: 8.07378639 | I76: 12.17037098 | J76: 4.849557078 | K76: 5.532376199 | L76: 15.07723305 | M76: 15.02875595 | N76: 14.96843173 | O76: 14.89569833 | P76: 14.80997298
B77: Check on Vanilla WACC Cash Flow (real) | E77: -0.03674871421 | F77: =F76/F$8 -> -115.1053412 | G77: =G76/G$8 -> 0.3518504557 | H77: 7.684746117 | I77: 11.30139933 | J77: 4.393459362 | K77: 4.889814424 | L77: 13.0010508 | M77: 12.64316991 | N77: 12.28528901 | O77: 11.92740812 | P77: =P76/P$8 -> 11.56952722
B79: Further Dissection of Cash Flows
B81: Return on Equity
B82: Cash flow with Imputation | G82: =G62 -> 0.5835006689 | H82: =H62 -> 3.698768542 | I82: 5.340125701 | J82: 2.399085501 | K82: 2.68652615 | L82: 6.517199059 | M82: 6.475024915 | N82: 6.426668814 | O82: 6.371848018 | P82: -49.87983361
B83: Add back Capex | G83: =G55 -> 10.96146639 | H83: =H55 -> 4.512115946 | I83: 0.9288336116 | J83: 8.342137843 | K83: 8.593630036 | L83: 0 | M83: 0 | N83: 0 | O83: 0 | P83: 0
B84: Less Nominal Depreciation of RAB | G84: =-Assets!G160 -> -3.096685419 | H84: =-Assets!H160 -> -3.798457404 | I84: =-Assets!I160 -> -4.260761625 | J84: =-Assets!J160 -> -4.591351526 | K84: =-Assets!K160 -> -5.25763165 | L84: =-Assets!L160 -> -5.970468017 | M84: =-Assets!M160 -> -6.348640566 | N84: =-Assets!N160 -> -6.7419902 | O84: =-Assets!O160 -> -7.151039416 | P84: =-Assets!P160 -> -7.576327348
B85: Add Debt Repayment | G85: =G57 -> -4.71886858 | H85: =H57 -> -0.4281951251 | I85: 1.999156808 | J85: -2.25047179 | K85: -2.001599032 | L85: 3.58228081 | M85: 3.80918434 | N85: 4.04519412 | O85: 4.29062365 | P85: 60.73589953
B86: Gives Nominal Return to Equity | G86: =SUM(G82:G85) -> 3.729413056 | H86: 3.984231959 | I86: 4.007354496 | J86: 3.899400028 | K86: 4.020925505 | L86: 4.129011852 | M86: 3.935568689 | N86: 3.729872734 | O86: 3.511432252 | P86: 3.279738575
B87: Less Inflation in Equity Component | G87: =-$D$11*(Assets!G162-Assets!F161) -> -1.151053412 | H87: =-$D$11*(Assets!H162-Assets!G161) -> -1.229701222 | I87: =-$D$11*(Assets!I162-Assets!H161) -> -1.236837807 | J87: =-$D$11*(Assets!J162-Assets!I161) -> -1.203518527 | K87: =-$D$11*(Assets!K162-Assets!J161) -> -1.24102639 | L87: =-$D$11*(Assets!L162-Assets!K161) -> -1.274386374 | M87: =-$D$11*(Assets!M162-Assets!L161) -> -1.214681694 | N87: =-$D$11*(Assets!N162-Assets!M161) -> -1.151195288 | O87: =-$D$11*(Assets!O162-Assets!N161) -> -1.083775386 | P87: =-$D$11*(Assets!P162-Assets!O161) -> -1.012264992
B88: Gives Real Return to Equity | G88: =G86+G87 -> 2.578359643 | H88: =H86+H87 -> 2.754530737 | I88: 2.770516688 | J88: 2.695881501 | K88: 2.779899114 | L88: 2.854625478 | M88: 2.720886995 | N88: 2.578677446 | O88: 2.427656865 | P88: =P86+P87 -> 2.267473582
B89: %ROE (1 year) | G89: =G86/G92 -> 0.081 | H89: 0.081 | I89: 0.081 | J89: 0.081 | K89: 0.081 | L89: 0.081 | M89: 0.081 | N89: 0.081 | O89: 0.081 | P89: 0.081
B90: %real ROE (1 year) | G90: =G88/G92/(1+G$7) -> 0.05463414634 | H90: =H88/H92/(1+H$7) -> 0.05463414634 | I90: 0.05463414634 | J90: 0.05463414634 | K90: 0.05463414634 | L90: 0.05463414634 | M90: 0.05463414634 | N90: 0.05463414634 | O90: 0.05463414634 | P90: 0.05463414634
B92: Equity at Start of Period | G92: =G11 -> 46.04213649 | H92: =H11 -> 49.18804887 | I92: 49.47351229 | J92: 48.14074109 | K92: 49.64105561 | L92: 50.97545497 | M92: 48.58726776 | N92: 46.04781153 | O92: 43.35101545 | P92: 40.49059969
B94: Regulatory Control Period Analysis
B96: Revenue | F96: =F27 -> 0 | G96: =G27 -> 35.10414989 | H96: 38.03570644 | I96: 40.27332205 | J96: 40.36214806 | K96: 42.23678005 | L96: 15.37124614 | M96: 15.3633194 | N96: 15.34418745 | O96: 15.31329499 | P96: 15.27006595
B97: Less Opex | F97: =-F22 -> 0 | G97: =-G22 -> -23.75251767 | H97: -24.53510398 | I97: -25.32139377 | J97: -26.13861073 | K97: -27.00942741 | L97: 0 | M97: 0 | N97: 0 | O97: 0 | P97: 0
B98: Less Interest | G98: =-G35 -> -4.496014628 | H98: =-H35 -> -4.803212973 | I98: -4.831088475 | J98: -4.700943367 | K98: -4.847449081 | L98: -4.977753178 | M98: -4.744546697 | N98: -4.496568796 | O98: -4.233226659 | P98: -3.953907059
B99: Less Tax | F99: =-F42 -> 0 | G99: =-G42 -> -0.04919854413 | H99: -1.524500207 | I99: -3.087872806 | J99: -1.71973735 | K99: -1.835577333 | L99: -0.4900218294 | M99: -0.557605751 | N99: -0.6262595363 | O99: -0.6959944386 | P99: -0.7668216052
B100: Plus Imputation Credits | F100: =+F43 -> 0 | G100: =+G43 -> 0.01967941765 | H100: 0.6098000827 | I100: 1.235149123 | J100: 0.6878949401 | K100: 0.7342309333 | L100: 0.1960087318 | M100: 0.2230423004 | N100: 0.2505038145 | O100: 0.2783977754 | P100: 0.3067286421
B101: Less Capex | F101: =-F55 -> -115.1053412 | G101: -10.96146639 | H101: -4.512115946 | I101: -0.9288336116 | J101: -8.342137843 | K101: -8.593630036 | L101: 0 | M101: 0 | N101: 0 | O101: 0 | P101: 0
B102: Less Loan Repayments | F102: =-F57 -> 69.06320473 | G102: =-G57 -> 4.71886858 | H102: 0.4281951251 | I102: -1.999156808 | J102: 2.25047179 | K102: 2.001599032 | L102: -3.58228081 | M102: -3.80918434 | N102: -4.04519412 | O102: -4.29062365 | P102: -60.73589953
B103: RAB Residual Value | K103: =IF(L97=0, L11, 0) -> 50.97545497 | L103: =IF(M97=0, IF(L97=0, 0, M11), 0) -> 0 | M103: =IF(N97=0, IF(M97=0, 0, N11), 0) -> 0 | N103: =IF(O97=0, IF(N97=0, 0, O11), 0) -> 0 | O103: =IF(P97=0, IF(O97=0, 0, P11), 0) -> 0 | P103: =IF(Q97=0, IF(P97=0, 0, Q11), 0) -> 0
B104: Post-tax Return on Equity | F104: =SUM(F96:F103) -> -46.04213649 | G104: 0.5835006689 | H104: 3.698768542 | I104: 5.340125701 | J104: 2.399085501 | K104: 53.66198112 | L104: =IF(L97=0, 0, SUM(L96:L103)) -> 0 | M104: =IF(M97=0, 0, SUM(M96:M103)) -> 0 | N104: =IF(N97=0, 0, SUM(N96:N103)) -> 0 | O104: =IF(O97=0, 0, SUM(O96:O103)) -> 0 | P104: =IF(P97=0, 0, SUM(P96:P103)) -> 0
B106: IRR (during regulatory control period) | E106: =IRR(F104:P104) -> 0.081
B107: Target (during regulatory control period) | E107: =WACC!F25 -> 0.081
B110: GRAPH DATA | F110: Return on Capital | G110: =G17+G18 -> 8.225427684 | H110: 8.787444931 | I110: 8.838442971 | J110: 8.600343395 | K110: 8.868374585 | L110: 9.10676503 | M110: 8.680115385 | N110: 8.226441531 | O110: 7.744658911 | P110: 7.233645634
F111: Opex (excludes carry-over amounts) | G111: =G22-G112 -> 23.75251767 | H111: =H22-H112 -> 24.53510398 | I111: 25.32139377 | J111: 26.13861073 | K111: 27.00942741 | L111: 0 | M111: 0 | N111: 0 | O111: 0 | P111: 0
F112: carry-over amounts | G112: =G8*Input!G80 -> 0 | H112: =H8*Input!H80 -> 0 | I112: =I8*Input!I80 -> 0 | J112: =J8*Input!J80 -> 0 | K112: =K8*Input!K80 -> 0 | L112: =L8*Input!L80 -> 0 | M112: =M8*Input!M80 -> 0 | N112: =N8*Input!N80 -> 0 | O112: =O8*Input!O80 -> 0 | P112: =P8*Input!P80 -> 0
F113: Return of Capital | G113: =G20 -> 3.096685419 | H113: =H20 -> 3.798457404 | I113: 4.260761625 | J113: 4.591351526 | K113: 5.25763165 | L113: 5.970468017 | M113: 6.348640566 | N113: 6.7419902 | O113: 7.151039416 | P113: 7.576327348
F114: Net Tax Costs | G114: =G24+G25 -> 0.02951912648 | H114: 0.914700124 | I114: 1.852723684 | J114: 1.03184241 | K114: 1.1013464 | L114: 0.2940130977 | M114: 0.3345634506 | N114: 0.3757557218 | O114: 0.4175966632 | P114: 0.4600929631
F116: Revenue Forecasts in Absence of Corporate Tax | G116: =G110+G111+G113 -> 35.07463077 | H116: 37.12100632 | I116: 38.42059836 | J116: 39.33030565 | K116: 41.13543365 | L116: 15.07723305 | M116: 15.02875595 | N116: 14.96843173 | O116: 14.89569833 | P116: 14.80997298

Sheet Forecast revenues
B2: Forecast Revenues
C6: =Input!F$20 -> 2013-14 | D6: =Input!G$20 -> 2014-15 | E6: =Input!H$20 -> 2015-16 | F6: =Input!I$20 -> 2016-17 | G6: =Input!J$20 -> 2017-18 | H6: =Input!K$20 -> 2018-19
B7: TOTAL REVENUE | C7: =C62 -> 0 | D7: =D62 -> 0 | E7: =E62 -> 0 | F7: 0 | G7: 0 | H7: 0
B10: Forecast sales quantities
B11: Quantities | C11: Customer Numbers
B12: Year | C12: =$C$6 -> 2013-14 | D12: =$D$6 -> 2014-15 | E12: =$E$6 -> 2015-16 | F12: =$F$6 -> 2016-17 | G12: =$G$6 -> 2017-18 | H12: =$H$6 -> 2018-19
B13: Residential Anytime
B14: Residential TOU
B15: Small Business anytime
B16: Small Business TOU
B17: Controlled Load
B18: Solar (Gross meter only)
B19: Residential Anytime - O&M
B20: Residential TOU - O&M
B21: Controlled Load O&M
B22: Solar - O&M
B23: spare 2
B24: spare 3
B25: TOTAL
B29: Forecast prices
B30: Prices | C30: Annual Fixed charge $
B31: Year | C31: =$C$6 -> 2013-14 | D31: =$D$6 -> 2014-15 | E31: =$E$6 -> 2015-16 | F31: =$F$6 -> 2016-17 | G31: =$G$6 -> 2017-18 | H31: =$H$6 -> 2018-19
B32: =B13 -> Residential Anytime
B33: Residential TOU
B34: Small Business anytime
B35: Small Business TOU
B36: Controlled Load
B37: Solar (Gross meter only)
B38: Residential Anytime - O&M
B39: Residential TOU - O&M
B40: Controlled Load O&M
B41: Solar - O&M
B42: spare 2
B43: spare 3
B47: Forecast revenues ($, nominal)
B48: Revenues | C48: Standing Charge
B49: Year | C49: =$C$6 -> 2013-14 | D49: =$D$6 -> 2014-15 | E49: =$E$6 -> 2015-16 | F49: =$F$6 -> 2016-17 | G49: =$G$6 -> 2017-18 | H49: =$H$6 -> 2018-19
B50: =B13 -> Residential Anytime | C50: =C32*C13 -> 0 | D50: 0 | E50: 0 | F50: 0 | G50: 0 | H50: 0
B51: Residential TOU | C51: 0 | D51: 0 | E51: 0 | F51: 0 | G51: 0 | H51: 0
B52: Small Business anytime | C52: 0 | D52: 0 | E52: 0 | F52: 0 | G52: 0 | H52: 0
B53: Small Business TOU | C53: 0 | D53: 0 | E53: 0 | F53: 0 | G53: 0 | H53: 0
B54: Controlled Load | C54: 0 | D54: 0 | E54: 0 | F54: 0 | G54: 0 | H54: 0
B55: Solar (Gross meter only) | C55: 0 | D55: 0 | E55: 0 | F55: 0 | G55: 0 | H55: 0
B56: Residential Anytime - O&M | C56: 0 | D56: 0 | E56: 0 | F56: 0 | G56: 0 | H56: 0
B57: Residential TOU - O&M | C57: 0 | D57: 0 | E57: 0 | F57: 0 | G57: 0 | H57: 0
B58: Controlled Load O&M | C58: 0 | D58: 0 | E58: 0 | F58: 0 | G58: 0 | H58: 0
B59: Solar - O&M | C59: 0 | D59: 0 | E59: 0 | F59: 0 | G59: 0 | H59: 0
B60: spare 2 | C60: 0 | D60: 0 | E60: 0 | F60: 0 | G60: 0 | H60: 0
B61: spare 3 | C61: 0 | D61: 0 | E61: 0 | F61: 0 | G61: 0 | H61: 0
B62: TOTAL | C62: =SUM(C50:C61) -> 0 | D62: =SUM(D50:D61) -> 0 | E62: 0 | F62: 0 | G62: 0 | H62: 0
C64: =C62-C60-C61 -> 0

Sheet X factor
B2: X factor calculations
B4: Year | D4: =Input!F20 -> 2013-14 | E4: =Input!G20 -> 2014-15 | F4: =Input!H20 -> 2015-16 | G4: =Input!I20 -> 2016-17 | H4: =Input!J20 -> 2017-18 | I4: =Input!K20 -> 2018-19
B7: Discount rate | C7: =WACC!$F$27 -> 0.07146
B8: Forecast inflation | C8: =f -> 0.025
C10: Building block components | K10: Converted to Real 2013-14 (for charges model)
C11: Return on capital | E11: =Analysis!G17+Analysis!G18 -> 8.225427684 | F11: =Analysis!H17+Analysis!H18 -> 8.787444931 | G11: =Analysis!I17+Analysis!I18 -> 8.838442971 | H11: =Analysis!J17+Analysis!J18 -> 8.600343395 | I11: =Analysis!K17+Analysis!K18 -> 8.868374585 | K11: =(E11/E$17)*10^6 -> 8024807.496 | L11: =(F11/F$17)*10^6 -> 8364016.592 | M11: 8207372.936 | N11: 7791486.644 | O11: 7838350.901
C12: Return of capital | E12: =Analysis!G20 -> 3.096685419 | F12: =Analysis!H20 -> 3.798457404 | G12: =Analysis!I20 -> 4.260761625 | H12: =Analysis!J20 -> 4.591351526 | I12: =Analysis!K20 -> 5.25763165 | K12: =(E12/E$17)*10^6 -> 3021156.506 | L12: =(F12/F$17)*10^6 -> 3615426.441 | M12: =(G12/G$17)*10^6 -> 3956540.735 | N12: =(H12/H$17)*10^6 -> 4159537.876 | O12: =(I12/I$17)*10^6 -> 4646980.277
C13: O&M | E13: =Analysis!G111 -> 23.75251767 | F13: =Analysis!H111 -> 24.53510398 | G13: =Analysis!I111 -> 25.32139377 | H13: =Analysis!J111 -> 26.13861073 | I13: =Analysis!K111 -> 27.00942741 | K13: =(E13/E$17)*10^6 -> 23173187.97 | L13: 23352865.18 | M13: 23513431.33 | N13: 23680291.25 | O13: 23872398.22
C14: Carry-over amounts | E14: =Analysis!G112 -> 0 | F14: =Analysis!H112 -> 0 | G14: =Analysis!I112 -> 0 | H14: =Analysis!J112 -> 0 | I14: =Analysis!K112 -> 0 | K14: 0 | L14: 0 | M14: 0 | N14: 0 | O14: 0
C15: Benchmark Tax liability | E15: =Analysis!G24+Analysis!G25 -> 0.02951912648 | F15: =Analysis!H24+Analysis!H25 -> 0.914700124 | G15: =Analysis!I24+Analysis!I25 -> 1.852723684 | H15: =Analysis!J24+Analysis!J25 -> 1.03184241 | I15: =Analysis!K24+Analysis!K25 -> 1.1013464 | K15: 28799.14778 | L15: 870624.7462 | M15: 1720438.121 | N15: 934798.2968 | O15: 973429.7378
E16: =SUM(E11:E15) -> 35.10414989 | F16: =SUM(F11:F15) -> 38.03570644 | G16: =SUM(G11:G15) -> 40.27332205 | H16: =SUM(H11:H15) -> 40.36214806 | I16: =SUM(I11:I15) -> 42.23678005 | K16: 34247951.12 | L16: 36202932.96 | M16: 37397783.13 | N16: 36566114.06 | O16: 37331159.14
D17: =Analysis!F8 -> 1 | E17: =Analysis!G8 -> 1.025 | F17: =Analysis!H8 -> 1.050625 | G17: =Analysis!I8 -> 1.076890625 | H17: =Analysis!J8 -> 1.103812891 | I17: =Analysis!K8 -> 1.131408213
B20: Price cap calculation
B22: Building block requirement ($m) | E22: =E16 -> 35.10414989 | F22: =F16 -> 38.03570644 | G22: 40.27332205 | H22: 40.36214806 | I22: 42.23678005 | J22: =SUM(E22:I22) -> 196.0121065
C23: NPV | D23: =NPV($C$7,E22:I22) -> 159.1693423
B25: Smoothed Forecast Revenue ($m) | D25: ='Forecast revenues'!C7/1000000 -> 0 | E25: ='Forecast revenues'!D7/1000000 -> 0 | F25: ='Forecast revenues'!E7/1000000 -> 0 | G25: ='Forecast revenues'!F7/1000000 -> 0 | H25: ='Forecast revenues'!G7/1000000 -> 0 | I25: ='Forecast revenues'!H7/1000000 -> 0 | J25: =SUM(E25:I25) -> 0
C26: NPV | D26: =NPV($C$7,E25:I25) -> 0
C28: Difference in NPVs | D28: =(D23-D26) -> 159.1693423 | H28: Difference between final year revenue and requirement | I28: =I25/I22-1 -> -1
E30: P_0 | F30: X_1 | G30: X_2 | H30: X_3 | I30: X_4
E31: -335544.32 | K31: positive P0, X imply real decrease in price/ revenue constraint
K33: Nominal movement in smoothed revenue
B38: Revenue cap calculation
B40: =B22 -> Building block requirement ($m) | E40: =E22 -> 35.10414989 | F40: =F22 -> 38.03570644 | G40: =G22 -> 40.27332205 | H40: =H22 -> 40.36214806 | I40: =I22 -> 42.23678005
C41: NPV | D41: =NPV($C$7,E40:I40) -> 159.1693423
B43: Smoothed revenue cap ($m) | D43: =Input!G97 -> 0 | E43: =D43*(1-E50)*(1+$C$8) -> 0 | F43: =E43*(1-F50)*(1+$C$8) -> 0 | G43: =F43*(1-G50)*(1+$C$8) -> 0 | H43: =G43*(1-H50)*(1+$C$8) -> 0 | I43: =H43*(1-I50)*(1+$C$8) -> 0
C44: NPV | D44: =NPV($C$7,E43:I43) -> 0
C46: Difference in NPVs | D46: =D44-D41 -> -159.1693423 | H46: Difference between final year revenue and requirement | I46: =I43/I40-1 -> -1
E49: P_0 | F49: X_1 | G49: X_2 | H49: X_3 | I49: X_4
E50: 0.06543729777 | F50: 0.02249916875 | G50: 0.02013855856 | H50: 0.01909819083 | I50: 0.01269479292 | J50: positive P0, X imply real decrease in price/ revenue constraint
B54: Revenue yield/ Average revenue cap calculation
B56: =B40 -> Building block requirement ($m) | E56: =E40 -> 35.10414989 | F56: =F40 -> 38.03570644 | G56: =G40 -> 40.27332205 | H56: =H40 -> 40.36214806 | I56: =I40 -> 42.23678005
C57: NPV | D57: =NPV($C$7,E56:I56) -> 159.1693423
B60: Forecast energy throughput (MWh)
B62: Revenue yield ($/MWh) | D62: =Input!G98 -> 0 | E62: =D62*(1-E70)*(1+$C$8) -> 0 | F62: =E62*(1-F70)*(1+$C$8) -> 0 | G62: =F62*(1-G70)*(1+$C$8) -> 0 | H62: =G62*(1-H70)*(1+$C$8) -> 0 | I62: =H62*(1-I70)*(1+$C$8) -> 0
B64: Smoothed revenue requirement ($M) | D64: =D62*D60/1000000 -> 0 | E64: =E62*E60/1000000 -> 0 | F64: 0 | G64: =G62*G60/1000000 -> 0 | H64: 0 | I64: 0
C65: NPV | D65: =NPV($C$7,E64:I64) -> 0
C67: Difference in NPVs | D67: =D65-D57 -> -159.1693423 | H67: Difference between final year revenue and requirement | I67: =I64/I56-1 -> -1
E69: P_0 | F69: X_1 | G69: X_2 | H69: X_3 | I69: X_4
E70: 0.1081011001 | F70: -0.03 | G70: -0.03 | H70: -0.03 | I70: -0.03 | J70: positive P0, X imply real decrease in price/ revenue constraint
B75: Summary
B77: Revenues ($m, nominal) | D77: NPV | E77: =E4 -> 2014-15 | F77: =F4 -> 2015-16 | G77: =G4 -> 2016-17 | H77: =H4 -> 2017-18 | I77: =I4 -> 2018-19
B78: WAPC | D78: =NPV($C$7,E78:I78) -> 0 | E78: =E25 -> 0 | F78: =F25 -> 0 | G78: =G25 -> 0 | H78: =H25 -> 0 | I78: =I25 -> 0
B79: Revenue cap | D79: =NPV($C$7,E79:I79) -> 0 | E79: =E43 -> 0 | F79: =F43 -> 0 | G79: =G43 -> 0 | H79: =H43 -> 0 | I79: =I43 -> 0
B80: Revenue yield | D80: =NPV($C$7,E80:I80) -> 0 | E80: =E64 -> 0 | F80: =F64 -> 0 | G80: =G64 -> 0 | H80: =H64 -> 0 | I80: =I64 -> 0
B81: Building block requirement | D81: =NPV($C$7,E81:I81) -> 159.1693423 | E81: =E22 -> 35.10414989 | F81: =F22 -> 38.03570644 | G81: 40.27332205 | H81: 40.36214806 | I81: 42.23678005
D83: X factors | E83: =E77 -> 2014-15 | F83: =F77 -> 2015-16 | G83: =G77 -> 2016-17 | H83: =H77 -> 2017-18 | I83: =I77 -> 2018-19
D84: =B78 -> WAPC | E84: =P_0 -> -335544.32 | F84: =x_1 -> 0 | G84: =X_2 -> 0 | H84: =X_3 -> 0 | I84: =X_4 -> 0
D85: =B79 -> Revenue cap | E85: =E50 -> 0.06543729777 | F85: =F50 -> 0.02249916875 | G85: =G50 -> 0.02013855856 | H85: =H50 -> 0.01909819083 | I85: =I50 -> 0.01269479292
D86: =B80 -> Revenue yield | E86: =E70 -> 0.1081011001 | F86: =F70 -> -0.03 | G86: =G70 -> -0.03 | H86: =H70 -> -0.03 | I86: =I70 -> -0.03
D88: =D4 -> 2013-14 | E88: 2014-15 | F88: 2015-16 | G88: 2016-17 | H88: 2017-18 | I88: 2018-19
B89: Nominal unsmoothed revenues ($M) | D89: ='X factor'!D25 -> 0 | E89: ='X factor'!E22 -> 35.10414989 | F89: ='X factor'!F22 -> 38.03570644 | G89: ='X factor'!G22 -> 40.27332205 | H89: ='X factor'!H22 -> 40.36214806 | I89: ='X factor'!I22 -> 42.23678005
B90: Nominal smoothed revenues ($M) | D90: ='X factor'!D25 -> 0 | E90: ='X factor'!E25 -> 0 | F90: ='X factor'!F25 -> 0 | G90: ='X factor'!G25 -> 0 | H90: ='X factor'!H25 -> 0 | I90: ='X factor'!I25 -> 0
B91: Nominal price path $/MWh | D91: ='X factor'!D62 -> 0 | E91: ='X factor'!E62 -> 0 | F91: ='X factor'!F62 -> 0 | G91: ='X factor'!G62 -> 0 | H91: ='X factor'!H62 -> 0 | I91: ='X factor'!I62 -> 0
B93: inflation index | D93: =Analysis!F8 -> 1 | E93: =Analysis!G8 -> 1.025 | F93: =Analysis!H8 -> 1.050625 | G93: =Analysis!I8 -> 1.076890625 | H93: =Analysis!J8 -> 1.103812891 | I93: =Analysis!K8 -> 1.131408213
B95: ="Real unsmoothed revenues ($M "&CONCATENATE(LEFT(Input!Q7, 4)-1 &"-" & "0"& RIGHT(Input!Q7,2)-1)&")" -> Real unsmoothed revenues ($M 2013-014) | D95: =D89/D93 -> 0 | E95: =E89/E93 -> 34.24795112 | F95: 36.20293296 | G95: =G89/G93 -> 37.39778313 | H95: 36.56611406 | I95: 37.33115914
B96: ="Real smoothed revenues ($M "&CONCATENATE(LEFT(Input!Q7, 4)-1 &"-" & "0"& RIGHT(Input!Q7,2)-1)&")" -> Real smoothed revenues ($M 2013-014) | D96: =D90/D93 -> 0 | E96: 0 | F96: 0 | G96: =G90/G93 -> 0 | H96: 0 | I96: 0
B97: ="Real price path ($/MWh "&CONCATENATE(LEFT(Input!Q7, 4)-1 &"-" & "0"& RIGHT(Input!Q7,2)-1)&")" -> Real price path ($/MWh 2013-014) | D97: =D91/D93 -> 0 | E97: 0 | F97: 0 | G97: 0 | H97: 0 | I97: 0

Sheet Equity raising cost-capex
F1: Essential Energy
F2: Equity Raising Costs - PTRM Version: 2.0
F3: Regulatory Control Period Cash Flow Analysis | S3: Regulatory Control Period Cash Flow Analysis
F5: Year | G5: =Assets!G4 -> 2014-15 | H5: =Assets!H4 -> 2015-16 | I5: =Assets!I4 -> 2016-17 | J5: =Assets!J4 -> 2017-18 | K5: =Assets!K4 -> 2018-19 | L5: =Assets!L4 -> 2019-20 | M5: =Assets!M4 -> 2020-21 | N5: =Assets!N4 -> 2021-22 | O5: =Assets!O4 -> 2022-23 | P5: =Assets!P4 -> 2023-24 | Q5: Total | S5: Year | T5: 2012-13 | U5: 2013-14 | V5: 2014-15 | W5: 2015-16 | X5: 2016-17 | Y5: 2017-18 | Z5: 2018-19 | AA5: 2019-20 | AB5: 2020-21 | AC5: 2021-22 | AD5: Total
F6: RAB and Capex ($m Nominal) | S6: RAB and Capex ($m Nominal)
F8: Opening RAB | G8: =Assets!F161 -> 115.1053412 | H8: =Assets!G161 -> 122.9701222 | I8: =Assets!H161 -> 123.6837807 | J8: =Assets!I161 -> 120.3518527 | K8: =Assets!J161 -> 124.102639 | L8: =IF(COUNT($G$8:K8)>=Input!$R$7,0,Assets!K474) -> 0 | M8: =IF(COUNT($G$8:L8)>=Input!$R$7,0,Assets!L474) -> 0 | N8: =IF(COUNT($G$8:M8)>=Input!$R$7,0,Assets!M474) -> 0 | O8: =IF(COUNT($G$8:N8)>=Input!$R$7,0,Assets!N474) -> 0 | P8: =IF(COUNT($G$8:O8)>=Input!$R$7,0,Assets!O474) -> 0 | Q8: =SUM(G8:P8) -> 606.2137359 | S8: Opening RAB | T8: 6428.784298 | U8: 7096.149444 | V8: 7641.993222 | W8: 8002.506192 | X8: 8406.867474 | Y8: =IF(COUNT($T$8:X8)>=Input!$R$7,0,Assets!K474) -> 0 | Z8: =IF(COUNT($T$8:Y8)>=Input!$R$7,0,Assets!L474) -> 0 | AA8: =IF(COUNT($T$8:Z8)>=Input!$R$7,0,Assets!M474) -> 0 | AB8: =IF(COUNT($T$8:AA8)>=Input!$R$7,0,Assets!N474) -> 0 | AC8: =IF(COUNT($T$8:AB8)>=Input!$R$7,0,Assets!O474) -> 0 | AD8: =SUM(T8:AC8) -> 37576.30063
F9: Capex | G9: =Assets!G21 -> 10.96146639 | H9: =Assets!H21 -> 4.512115946 | I9: =Assets!I21 -> 0.9288336116 | J9: =Assets!J21 -> 8.342137843 | K9: =Assets!K21 -> 8.593630036 | L9: =IF(COUNT($G$9:K9)>=Input!$R$7,0,Assets!L41) -> 0 | M9: =IF(COUNT($G$9:L9)>=Input!$R$7,0,Assets!M41) -> 0 | N9: =IF(COUNT($G$9:M9)>=Input!$R$7,0,Assets!N41) -> 0 | O9: =IF(COUNT($G$9:N9)>=Input!$R$7,0,Assets!O41) -> 0 | P9: =IF(COUNT($G$9:O9)>=Input!$R$7,0,Assets!P41) -> 0 | Q9: =SUM(G9:P9) -> 33.33818382 | S9: Capex | T9: 708.3200256 | U9: 599.4374152 | V9: 437.7813842 | W9: 499.6016375 | X9: 580.3973731 | Y9: =IF(COUNT($T$9:X9)>=Input!$R$7,0,Assets!L41) -> 0 | Z9: =IF(COUNT($T$9:Y9)>=Input!$R$7,0,Assets!M41) -> 0 | AA9: =IF(COUNT($T$9:Z9)>=Input!$R$7,0,Assets!N41) -> 0 | AB9: =IF(COUNT($T$9:AA9)>=Input!$R$7,0,Assets!O41) -> 0 | AC9: =IF(COUNT($T$9:AB9)>=Input!$R$7,0,Assets!P41) -> 0 | AD9: =SUM(T9:AC9) -> 2825.537836
F10: Capex Rate | G10: =G9/G8 -> 0.09522986743 | H10: =H9/H8 -> 0.03669278249 | I10: =I9/I8 -> 0.007509744658 | J10: =J9/J8 -> 0.06931457767 | K10: =K9/K8 -> 0.06924615063 | L10: =IF(COUNT($G$10:K10)>=Input!$R$7,0,L9/L8) -> 0 | M10: =IF(COUNT($G$10:L10)>=Input!$R$7,0,M9/M8) -> 0 | N10: =IF(COUNT($G$10:M10)>=Input!$R$7,0,N9/N8) -> 0 | O10: =IF(COUNT($G$10:N10)>=Input!$R$7,0,O9/O8) -> 0 | P10: =IF(COUNT($G$10:O10)>=Input!$R$7,0,P9/P8) -> 0 | Q10: =Q9/Q8 -> 0.05499410826 | S10: Capex Rate | T10: =T9/T8 -> 0.1101794667 | U10: =U9/U8 -> 0.08447361768 | V10: =V9/V8 -> 0.05728628272 | W10: =W9/W8 -> 0.06243064679 | X10: =X9/X8 -> 0.06903848252 | Y10: =IF(COUNT($G$10:X10)>=Input!$R$7,0,Y9/Y8) -> 0 | Z10: =IF(COUNT($G$10:Y10)>=Input!$R$7,0,Z9/Z8) -> 0 | AA10: =IF(COUNT($G$10:Z10)>=Input!$R$7,0,AA9/AA8) -> 0 | AB10: =IF(COUNT($G$10:AA10)>=Input!$R$7,0,AB9/AB8) -> 0 | AC10: =IF(COUNT($G$10:AB10)>=Input!$R$7,0,AC9/AC8) -> 0 | AD10: =AD9/AD8 -> 0.07519467825
F12: Dividend Assessment ($m Nominal) | S12: Dividend Assessment ($m Nominal)
F14: Tax Payable | G14: =Analysis!G24 -> 0.04919854413 | H14: =Analysis!H24 -> 1.524500207 | I14: =Analysis!I24 -> 3.087872806 | J14: =Analysis!J24 -> 1.71973735 | K14: =Analysis!K24 -> 1.835577333 | L14: =IF(COUNT($G$14:K14)>=Input!$R$7,0,Analysis!L26) -> 0 | M14: =IF(COUNT($G$14:L14)>=Input!$R$7,0,Analysis!M26) -> 0 | N14: =IF(COUNT($G$14:M14)>=Input!$R$7,0,Analysis!N26) -> 0 | O14: =IF(COUNT($G$14:N14)>=Input!$R$7,0,Analysis!O26) -> 0 | P14: =IF(COUNT($G$14:O14)>=Input!$R$7,0,Analysis!P26) -> 0 | Q14: =SUM(G14:P14) -> 8.216886241 | S14: Tax Payable | T14: =Analysis!G26 -> 0 | U14: =Analysis!H26 -> 0 | V14: =Analysis!I26 -> 0 | W14: =Analysis!J26 -> 0 | X14: =Analysis!K26 -> 0 | Y14: =IF(COUNT($T$14:X14)>=Input!$R$7,0,Analysis!L26) -> 0 | Z14: =IF(COUNT($T$14:Y14)>=Input!$R$7,0,Analysis!M26) -> 0 | AA14: =IF(COUNT($T$14:Z14)>=Input!$R$7,0,Analysis!N26) -> 0 | AB14: =IF(COUNT($T$14:AA14)>=Input!$R$7,0,Analysis!O26) -> 0 | AC14: =IF(COUNT($T$14:AB14)>=Input!$R$7,0,Analysis!P26) -> 0 | AD14: =SUM(T14:AC14) -> 0
F15: Dividends | G15: =(G14/WACC!$G$16)*(1-WACC!$G$16)*0.7 -> 0.08035762208 | H15: =(H14/WACC!$G$16)*(1-WACC!$G$16)*0.7 -> 2.490017004 | I15: =(I14/WACC!$G$16)*(1-WACC!$G$16)*0.7 -> 5.043525584 | J15: =(J14/WACC!$G$16)*(1-WACC!$G$16)*0.7 -> 2.808904339 | K15: =(K14/WACC!$G$16)*(1-WACC!$G$16)*0.7 -> 2.998109644 | L15: 0 | M15: 0 | N15: 0 | O15: 0 | P15: 0 | Q15: =SUM(G15:P15) -> 13.42091419 | S15: Dividends | T15: 11.27321438 | U15: 15.95721902 | V15: 21.13969007 | W15: 19.73931395 | X15: 23.58332866 | Y15: 0 | Z15: 0 | AA15: 0 | AB15: 0 | AC15: 0 | AD15: =SUM(T15:AC15) -> 91.69276609
F16: Dividend Reinvestment | G16: =G15*$H$57 -> 0.02410728662 | H16: =H15*$H$57 -> 0.7470051013 | I16: 1.513057675 | J16: 0.8426713016 | K16: 0.8994328933 | L16: 0 | M16: 0 | N16: 0 | O16: 0 | P16: 0 | Q16: =SUM(G16:P16) -> 4.026274258 | S16: Dividend Reinvestment | T16: 3.381964314 | U16: 4.787165706 | V16: 6.341907022 | W16: 5.921794186 | X16: 7.074998599 | Y16: 0 | Z16: 0 | AA16: 0 | AB16: 0 | AC16: 0 | AD16: =SUM(T16:AC16) -> 27.50782983
F18: Benchmark Cash Flows ($m Nominal) | S18: Benchmark Cash Flows ($m Nominal)
F20: Revenue (smoothed) | G20: ='X factor'!E$16 -> 35.10414989 | H20: ='X factor'!F$16 -> 38.03570644 | I20: ='X factor'!G$16 -> 40.27332205 | J20: ='X factor'!H$16 -> 40.36214806 | K20: ='X factor'!I$16 -> 42.23678005 | L20: 0 | M20: 0 | N20: 0 | O20: 0 | P20: 0 | Q20: =SUM(G20:P20) -> 196.0121065 | S20: Revenue (smoothed) | T20: 835 | U20: 882.6190644 | V20: 932.9537878 | W20: 986.1590411 | X20: 1042.398527 | Y20: 0 | Z20: 0 | AA20: 0 | AB20: 0 | AC20: 0 | AD20: =SUM(T20:AC20) -> 4679.13042
F21: Opex | G21: =Analysis!G$111 -> 23.75251767 | H21: =Analysis!H$111 -> 24.53510398 | I21: =Analysis!I$111 -> 25.32139377 | J21: =Analysis!J$111 -> 26.13861073 | K21: =Analysis!K$111 -> 27.00942741 | L21: =IF(COUNT($G$21:K21)>=Input!$R$7,0,Analysis!L110) -> 0 | M21: =IF(COUNT($G$21:L21)>=Input!$R$7,0,Analysis!M110) -> 0 | N21: =IF(COUNT($G$21:M21)>=Input!$R$7,0,Analysis!N110) -> 0 | O21: =IF(COUNT($G$21:N21)>=Input!$R$7,0,Analysis!O110) -> 0 | P21: =IF(COUNT($G$21:O21)>=Input!$R$7,0,Analysis!P110) -> 0 | Q21: 126.7570536 | S21: Opex | T21: =Analysis!G110 -> 8.225427684 | U21: =Analysis!H110 -> 8.787444931 | V21: =Analysis!I110 -> 8.838442971 | W21: =Analysis!J110 -> 8.600343395 | X21: =Analysis!K110 -> 8.868374585 | Y21: =IF(COUNT($T$21:X21)>=Input!$R$7,0,Analysis!L110) -> 0 | Z21: =IF(COUNT($T$21:Y21)>=Input!$R$7,0,Analysis!M110) -> 0 | AA21: =IF(COUNT($T$21:Z21)>=Input!$R$7,0,Analysis!N110) -> 0 | AB21: =IF(COUNT($T$21:AA21)>=Input!$R$7,0,Analysis!O110) -> 0 | AC21: =IF(COUNT($T$21:AB21)>=Input!$R$7,0,Analysis!P110) -> 0 | AD21: 43.32003357
F22: Interest Payment | G22: =Analysis!G$56 -> 4.496014628 | H22: =Analysis!H$56 -> 4.803212973 | I22: =Analysis!I$56 -> 4.831088475 | J22: =Analysis!J$56 -> 4.700943367 | K22: =Analysis!K$56 -> 4.847449081 | L22: =IF(COUNT($G$22:K22)>=Input!$R$7,0,Analysis!L55) -> 0 | M22: =IF(COUNT($G$22:L22)>=Input!$R$7,0,Analysis!M55) -> 0 | N22: =IF(COUNT($G$22:M22)>=Input!$R$7,0,Analysis!N55) -> 0 | O22: =IF(COUNT($G$22:N22)>=Input!$R$7,0,Analysis!O55) -> 0 | P22: =IF(COUNT($G$22:O22)>=Input!$R$7,0,Analysis!P55) -> 0 | Q22: 23.67870852 | S22: Interest Payment | T22: =Analysis!G55 -> 10.96146639 | U22: =Analysis!H55 -> 4.512115946 | V22: =Analysis!I55 -> 0.9288336116 | W22: =Analysis!J55 -> 8.342137843 | X22: =Analysis!K55 -> 8.593630036 | Y22: =IF(COUNT($T$22:X22)>=Input!$R$7,0,Analysis!L55) -> 0 | Z22: =IF(COUNT($G$22:Y22)>=Input!$R$7,0,Analysis!Z55) -> 0 | AA22: =IF(COUNT($G$22:Z22)>=Input!$R$7,0,Analysis!AA55) -> 0 | AB22: =IF(COUNT($G$22:AA22)>=Input!$R$7,0,Analysis!AB55) -> 0 | AC22: =IF(COUNT($G$22:AB22)>=Input!$R$7,0,Analysis!AC55) -> 0 | AD22: 33.33818382
F23: Tax Payable | G23: =Analysis!G$24 -> 0.04919854413 | H23: =Analysis!H$24 -> 1.524500207 | I23: =Analysis!I$24 -> 3.087872806 | J23: =Analysis!J$24 -> 1.71973735 | K23: =Analysis!K$24 -> 1.835577333 | L23: =IF(COUNT($G$23:K23)>=Input!$R$7,0,Analysis!L26) -> 0 | M23: =IF(COUNT($G$23:L23)>=Input!$R$7,0,Analysis!M26) -> 0 | N23: =IF(COUNT($G$23:M23)>=Input!$R$7,0,Analysis!N26) -> 0 | O23: =IF(COUNT($G$23:N23)>=Input!$R$7,0,Analysis!O26) -> 0 | P23: =IF(COUNT($G$23:O23)>=Input!$R$7,0,Analysis!P26) -> 0 | Q23: 8.216886241 | S23: Tax Payable | T23: =Analysis!G26 -> 0 | U23: =Analysis!H26 -> 0 | V23: =Analysis!I26 -> 0 | W23: =Analysis!J26 -> 0 | X23: =Analysis!K26 -> 0 | Y23: =IF(COUNT($T$23:X23)>=Input!$R$7,0,Analysis!L26) -> 0 | Z23: =IF(COUNT($T$23:Y23)>=Input!$R$7,0,Analysis!M26) -> 0 | AA23: =IF(COUNT($T$23:Z23)>=Input!$R$7,0,Analysis!N26) -> 0 | AB23: =IF(COUNT($T$23:AA23)>=Input!$R$7,0,Analysis!O26) -> 0 | AC23: =IF(COUNT($T$23:AB23)>=Input!$R$7,0,Analysis!P26) -> 0 | AD23: 0
F24: Internal Cash Flow | G24: =G20-G21-G22-G23 -> 6.806419056 | H24: 7.172889281 | I24: 7.032966999 | J24: 7.802856614 | K24: 8.544326222 | L24: 0 | M24: 0 | N24: 0 | O24: 0 | P24: 0 | Q24: 37.35945817 | S24: Internal Cash Flow | T24: =T20-T21-T22-T23 -> 815.8131059 | U24: 869.3195035 | V24: 923.1865112 | W24: 969.2165598 | X24: 1024.936523 | Y24: 0 | Z24: 0 | AA24: 0 | AB24: 0 | AC24: 0 | AD24: 4602.472203
F25: Dividends | G25: =G15 -> 0.08035762208 | H25: =H15 -> 2.490017004 | I25: 5.043525584 | J25: 2.808904339 | K25: 2.998109644 | L25: 0 | M25: 0 | N25: 0 | O25: 0 | P25: 0 | Q25: 13.42091419 | S25: Dividends | T25: =T15 -> 11.27321438 | U25: =U15 -> 15.95721902 | V25: 21.13969007 | W25: 19.73931395 | X25: 23.58332866 | Y25: 0 | Z25: 0 | AA25: 0 | AB25: 0 | AC25: 0 | AD25: 91.69276609
F26: Retained Cash Flow (excl. dividend reinvestment) | G26: =G24-G25 -> 6.726061434 | H26: =H24-H25 -> 4.682872276 | I26: 1.989441415 | J26: 4.993952275 | K26: 5.546216577 | L26: 0 | M26: 0 | N26: 0 | O26: 0 | P26: 0 | Q26: 23.93854398 | S26: Dividend Reinvestment | T26: =T16 -> 3.381964314 | U26: 4.787165706 | V26: 6.341907022 | W26: 5.921794186 | X26: 7.074998599 | Y26: 0 | Z26: 0 | AA26: 0 | AB26: 0 | AC26: 0 | AD26: 27.50782983
S27: Retained Cash Flow | T27: =T24-T25+T26 -> 807.9218559 | U27: 858.1494502 | V27: 908.3887282 | W27: 955.3990401 | X27: 1008.428192 | Y27: 0 | Z27: 0 | AA27: 0 | AB27: 0 | AC27: 0 | AD27: 4538.287267
F28: Benchmark Capex Funding ($m Nominal)
S29: Benchmark Capex Funding ($m Nominal)
F30: Capex Funding Requirement | G30: =G9/(1+vanilla)^0.5 -> 10.58962729 | H30: 4.359054208 | I30: 0.8973253593 | J30: 8.059152623 | K30: 8.302113602 | L30: 0 | M30: 0 | N30: 0 | O30: 0 | P30: 0 | Q30: =SUM(G30:P30) -> 32.20727308
F31: Debt Component | G31: =-Analysis!G$57 -> 4.71886858 | H31: =-Analysis!H$57 -> 0.4281951251 | I31: =-Analysis!I$57 -> -1.999156808 | J31: =-Analysis!J$57 -> 2.25047179 | K31: =-Analysis!K$57 -> 2.001599032 | L31: =IF(COUNT($G$31:K31)>=Input!$R$7,0,-Analysis!L56) -> 0 | M31: =IF(COUNT($G$31:L31)>=Input!$R$7,0,-Analysis!M56) -> 0 | N31: =IF(COUNT($G$31:M31)>=Input!$R$7,0,-Analysis!N56) -> 0 | O31: =IF(COUNT($G$31:N31)>=Input!$R$7,0,-Analysis!O56) -> 0 | P31: =IF(COUNT($G$31:O31)>=Input!$R$7,0,-Analysis!P56) -> 0 | Q31: =SUM(G31:P31) -> 7.399977718 | S31: Capex Funding Requirement | T31: 679.6745548 | U31: 575.1953123 | V31: 420.0768815 | W31: 479.3970356 | X31: 556.9252767 | Y31: 0 | Z31: 0 | AA31: 0 | AB31: 0 | AC31: 0 | AD31: =SUM(T31:AC31) -> 2711.269061
F32: Equity Component | G32: =G30-G31 -> 5.870758712 | H32: 3.930859083 | I32: 2.896482168 | J32: 5.808680833 | K32: 6.30051457 | L32: 0 | M32: 0 | N32: 0 | O32: 0 | P32: 0 | Q32: =SUM(G32:P32) -> 24.80729537 | S32: Debt Component | T32: =-Analysis!G56 -> -4.496014628 | U32: =-Analysis!H56 -> -4.803212973 | V32: =-Analysis!I56 -> -4.831088475 | W32: =-Analysis!J56 -> -4.700943367 | X32: =-Analysis!K56 -> -4.847449081 | Y32: =IF(COUNT($T$32:X32)>=Input!$R$7,0,-Analysis!L56) -> 0 | Z32: =IF(COUNT($T$32:Y32)>=Input!$R$7,0,-Analysis!M56) -> 0 | AA32: =IF(COUNT($T$32:Z32)>=Input!$R$7,0,-Analysis!N56) -> 0 | AB32: =IF(COUNT($T$32:AA32)>=Input!$R$7,0,-Analysis!O56) -> 0 | AC32: =IF(COUNT($T$32:AB32)>=Input!$R$7,0,-Analysis!P56) -> 0 | AD32: =SUM(T32:AC32) -> -23.67870852
F33: Retained Cash Flow (excl. dividend reinvestment) | G33: =G26 -> 6.726061434 | H33: =H26 -> 4.682872276 | I33: 1.989441415 | J33: 4.993952275 | K33: 5.546216577 | L33: 0 | M33: 0 | N33: 0 | O33: 0 | P33: 0 | Q33: =SUM(G33:P33) -> 23.93854398 | S33: Equity Component | T33: =T31-T32 -> 684.1705695 | U33: 579.9985253 | V33: 424.9079699 | W33: 484.097979 | X33: 561.7727257 | Y33: 0 | Z33: 0 | AA33: 0 | AB33: 0 | AC33: 0 | AD33: =SUM(T33:AC33) -> 2734.947769
F34: Equity Requirement | G34: =G32-G33 -> -0.8553027226 | H34: -0.7520131939 | I34: 0.9070407528 | J34: 0.8147285579 | K34: 0.7542979927 | L34: 0 | M34: 0 | N34: 0 | O34: 0 | P34: 0 | Q34: =SUM(G34:P34) -> 0.868751387 | S34: Retained Cash Flows | T34: =T27 -> 807.9218559 | U34: =U27 -> 858.1494502 | V34: 908.3887282 | W34: 955.3990401 | X34: 1008.428192 | Y34: 0 | Z34: 0 | AA34: 0 | AB34: 0 | AC34: 0 | AD34: =SUM(T34:AC34) -> 4538.287267
S35: Equity Requirement (SEO) | T35: =T33-T34 -> -123.7512864 | U35: -278.1509249 | V35: -483.4807582 | W35: -471.3010611 | X35: -446.6554667 | Y35: 0 | Z35: 0 | AA35: 0 | AB35: 0 | AC35: 0 | AD35: =SUM(T35:AC35) -> -1803.339497
F36: Benchmark Capex Funding ($m Real 2013-14)
S37: Equity Raising Costs ($m Nominal)
F38: Equity Component | G38: =G32/Analysis!G$8 -> 5.727569475 | H38: =H32/Analysis!H$8 -> 3.741448264 | I38: =I32/Analysis!I$8 -> 2.689671635 | J38: =J32/Analysis!J$8 -> 5.262378146 | K38: =K32/Analysis!K$8 -> 5.568736817 | L38: =L32/Analysis!L8 -> 0 | M38: =M32/Analysis!M8 -> 0 | N38: =N32/Analysis!N8 -> 0 | O38: =O32/Analysis!O8 -> 0 | P38: =P32/Analysis!P8 -> 0 | Q38: =SUM(G38:P38) -> 22.98980434
F39: Retained Cash Flow (excl. dividend reinvestment) | G39: =G33/Analysis!G$8 -> 6.562011156 | H39: =H33/Analysis!H$8 -> 4.457225248 | I39: =I33/Analysis!I$8 -> 1.847394126 | J39: =J33/Analysis!J$8 -> 4.524274284 | K39: =K33/Analysis!K$8 -> 4.902047302 | L39: =L33/Analysis!L8 -> 0 | M39: =M33/Analysis!M8 -> 0 | N39: =N33/Analysis!N8 -> 0 | O39: =O33/Analysis!O8 -> 0 | P39: =P33/Analysis!P8 -> 0 | Q39: =SUM(G39:P39) -> 22.29295212 | S39: External Equity Raising Cost | T39: -0.6252180076 | U39: -1.490334612 | V39: -3.029008232 | W39: -2.57526234 | X39: -2.050759161 | Y39: 0 | Z39: 0 | AA39: 0 | AB39: 0 | AC39: 0 | AD39: =SUM(T39:AC39) -> -9.770582352
F40: Equity Requirement | G40: =G38-G39 -> -0.8344416806 | H40: =H38-H39 -> -0.715776984 | I40: 0.8422775087 | J40: 0.7381038623 | K40: 0.666689515 | L40: 0 | M40: 0 | N40: 0 | O40: 0 | P40: 0 | Q40: =SUM(G40:P40) -> 0.6968522215 | S40: Dividend Reinvestment Plan Cost | T40: 0.03381964314 | U40: 0.04787165706 | V40: 0.06341907022 | W40: 0.05921794186 | X40: 0.07074998599 | Y40: 0 | Z40: 0 | AA40: 0 | AB40: 0 | AC40: 0 | AD40: =SUM(T40:AC40) -> 0.2750782983
S41: Total Cost of Investing Equity | T41: =+T39+T40 -> -0.5913983645 | U41: -1.442462955 | V41: -2.965589162 | W41: -2.516044398 | X41: -1.980009175 | Y41: 0 | Z41: 0 | AA41: 0 | AB41: 0 | AC41: 0 | AD41: =SUM(T41:AC41) -> -9.495504053
F42: Dividend Reinvestment | G42: =G16/Analysis!G$8 -> 0.02351930402 | H42: =H16/Analysis!H$8 -> 0.7110102094 | I42: =I16/Analysis!I$8 -> 1.405024466 | J42: =J16/Analysis!J$8 -> 0.7634186091 | K42: =K16/Analysis!K$8 -> 0.7949676192 | L42: =L16/Analysis!L8 -> 0 | M42: =M16/Analysis!M8 -> 0 | N42: =N16/Analysis!N8 -> 0 | O42: =O16/Analysis!O8 -> 0 | P42: =P16/Analysis!P8 -> 0 | Q42: =SUM(G42:P42) -> 3.697940207
S43: Equity Raising Costs ($m Real 2011-12)
F44: Equity Raising Costs ($m Real 2013-14)
S45: Equity Raising Cost | T45: =T41/(1+WACC!$F$9)^1 -> -0.5769740141 | U45: =U41/(1+WACC!$F$9)^2 -> -1.372957006 | V45: =V41/(1+WACC!$F$9)^3 -> -2.753844349 | W45: =W41/(1+WACC!$F$9)^4 -> -2.279412044 | X45: =X41/(1+WACC!$F$9)^5 -> -1.750039598 | Y45: =Y41/(1+WACC!$F$9)^6 -> 0 | Z45: =Z41/(1+WACC!$F$9)^7 -> 0 | AA45: =AA41/(1+WACC!$F$9)^8 -> 0 | AB45: =AB41/(1+WACC!$F$9)^9 -> 0 | AC45: =AC41/(1+WACC!$F$9)^10 -> 0 | AD45: =SUM(T45:AC45) -> -8.733227012
F46: Dividend Reinvestment Plan Requirement | Q46: =IF(Q40>0,MIN(Q40,Q42),0) -> 0.6968522215
F47: External Equity (SEO) Requirement | Q47: =IF((Q40-Q42)>0,(Q40-Q42),0) -> 0
F48: Total Equity Requirement | Q48: =SUM(Q46:Q47) -> 0.6968522215
F50: Dividend Reinvestment Plan Cost | Q50: =Q46*H56 -> 0.006968522215
F51: External Equity Raising (SEO) Cost | Q51: =Q47*H55 -> 0
F52: Total Equity Raising Cost | Q52: =SUM(Q50:Q51) -> 0.006968522215
F55: Subsequent Equity Raising Cost SEO | H55: 0.03
F56: Dividend Reinvestment Plan Cost DRPC | H56: 0.01
F57: Dividend Reinvestment Plan Take Up DRPT | H57: 0.3
